Workbook

Sheet Summary
B6: Area
B15: Development Information | I15: Allocated Parking | K15: Parking Demand
B16: Unit Type | C16: Unit Type | D16: Unit Tenure | E16: Unit Tenure | G16: Bedrooms (Per Unit) | H16: Number of Units | I16: Allocated Spaces (Per Unit) | J16: Total Allocated Spaces | K16: Unallocated Demand (Per Unit) | L16: Total Unallocated Demand | M16: Visitor Parking (Per Unit) | N16: Total Visitor Parking | O16: Total Parking
A17: A | C17: =IF(B17="Flat","A flat; maisonette; apartment","Detached; semi-detached; terraced whole house or bungalow") -> Detached; semi-detached; terraced whole house or bungalow | E17: =IF(D17="Shared Ownership/Rented","Shared ownership or rented (excluding living rent free)","Owned") -> Owned | F17: =CONCATENATE($B$7,C17,E17) -> Detached; semi-detached; terraced whole house or bungalowOwned | J17: =I17*H17 -> 0 | K17: =IF(F17=All_Unall2!$B$2,VLOOKUP(G17,All_Unall2!$B$5:$E$8,I17+2),IF(F17=All_Unall2!$B$10,VLOOKUP(G17,All_Unall2!$B$13:$E$16,I17+2),IF(F17=All_Unall2!$B$18,VLOOKUP(G17,All_Unall2!$B$21:$E$24,I17+2),IF(F17=All_Unall2!$B$26,VLOOKUP(G17,All_Unall2!$B$29:$E$32,I17+2),IF(F17=All_Unall2!$B$34,VLOOKUP(G17,All_Unall2!$B$37:$E$40,I17+2),IF(F17=All_Unall2!$B$42,VLOOKUP(G17,All_Unall2!$B$45:$E$48,I17+2),IF(F17=All_Unall2!$B$50,VLOOKUP(G17,All_Unall2!$B$53:$E$56,I17+2),IF(F17=All_Unall2!$B$58,VLOOKUP(G17,All_Unall2!$B$61:$E$64,I17+2),IF(F17=All_Unall2!$B$66,VLOOKUP(G17,All_Unall2!$B$69:$E$72,I17+2),IF(F17=All_Unall2!$B$74,VLOOKUP(G17,All_Unall2!$B$77:$E$80,I17+2),IF(F17=All_Unall2!$B$82,VLOOKUP(G17,All_Unall2!$B$85:$E$88,I17+2),IF(F17=All_Unall2!$B$90,VLOOKUP(G17,All_Unall2!$B$93:$E$96,I17+2),9999999)))))))))))) -> 9999999 | L17: =K17*H17 -> 0 | M17: =IF(J17>L17,0.2,0) -> 0 | N17: =M17*H17 -> 0 | O17: =N17+L17+J17 -> 0
A18: B | C18: =IF(B18="Flat","A flat; maisonette; apartment","Detached; semi-detached; terraced whole house or bungalow") -> Detached; semi-detached; terraced whole house or bungalow | E18: =IF(D18="Shared Ownership/Rented","Shared ownership or rented (excluding living rent free)","Owned") -> Owned | F18: Detached; semi-detached; terraced whole house or bungalowOwned | J18: =I18*H18 -> 0 | K18: =IF(F18=All_Unall2!$B$2,VLOOKUP(G18,All_Unall2!$B$5:$E$8,I18+2),IF(F18=All_Unall2!$B$10,VLOOKUP(G18,All_Unall2!$B$13:$E$16,I18+2),IF(F18=All_Unall2!$B$18,VLOOKUP(G18,All_Unall2!$B$21:$E$24,I18+2),IF(F18=All_Unall2!$B$26,VLOOKUP(G18,All_Unall2!$B$29:$E$32,I18+2),IF(F18=All_Unall2!$B$34,VLOOKUP(G18,All_Unall2!$B$37:$E$40,I18+2),IF(F18=All_Unall2!$B$42,VLOOKUP(G18,All_Unall2!$B$45:$E$48,I18+2),IF(F18=All_Unall2!$B$50,VLOOKUP(G18,All_Unall2!$B$53:$E$56,I18+2),IF(F18=All_Unall2!$B$58,VLOOKUP(G18,All_Unall2!$B$61:$E$64,I18+2),IF(F18=All_Unall2!$B$66,VLOOKUP(G18,All_Unall2!$B$69:$E$72,I18+2),IF(F18=All_Unall2!$B$74,VLOOKUP(G18,All_Unall2!$B$77:$E$80,I18+2),IF(F18=All_Unall2!$B$82,VLOOKUP(G18,All_Unall2!$B$85:$E$88,I18+2),IF(F18=All_Unall2!$B$90,VLOOKUP(G18,All_Unall2!$B$93:$E$96,I18+2),9999999)))))))))))) -> 9999999 | L18: =K18*H18 -> 0 | M18: =IF(J18>L18,0.2,0) -> 0 | N18: =M18*H18 -> 0 | O18: =N18+L18+J18 -> 0
A19: C | C19: Detached; semi-detached; terraced whole house or bungalow | E19: Owned | F19: Detached; semi-detached; terraced whole house or bungalowOwned | J19: 0 | K19: =IF(F19=All_Unall2!$B$2,VLOOKUP(G19,All_Unall2!$B$5:$E$8,I19+2),IF(F19=All_Unall2!$B$10,VLOOKUP(G19,All_Unall2!$B$13:$E$16,I19+2),IF(F19=All_Unall2!$B$18,VLOOKUP(G19,All_Unall2!$B$21:$E$24,I19+2),IF(F19=All_Unall2!$B$26,VLOOKUP(G19,All_Unall2!$B$29:$E$32,I19+2),IF(F19=All_Unall2!$B$34,VLOOKUP(G19,All_Unall2!$B$37:$E$40,I19+2),IF(F19=All_Unall2!$B$42,VLOOKUP(G19,All_Unall2!$B$45:$E$48,I19+2),IF(F19=All_Unall2!$B$50,VLOOKUP(G19,All_Unall2!$B$53:$E$56,I19+2),IF(F19=All_Unall2!$B$58,VLOOKUP(G19,All_Unall2!$B$61:$E$64,I19+2),IF(F19=All_Unall2!$B$66,VLOOKUP(G19,All_Unall2!$B$69:$E$72,I19+2),IF(F19=All_Unall2!$B$74,VLOOKUP(G19,All_Unall2!$B$77:$E$80,I19+2),IF(F19=All_Unall2!$B$82,VLOOKUP(G19,All_Unall2!$B$85:$E$88,I19+2),IF(F19=All_Unall2!$B$90,VLOOKUP(G19,All_Unall2!$B$93:$E$96,I19+2),9999999)))))))))))) -> 9999999 | L19: 0 | M19: =IF(J19>L19,0.2,0) -> 0 | N19: 0 | O19: 0
A20: D | C20: Detached; semi-detached; terraced whole house or bungalow | E20: Owned | F20: Detached; semi-detached; terraced whole house or bungalowOwned | J20: 0 | K20: =IF(F20=All_Unall2!$B$2,VLOOKUP(G20,All_Unall2!$B$5:$E$8,I20+2),IF(F20=All_Unall2!$B$10,VLOOKUP(G20,All_Unall2!$B$13:$E$16,I20+2),IF(F20=All_Unall2!$B$18,VLOOKUP(G20,All_Unall2!$B$21:$E$24,I20+2),IF(F20=All_Unall2!$B$26,VLOOKUP(G20,All_Unall2!$B$29:$E$32,I20+2),IF(F20=All_Unall2!$B$34,VLOOKUP(G20,All_Unall2!$B$37:$E$40,I20+2),IF(F20=All_Unall2!$B$42,VLOOKUP(G20,All_Unall2!$B$45:$E$48,I20+2),IF(F20=All_Unall2!$B$50,VLOOKUP(G20,All_Unall2!$B$53:$E$56,I20+2),IF(F20=All_Unall2!$B$58,VLOOKUP(G20,All_Unall2!$B$61:$E$64,I20+2),IF(F20=All_Unall2!$B$66,VLOOKUP(G20,All_Unall2!$B$69:$E$72,I20+2),IF(F20=All_Unall2!$B$74,VLOOKUP(G20,All_Unall2!$B$77:$E$80,I20+2),IF(F20=All_Unall2!$B$82,VLOOKUP(G20,All_Unall2!$B$85:$E$88,I20+2),IF(F20=All_Unall2!$B$90,VLOOKUP(G20,All_Unall2!$B$93:$E$96,I20+2),9999999)))))))))))) -> 9999999 | L20: 0 | M20: 0 | N20: 0 | O20: 0
A21: E | C21: Detached; semi-detached; terraced whole house or bungalow | E21: Owned | F21: Detached; semi-detached; terraced whole house or bungalowOwned | J21: 0 | K21: =IF(F21=All_Unall2!$B$2,VLOOKUP(G21,All_Unall2!$B$5:$E$8,I21+2),IF(F21=All_Unall2!$B$10,VLOOKUP(G21,All_Unall2!$B$13:$E$16,I21+2),IF(F21=All_Unall2!$B$18,VLOOKUP(G21,All_Unall2!$B$21:$E$24,I21+2),IF(F21=All_Unall2!$B$26,VLOOKUP(G21,All_Unall2!$B$29:$E$32,I21+2),IF(F21=All_Unall2!$B$34,VLOOKUP(G21,All_Unall2!$B$37:$E$40,I21+2),IF(F21=All_Unall2!$B$42,VLOOKUP(G21,All_Unall2!$B$45:$E$48,I21+2),IF(F21=All_Unall2!$B$50,VLOOKUP(G21,All_Unall2!$B$53:$E$56,I21+2),IF(F21=All_Unall2!$B$58,VLOOKUP(G21,All_Unall2!$B$61:$E$64,I21+2),IF(F21=All_Unall2!$B$66,VLOOKUP(G21,All_Unall2!$B$69:$E$72,I21+2),IF(F21=All_Unall2!$B$74,VLOOKUP(G21,All_Unall2!$B$77:$E$80,I21+2),IF(F21=All_Unall2!$B$82,VLOOKUP(G21,All_Unall2!$B$85:$E$88,I21+2),IF(F21=All_Unall2!$B$90,VLOOKUP(G21,All_Unall2!$B$93:$E$96,I21+2),9999999)))))))))))) -> 9999999 | L21: 0 | M21: 0 | N21: 0 | O21: 0
A22: F | C22: Detached; semi-detached; terraced whole house or bungalow | E22: Owned | F22: Detached; semi-detached; terraced whole house or bungalowOwned | J22: 0 | K22: =IF(F22=All_Unall2!$B$2,VLOOKUP(G22,All_Unall2!$B$5:$E$8,I22+2),IF(F22=All_Unall2!$B$10,VLOOKUP(G22,All_Unall2!$B$13:$E$16,I22+2),IF(F22=All_Unall2!$B$18,VLOOKUP(G22,All_Unall2!$B$21:$E$24,I22+2),IF(F22=All_Unall2!$B$26,VLOOKUP(G22,All_Unall2!$B$29:$E$32,I22+2),IF(F22=All_Unall2!$B$34,VLOOKUP(G22,All_Unall2!$B$37:$E$40,I22+2),IF(F22=All_Unall2!$B$42,VLOOKUP(G22,All_Unall2!$B$45:$E$48,I22+2),IF(F22=All_Unall2!$B$50,VLOOKUP(G22,All_Unall2!$B$53:$E$56,I22+2),IF(F22=All_Unall2!$B$58,VLOOKUP(G22,All_Unall2!$B$61:$E$64,I22+2),IF(F22=All_Unall2!$B$66,VLOOKUP(G22,All_Unall2!$B$69:$E$72,I22+2),IF(F22=All_Unall2!$B$74,VLOOKUP(G22,All_Unall2!$B$77:$E$80,I22+2),IF(F22=All_Unall2!$B$82,VLOOKUP(G22,All_Unall2!$B$85:$E$88,I22+2),IF(F22=All_Unall2!$B$90,VLOOKUP(G22,All_Unall2!$B$93:$E$96,I22+2),9999999)))))))))))) -> 9999999 | L22: 0 | M22: 0 | N22: 0 | O22: 0
A23: G | C23: Detached; semi-detached; terraced whole house or bungalow | E23: Owned | F23: Detached; semi-detached; terraced whole house or bungalowOwned | J23: 0 | K23: =IF(F23=All_Unall2!$B$2,VLOOKUP(G23,All_Unall2!$B$5:$E$8,I23+2),IF(F23=All_Unall2!$B$10,VLOOKUP(G23,All_Unall2!$B$13:$E$16,I23+2),IF(F23=All_Unall2!$B$18,VLOOKUP(G23,All_Unall2!$B$21:$E$24,I23+2),IF(F23=All_Unall2!$B$26,VLOOKUP(G23,All_Unall2!$B$29:$E$32,I23+2),IF(F23=All_Unall2!$B$34,VLOOKUP(G23,All_Unall2!$B$37:$E$40,I23+2),IF(F23=All_Unall2!$B$42,VLOOKUP(G23,All_Unall2!$B$45:$E$48,I23+2),IF(F23=All_Unall2!$B$50,VLOOKUP(G23,All_Unall2!$B$53:$E$56,I23+2),IF(F23=All_Unall2!$B$58,VLOOKUP(G23,All_Unall2!$B$61:$E$64,I23+2),IF(F23=All_Unall2!$B$66,VLOOKUP(G23,All_Unall2!$B$69:$E$72,I23+2),IF(F23=All_Unall2!$B$74,VLOOKUP(G23,All_Unall2!$B$77:$E$80,I23+2),IF(F23=All_Unall2!$B$82,VLOOKUP(G23,All_Unall2!$B$85:$E$88,I23+2),IF(F23=All_Unall2!$B$90,VLOOKUP(G23,All_Unall2!$B$93:$E$96,I23+2),9999999)))))))))))) -> 9999999 | L23: 0 | M23: 0 | N23: 0 | O23: 0
A24: H | C24: Detached; semi-detached; terraced whole house or bungalow | E24: Owned | F24: Detached; semi-detached; terraced whole house or bungalowOwned | J24: 0 | K24: =IF(F24=All_Unall2!$B$2,VLOOKUP(G24,All_Unall2!$B$5:$E$8,I24+2),IF(F24=All_Unall2!$B$10,VLOOKUP(G24,All_Unall2!$B$13:$E$16,I24+2),IF(F24=All_Unall2!$B$18,VLOOKUP(G24,All_Unall2!$B$21:$E$24,I24+2),IF(F24=All_Unall2!$B$26,VLOOKUP(G24,All_Unall2!$B$29:$E$32,I24+2),IF(F24=All_Unall2!$B$34,VLOOKUP(G24,All_Unall2!$B$37:$E$40,I24+2),IF(F24=All_Unall2!$B$42,VLOOKUP(G24,All_Unall2!$B$45:$E$48,I24+2),IF(F24=All_Unall2!$B$50,VLOOKUP(G24,All_Unall2!$B$53:$E$56,I24+2),IF(F24=All_Unall2!$B$58,VLOOKUP(G24,All_Unall2!$B$61:$E$64,I24+2),IF(F24=All_Unall2!$B$66,VLOOKUP(G24,All_Unall2!$B$69:$E$72,I24+2),IF(F24=All_Unall2!$B$74,VLOOKUP(G24,All_Unall2!$B$77:$E$80,I24+2),IF(F24=All_Unall2!$B$82,VLOOKUP(G24,All_Unall2!$B$85:$E$88,I24+2),IF(F24=All_Unall2!$B$90,VLOOKUP(G24,All_Unall2!$B$93:$E$96,I24+2),9999999)))))))))))) -> 9999999 | L24: 0 | M24: 0 | N24: 0 | O24: 0
A25: I | C25: Detached; semi-detached; terraced whole house or bungalow | E25: Owned | F25: Detached; semi-detached; terraced whole house or bungalowOwned | J25: 0 | K25: =IF(F25=All_Unall2!$B$2,VLOOKUP(G25,All_Unall2!$B$5:$E$8,I25+2),IF(F25=All_Unall2!$B$10,VLOOKUP(G25,All_Unall2!$B$13:$E$16,I25+2),IF(F25=All_Unall2!$B$18,VLOOKUP(G25,All_Unall2!$B$21:$E$24,I25+2),IF(F25=All_Unall2!$B$26,VLOOKUP(G25,All_Unall2!$B$29:$E$32,I25+2),IF(F25=All_Unall2!$B$34,VLOOKUP(G25,All_Unall2!$B$37:$E$40,I25+2),IF(F25=All_Unall2!$B$42,VLOOKUP(G25,All_Unall2!$B$45:$E$48,I25+2),IF(F25=All_Unall2!$B$50,VLOOKUP(G25,All_Unall2!$B$53:$E$56,I25+2),IF(F25=All_Unall2!$B$58,VLOOKUP(G25,All_Unall2!$B$61:$E$64,I25+2),IF(F25=All_Unall2!$B$66,VLOOKUP(G25,All_Unall2!$B$69:$E$72,I25+2),IF(F25=All_Unall2!$B$74,VLOOKUP(G25,All_Unall2!$B$77:$E$80,I25+2),IF(F25=All_Unall2!$B$82,VLOOKUP(G25,All_Unall2!$B$85:$E$88,I25+2),IF(F25=All_Unall2!$B$90,VLOOKUP(G25,All_Unall2!$B$93:$E$96,I25+2),9999999)))))))))))) -> 9999999 | L25: 0 | M25: 0 | N25: 0 | O25: 0
A26: J | C26: Detached; semi-detached; terraced whole house or bungalow | E26: Owned | F26: Detached; semi-detached; terraced whole house or bungalowOwned | J26: 0 | K26: =IF(F26=All_Unall2!$B$2,VLOOKUP(G26,All_Unall2!$B$5:$E$8,I26+2),IF(F26=All_Unall2!$B$10,VLOOKUP(G26,All_Unall2!$B$13:$E$16,I26+2),IF(F26=All_Unall2!$B$18,VLOOKUP(G26,All_Unall2!$B$21:$E$24,I26+2),IF(F26=All_Unall2!$B$26,VLOOKUP(G26,All_Unall2!$B$29:$E$32,I26+2),IF(F26=All_Unall2!$B$34,VLOOKUP(G26,All_Unall2!$B$37:$E$40,I26+2),IF(F26=All_Unall2!$B$42,VLOOKUP(G26,All_Unall2!$B$45:$E$48,I26+2),IF(F26=All_Unall2!$B$50,VLOOKUP(G26,All_Unall2!$B$53:$E$56,I26+2),IF(F26=All_Unall2!$B$58,VLOOKUP(G26,All_Unall2!$B$61:$E$64,I26+2),IF(F26=All_Unall2!$B$66,VLOOKUP(G26,All_Unall2!$B$69:$E$72,I26+2),IF(F26=All_Unall2!$B$74,VLOOKUP(G26,All_Unall2!$B$77:$E$80,I26+2),IF(F26=All_Unall2!$B$82,VLOOKUP(G26,All_Unall2!$B$85:$E$88,I26+2),IF(F26=All_Unall2!$B$90,VLOOKUP(G26,All_Unall2!$B$93:$E$96,I26+2),9999999)))))))))))) -> 9999999 | L26: 0 | M26: 0 | N26: 0 | O26: 0
A27: K | C27: Detached; semi-detached; terraced whole house or bungalow | E27: Owned | F27: Detached; semi-detached; terraced whole house or bungalowOwned | J27: 0 | K27: =IF(F27=All_Unall2!$B$2,VLOOKUP(G27,All_Unall2!$B$5:$E$8,I27+2),IF(F27=All_Unall2!$B$10,VLOOKUP(G27,All_Unall2!$B$13:$E$16,I27+2),IF(F27=All_Unall2!$B$18,VLOOKUP(G27,All_Unall2!$B$21:$E$24,I27+2),IF(F27=All_Unall2!$B$26,VLOOKUP(G27,All_Unall2!$B$29:$E$32,I27+2),IF(F27=All_Unall2!$B$34,VLOOKUP(G27,All_Unall2!$B$37:$E$40,I27+2),IF(F27=All_Unall2!$B$42,VLOOKUP(G27,All_Unall2!$B$45:$E$48,I27+2),IF(F27=All_Unall2!$B$50,VLOOKUP(G27,All_Unall2!$B$53:$E$56,I27+2),IF(F27=All_Unall2!$B$58,VLOOKUP(G27,All_Unall2!$B$61:$E$64,I27+2),IF(F27=All_Unall2!$B$66,VLOOKUP(G27,All_Unall2!$B$69:$E$72,I27+2),IF(F27=All_Unall2!$B$74,VLOOKUP(G27,All_Unall2!$B$77:$E$80,I27+2),IF(F27=All_Unall2!$B$82,VLOOKUP(G27,All_Unall2!$B$85:$E$88,I27+2),IF(F27=All_Unall2!$B$90,VLOOKUP(G27,All_Unall2!$B$93:$E$96,I27+2),9999999)))))))))))) -> 9999999 | L27: 0 | M27: 0 | N27: 0 | O27: 0
A28: L | C28: Detached; semi-detached; terraced whole house or bungalow | E28: Owned | F28: Detached; semi-detached; terraced whole house or bungalowOwned | J28: 0 | K28: =IF(F28=All_Unall2!$B$2,VLOOKUP(G28,All_Unall2!$B$5:$E$8,I28+2),IF(F28=All_Unall2!$B$10,VLOOKUP(G28,All_Unall2!$B$13:$E$16,I28+2),IF(F28=All_Unall2!$B$18,VLOOKUP(G28,All_Unall2!$B$21:$E$24,I28+2),IF(F28=All_Unall2!$B$26,VLOOKUP(G28,All_Unall2!$B$29:$E$32,I28+2),IF(F28=All_Unall2!$B$34,VLOOKUP(G28,All_Unall2!$B$37:$E$40,I28+2),IF(F28=All_Unall2!$B$42,VLOOKUP(G28,All_Unall2!$B$45:$E$48,I28+2),IF(F28=All_Unall2!$B$50,VLOOKUP(G28,All_Unall2!$B$53:$E$56,I28+2),IF(F28=All_Unall2!$B$58,VLOOKUP(G28,All_Unall2!$B$61:$E$64,I28+2),IF(F28=All_Unall2!$B$66,VLOOKUP(G28,All_Unall2!$B$69:$E$72,I28+2),IF(F28=All_Unall2!$B$74,VLOOKUP(G28,All_Unall2!$B$77:$E$80,I28+2),IF(F28=All_Unall2!$B$82,VLOOKUP(G28,All_Unall2!$B$85:$E$88,I28+2),IF(F28=All_Unall2!$B$90,VLOOKUP(G28,All_Unall2!$B$93:$E$96,I28+2),9999999)))))))))))) -> 9999999 | L28: 0 | M28: 0 | N28: 0 | O28: 0
A29: M | C29: Detached; semi-detached; terraced whole house or bungalow | E29: Owned | F29: Detached; semi-detached; terraced whole house or bungalowOwned | J29: 0 | K29: =IF(F29=All_Unall2!$B$2,VLOOKUP(G29,All_Unall2!$B$5:$E$8,I29+2),IF(F29=All_Unall2!$B$10,VLOOKUP(G29,All_Unall2!$B$13:$E$16,I29+2),IF(F29=All_Unall2!$B$18,VLOOKUP(G29,All_Unall2!$B$21:$E$24,I29+2),IF(F29=All_Unall2!$B$26,VLOOKUP(G29,All_Unall2!$B$29:$E$32,I29+2),IF(F29=All_Unall2!$B$34,VLOOKUP(G29,All_Unall2!$B$37:$E$40,I29+2),IF(F29=All_Unall2!$B$42,VLOOKUP(G29,All_Unall2!$B$45:$E$48,I29+2),IF(F29=All_Unall2!$B$50,VLOOKUP(G29,All_Unall2!$B$53:$E$56,I29+2),IF(F29=All_Unall2!$B$58,VLOOKUP(G29,All_Unall2!$B$61:$E$64,I29+2),IF(F29=All_Unall2!$B$66,VLOOKUP(G29,All_Unall2!$B$69:$E$72,I29+2),IF(F29=All_Unall2!$B$74,VLOOKUP(G29,All_Unall2!$B$77:$E$80,I29+2),IF(F29=All_Unall2!$B$82,VLOOKUP(G29,All_Unall2!$B$85:$E$88,I29+2),IF(F29=All_Unall2!$B$90,VLOOKUP(G29,All_Unall2!$B$93:$E$96,I29+2),9999999)))))))))))) -> 9999999 | L29: 0 | M29: 0 | N29: 0 | O29: 0
A30: N | C30: Detached; semi-detached; terraced whole house or bungalow | E30: Owned | F30: Detached; semi-detached; terraced whole house or bungalowOwned | J30: 0 | K30: =IF(F30=All_Unall2!$B$2,VLOOKUP(G30,All_Unall2!$B$5:$E$8,I30+2),IF(F30=All_Unall2!$B$10,VLOOKUP(G30,All_Unall2!$B$13:$E$16,I30+2),IF(F30=All_Unall2!$B$18,VLOOKUP(G30,All_Unall2!$B$21:$E$24,I30+2),IF(F30=All_Unall2!$B$26,VLOOKUP(G30,All_Unall2!$B$29:$E$32,I30+2),IF(F30=All_Unall2!$B$34,VLOOKUP(G30,All_Unall2!$B$37:$E$40,I30+2),IF(F30=All_Unall2!$B$42,VLOOKUP(G30,All_Unall2!$B$45:$E$48,I30+2),IF(F30=All_Unall2!$B$50,VLOOKUP(G30,All_Unall2!$B$53:$E$56,I30+2),IF(F30=All_Unall2!$B$58,VLOOKUP(G30,All_Unall2!$B$61:$E$64,I30+2),IF(F30=All_Unall2!$B$66,VLOOKUP(G30,All_Unall2!$B$69:$E$72,I30+2),IF(F30=All_Unall2!$B$74,VLOOKUP(G30,All_Unall2!$B$77:$E$80,I30+2),IF(F30=All_Unall2!$B$82,VLOOKUP(G30,All_Unall2!$B$85:$E$88,I30+2),IF(F30=All_Unall2!$B$90,VLOOKUP(G30,All_Unall2!$B$93:$E$96,I30+2),9999999)))))))))))) -> 9999999 | L30: 0 | M30: 0 | N30: 0 | O30: 0
A31: O | C31: Detached; semi-detached; terraced whole house or bungalow | E31: Owned | F31: Detached; semi-detached; terraced whole house or bungalowOwned | J31: 0 | K31: =IF(F31=All_Unall2!$B$2,VLOOKUP(G31,All_Unall2!$B$5:$E$8,I31+2),IF(F31=All_Unall2!$B$10,VLOOKUP(G31,All_Unall2!$B$13:$E$16,I31+2),IF(F31=All_Unall2!$B$18,VLOOKUP(G31,All_Unall2!$B$21:$E$24,I31+2),IF(F31=All_Unall2!$B$26,VLOOKUP(G31,All_Unall2!$B$29:$E$32,I31+2),IF(F31=All_Unall2!$B$34,VLOOKUP(G31,All_Unall2!$B$37:$E$40,I31+2),IF(F31=All_Unall2!$B$42,VLOOKUP(G31,All_Unall2!$B$45:$E$48,I31+2),IF(F31=All_Unall2!$B$50,VLOOKUP(G31,All_Unall2!$B$53:$E$56,I31+2),IF(F31=All_Unall2!$B$58,VLOOKUP(G31,All_Unall2!$B$61:$E$64,I31+2),IF(F31=All_Unall2!$B$66,VLOOKUP(G31,All_Unall2!$B$69:$E$72,I31+2),IF(F31=All_Unall2!$B$74,VLOOKUP(G31,All_Unall2!$B$77:$E$80,I31+2),IF(F31=All_Unall2!$B$82,VLOOKUP(G31,All_Unall2!$B$85:$E$88,I31+2),IF(F31=All_Unall2!$B$90,VLOOKUP(G31,All_Unall2!$B$93:$E$96,I31+2),9999999)))))))))))) -> 9999999 | L31: 0 | M31: 0 | N31: 0 | O31: 0
A32: P | C32: Detached; semi-detached; terraced whole house or bungalow | E32: Owned | F32: Detached; semi-detached; terraced whole house or bungalowOwned | J32: 0 | K32: =IF(F32=All_Unall2!$B$2,VLOOKUP(G32,All_Unall2!$B$5:$E$8,I32+2),IF(F32=All_Unall2!$B$10,VLOOKUP(G32,All_Unall2!$B$13:$E$16,I32+2),IF(F32=All_Unall2!$B$18,VLOOKUP(G32,All_Unall2!$B$21:$E$24,I32+2),IF(F32=All_Unall2!$B$26,VLOOKUP(G32,All_Unall2!$B$29:$E$32,I32+2),IF(F32=All_Unall2!$B$34,VLOOKUP(G32,All_Unall2!$B$37:$E$40,I32+2),IF(F32=All_Unall2!$B$42,VLOOKUP(G32,All_Unall2!$B$45:$E$48,I32+2),IF(F32=All_Unall2!$B$50,VLOOKUP(G32,All_Unall2!$B$53:$E$56,I32+2),IF(F32=All_Unall2!$B$58,VLOOKUP(G32,All_Unall2!$B$61:$E$64,I32+2),IF(F32=All_Unall2!$B$66,VLOOKUP(G32,All_Unall2!$B$69:$E$72,I32+2),IF(F32=All_Unall2!$B$74,VLOOKUP(G32,All_Unall2!$B$77:$E$80,I32+2),IF(F32=All_Unall2!$B$82,VLOOKUP(G32,All_Unall2!$B$85:$E$88,I32+2),IF(F32=All_Unall2!$B$90,VLOOKUP(G32,All_Unall2!$B$93:$E$96,I32+2),9999999)))))))))))) -> 9999999 | L32: 0 | M32: 0 | N32: 0 | O32: 0
A33: Q | C33: Detached; semi-detached; terraced whole house or bungalow | E33: Owned | F33: Detached; semi-detached; terraced whole house or bungalowOwned | J33: 0 | K33: =IF(F33=All_Unall2!$B$2,VLOOKUP(G33,All_Unall2!$B$5:$E$8,I33+2),IF(F33=All_Unall2!$B$10,VLOOKUP(G33,All_Unall2!$B$13:$E$16,I33+2),IF(F33=All_Unall2!$B$18,VLOOKUP(G33,All_Unall2!$B$21:$E$24,I33+2),IF(F33=All_Unall2!$B$26,VLOOKUP(G33,All_Unall2!$B$29:$E$32,I33+2),IF(F33=All_Unall2!$B$34,VLOOKUP(G33,All_Unall2!$B$37:$E$40,I33+2),IF(F33=All_Unall2!$B$42,VLOOKUP(G33,All_Unall2!$B$45:$E$48,I33+2),IF(F33=All_Unall2!$B$50,VLOOKUP(G33,All_Unall2!$B$53:$E$56,I33+2),IF(F33=All_Unall2!$B$58,VLOOKUP(G33,All_Unall2!$B$61:$E$64,I33+2),IF(F33=All_Unall2!$B$66,VLOOKUP(G33,All_Unall2!$B$69:$E$72,I33+2),IF(F33=All_Unall2!$B$74,VLOOKUP(G33,All_Unall2!$B$77:$E$80,I33+2),IF(F33=All_Unall2!$B$82,VLOOKUP(G33,All_Unall2!$B$85:$E$88,I33+2),IF(F33=All_Unall2!$B$90,VLOOKUP(G33,All_Unall2!$B$93:$E$96,I33+2),9999999)))))))))))) -> 9999999 | L33: 0 | M33: 0 | N33: 0 | O33: 0
G34: Total | H34: =SUM(H17:H33) -> 0 | J34: =SUM(J17:J33) -> 0 | L34: =SUM(L17:L33) -> 0 | N34: =SUM(N17:N33) -> 0 | O34: =SUM(O17:O33) -> 0
K36: Guidance Note
K37: Further information and guidance can be found at www.cotswold.gov.uk
B38: Total Allocated Parking | D38: =SUM(J17:J33) -> 0 | E38: =SUM(J17:J33) -> 0 | G38: =D38 -> 0
B39: Total Unallocated Demand | D39: =SUMIF(L17:L33,"<>#N/A") -> 0 | E39: =SUM(L17:L33) -> 0 | G39: =D39 -> 0
B40: Total Visitor Parking | D40: =SUMIF(N17:N33,"<>#N/A") -> 0 | E40: =SUM(N17:N33) -> 0 | G40: 0
B41: Total Development Parking | D41: =SUMIF(O17:O33,"<>#N/A") -> 0 | E41: =SUM(E38:E40) -> 0 | G41: 0
B43: No. of Dwellings | D43: =H34 -> 0 | E43: =SUM(H17:H33) -> 0 | G43: =D43 -> 0
B45: Average Spaces per Dwelling | D45: =D41/D43 ->  | E45: =E41/E43 ->  | G45: =D45 -> 

Sheet Base Data Combined (hidden)
B2: Town and Fringe | C2: Shared ownership or rented (excluding living rent free) | I2: Detached; semi-detached; terraced whole house or bungalow
B3: Bedrooms/Number of Cars | C3: Number of Dwellings
C4: 0 Cars | D4: 1 Car | E4: 2 Cars | F4: 3 Cars | G4: 4+ Cars
A5: 2 | B5: 1 or 2 | C5: =SUMIFS('RAW DATA_CT0554'!N:N, 'RAW DATA_CT0554'!$H:$H,'Base Data Combined'!$A5,'RAW DATA_CT0554'!$D:$D,'Base Data Combined'!$B$2,'RAW DATA_CT0554'!$F:$F,'Base Data Combined'!$C$2,'RAW DATA_CT0554'!$E:$E,'Base Data Combined'!$I$2) -> 181 | D5: =SUMIFS('RAW DATA_CT0554'!J:J, 'RAW DATA_CT0554'!$H:$H,'Base Data Combined'!$A5,'RAW DATA_CT0554'!$D:$D,'Base Data Combined'!$B$2,'RAW DATA_CT0554'!$F:$F,'Base Data Combined'!$C$2,'RAW DATA_CT0554'!$E:$E,'Base Data Combined'!$I$2) -> 217 | E5: =SUMIFS('RAW DATA_CT0554'!K:K, 'RAW DATA_CT0554'!$H:$H,'Base Data Combined'!$A5,'RAW DATA_CT0554'!$D:$D,'Base Data Combined'!$B$2,'RAW DATA_CT0554'!$F:$F,'Base Data Combined'!$C$2,'RAW DATA_CT0554'!$E:$E,'Base Data Combined'!$I$2) -> 86 | F5: =SUMIFS('RAW DATA_CT0554'!L:L, 'RAW DATA_CT0554'!$H:$H,'Base Data Combined'!$A5,'RAW DATA_CT0554'!$D:$D,'Base Data Combined'!$B$2,'RAW DATA_CT0554'!$F:$F,'Base Data Combined'!$C$2,'RAW DATA_CT0554'!$E:$E,'Base Data Combined'!$I$2) -> 3 | G5: =SUMIFS('RAW DATA_CT0554'!M:M, 'RAW DATA_CT0554'!$H:$H,'Base Data Combined'!$A5,'RAW DATA_CT0554'!$D:$D,'Base Data Combined'!$B$2,'RAW DATA_CT0554'!$F:$F,'Base Data Combined'!$C$2,'RAW DATA_CT0554'!$E:$E,'Base Data Combined'!$I$2) -> 0
A6: 3 | B6: 3 | C6: =SUMIFS('RAW DATA_CT0554'!N:N, 'RAW DATA_CT0554'!$H:$H,'Base Data Combined'!$A6,'RAW DATA_CT0554'!$D:$D,'Base Data Combined'!$B$2,'RAW DATA_CT0554'!$F:$F,'Base Data Combined'!$C$2,'RAW DATA_CT0554'!$E:$E,'Base Data Combined'!$I$2) -> 192 | D6: =SUMIFS('RAW DATA_CT0554'!J:J, 'RAW DATA_CT0554'!$H:$H,'Base Data Combined'!$A6,'RAW DATA_CT0554'!$D:$D,'Base Data Combined'!$B$2,'RAW DATA_CT0554'!$F:$F,'Base Data Combined'!$C$2,'RAW DATA_CT0554'!$E:$E,'Base Data Combined'!$I$2) -> 405 | E6: =SUMIFS('RAW DATA_CT0554'!K:K, 'RAW DATA_CT0554'!$H:$H,'Base Data Combined'!$A6,'RAW DATA_CT0554'!$D:$D,'Base Data Combined'!$B$2,'RAW DATA_CT0554'!$F:$F,'Base Data Combined'!$C$2,'RAW DATA_CT0554'!$E:$E,'Base Data Combined'!$I$2) -> 192 | F6: =SUMIFS('RAW DATA_CT0554'!L:L, 'RAW DATA_CT0554'!$H:$H,'Base Data Combined'!$A6,'RAW DATA_CT0554'!$D:$D,'Base Data Combined'!$B$2,'RAW DATA_CT0554'!$F:$F,'Base Data Combined'!$C$2,'RAW DATA_CT0554'!$E:$E,'Base Data Combined'!$I$2) -> 49 | G6: =SUMIFS('RAW DATA_CT0554'!M:M, 'RAW DATA_CT0554'!$H:$H,'Base Data Combined'!$A6,'RAW DATA_CT0554'!$D:$D,'Base Data Combined'!$B$2,'RAW DATA_CT0554'!$F:$F,'Base Data Combined'!$C$2,'RAW DATA_CT0554'!$E:$E,'Base Data Combined'!$I$2) -> 14
A7: 4 | B7: 4 | C7: =SUMIFS('RAW DATA_CT0554'!N:N, 'RAW DATA_CT0554'!$H:$H,'Base Data Combined'!$A7,'RAW DATA_CT0554'!$D:$D,'Base Data Combined'!$B$2,'RAW DATA_CT0554'!$F:$F,'Base Data Combined'!$C$2,'RAW DATA_CT0554'!$E:$E,'Base Data Combined'!$I$2) -> 6 | D7: =SUMIFS('RAW DATA_CT0554'!J:J, 'RAW DATA_CT0554'!$H:$H,'Base Data Combined'!$A7,'RAW DATA_CT0554'!$D:$D,'Base Data Combined'!$B$2,'RAW DATA_CT0554'!$F:$F,'Base Data Combined'!$C$2,'RAW DATA_CT0554'!$E:$E,'Base Data Combined'!$I$2) -> 40 | E7: =SUMIFS('RAW DATA_CT0554'!K:K, 'RAW DATA_CT0554'!$H:$H,'Base Data Combined'!$A7,'RAW DATA_CT0554'!$D:$D,'Base Data Combined'!$B$2,'RAW DATA_CT0554'!$F:$F,'Base Data Combined'!$C$2,'RAW DATA_CT0554'!$E:$E,'Base Data Combined'!$I$2) -> 18 | F7: =SUMIFS('RAW DATA_CT0554'!L:L, 'RAW DATA_CT0554'!$H:$H,'Base Data Combined'!$A7,'RAW DATA_CT0554'!$D:$D,'Base Data Combined'!$B$2,'RAW DATA_CT0554'!$F:$F,'Base Data Combined'!$C$2,'RAW DATA_CT0554'!$E:$E,'Base Data Combined'!$I$2) -> 6 | G7: =SUMIFS('RAW DATA_CT0554'!M:M, 'RAW DATA_CT0554'!$H:$H,'Base Data Combined'!$A7,'RAW DATA_CT0554'!$D:$D,'Base Data Combined'!$B$2,'RAW DATA_CT0554'!$F:$F,'Base Data Combined'!$C$2,'RAW DATA_CT0554'!$E:$E,'Base Data Combined'!$I$2) -> 11
A8: 5 | B8: 5+ | C8: =SUMIFS('RAW DATA_CT0554'!N:N, 'RAW DATA_CT0554'!$H:$H,'Base Data Combined'!$A8,'RAW DATA_CT0554'!$D:$D,'Base Data Combined'!$B$2,'RAW DATA_CT0554'!$F:$F,'Base Data Combined'!$C$2,'RAW DATA_CT0554'!$E:$E,'Base Data Combined'!$I$2) -> 3 | D8: =SUMIFS('RAW DATA_CT0554'!J:J, 'RAW DATA_CT0554'!$H:$H,'Base Data Combined'!$A8,'RAW DATA_CT0554'!$D:$D,'Base Data Combined'!$B$2,'RAW DATA_CT0554'!$F:$F,'Base Data Combined'!$C$2,'RAW DATA_CT0554'!$E:$E,'Base Data Combined'!$I$2) -> 18 | E8: =SUMIFS('RAW DATA_CT0554'!K:K, 'RAW DATA_CT0554'!$H:$H,'Base Data Combined'!$A8,'RAW DATA_CT0554'!$D:$D,'Base Data Combined'!$B$2,'RAW DATA_CT0554'!$F:$F,'Base Data Combined'!$C$2,'RAW DATA_CT0554'!$E:$E,'Base Data Combined'!$I$2) -> 22 | F8: =SUMIFS('RAW DATA_CT0554'!L:L, 'RAW DATA_CT0554'!$H:$H,'Base Data Combined'!$A8,'RAW DATA_CT0554'!$D:$D,'Base Data Combined'!$B$2,'RAW DATA_CT0554'!$F:$F,'Base Data Combined'!$C$2,'RAW DATA_CT0554'!$E:$E,'Base Data Combined'!$I$2) -> 6 | G8: =SUMIFS('RAW DATA_CT0554'!M:M, 'RAW DATA_CT0554'!$H:$H,'Base Data Combined'!$A8,'RAW DATA_CT0554'!$D:$D,'Base Data Combined'!$B$2,'RAW DATA_CT0554'!$F:$F,'Base Data Combined'!$C$2,'RAW DATA_CT0554'!$E:$E,'Base Data Combined'!$I$2) -> 13
B10: Town and Fringe | C10: Owned | I10: Detached; semi-detached; terraced whole house or bungalow
B11: Bedrooms/Number of Cars | C11: Number of Dwellings
C12: 0 Cars | D12: 1 Car | E12: 2 Cars | F12: 3 Cars | G12: 4+ Cars
A13: 2 | B13: 1 or 2 | C13: =SUMIFS('RAW DATA_CT0554'!N:N, 'RAW DATA_CT0554'!$H:$H,'Base Data Combined'!$A13,'RAW DATA_CT0554'!$D:$D,'Base Data Combined'!$B$10,'RAW DATA_CT0554'!$F:$F,'Base Data Combined'!$C$10,'RAW DATA_CT0554'!$E:$E,'Base Data Combined'!$I$10) -> 82 | D13: =SUMIFS('RAW DATA_CT0554'!J:J, 'RAW DATA_CT0554'!$H:$H,'Base Data Combined'!$A13,'RAW DATA_CT0554'!$D:$D,'Base Data Combined'!$B$10,'RAW DATA_CT0554'!$F:$F,'Base Data Combined'!$C$10,'RAW DATA_CT0554'!$E:$E,'Base Data Combined'!$I$10) -> 208 | E13: =SUMIFS('RAW DATA_CT0554'!K:K, 'RAW DATA_CT0554'!$H:$H,'Base Data Combined'!$A13,'RAW DATA_CT0554'!$D:$D,'Base Data Combined'!$B$10,'RAW DATA_CT0554'!$F:$F,'Base Data Combined'!$C$10,'RAW DATA_CT0554'!$E:$E,'Base Data Combined'!$I$10) -> 73 | F13: =SUMIFS('RAW DATA_CT0554'!L:L, 'RAW DATA_CT0554'!$H:$H,'Base Data Combined'!$A13,'RAW DATA_CT0554'!$D:$D,'Base Data Combined'!$B$10,'RAW DATA_CT0554'!$F:$F,'Base Data Combined'!$C$10,'RAW DATA_CT0554'!$E:$E,'Base Data Combined'!$I$10) -> 9 | G13: =SUMIFS('RAW DATA_CT0554'!M:M, 'RAW DATA_CT0554'!$H:$H,'Base Data Combined'!$A13,'RAW DATA_CT0554'!$D:$D,'Base Data Combined'!$B$10,'RAW DATA_CT0554'!$F:$F,'Base Data Combined'!$C$10,'RAW DATA_CT0554'!$E:$E,'Base Data Combined'!$I$10) -> 1
A14: 3 | B14: 3 | C14: =SUMIFS('RAW DATA_CT0554'!N:N, 'RAW DATA_CT0554'!$H:$H,'Base Data Combined'!$A14,'RAW DATA_CT0554'!$D:$D,'Base Data Combined'!$B$10,'RAW DATA_CT0554'!$F:$F,'Base Data Combined'!$C$10,'RAW DATA_CT0554'!$E:$E,'Base Data Combined'!$I$10) -> 206 | D14: =SUMIFS('RAW DATA_CT0554'!J:J, 'RAW DATA_CT0554'!$H:$H,'Base Data Combined'!$A14,'RAW DATA_CT0554'!$D:$D,'Base Data Combined'!$B$10,'RAW DATA_CT0554'!$F:$F,'Base Data Combined'!$C$10,'RAW DATA_CT0554'!$E:$E,'Base Data Combined'!$I$10) -> 898 | E14: =SUMIFS('RAW DATA_CT0554'!K:K, 'RAW DATA_CT0554'!$H:$H,'Base Data Combined'!$A14,'RAW DATA_CT0554'!$D:$D,'Base Data Combined'!$B$10,'RAW DATA_CT0554'!$F:$F,'Base Data Combined'!$C$10,'RAW DATA_CT0554'!$E:$E,'Base Data Combined'!$I$10) -> 618 | F14: =SUMIFS('RAW DATA_CT0554'!L:L, 'RAW DATA_CT0554'!$H:$H,'Base Data Combined'!$A14,'RAW DATA_CT0554'!$D:$D,'Base Data Combined'!$B$10,'RAW DATA_CT0554'!$F:$F,'Base Data Combined'!$C$10,'RAW DATA_CT0554'!$E:$E,'Base Data Combined'!$I$10) -> 128 | G14: =SUMIFS('RAW DATA_CT0554'!M:M, 'RAW DATA_CT0554'!$H:$H,'Base Data Combined'!$A14,'RAW DATA_CT0554'!$D:$D,'Base Data Combined'!$B$10,'RAW DATA_CT0554'!$F:$F,'Base Data Combined'!$C$10,'RAW DATA_CT0554'!$E:$E,'Base Data Combined'!$I$10) -> 30
A15: 4 | B15: 4 | C15: =SUMIFS('RAW DATA_CT0554'!N:N, 'RAW DATA_CT0554'!$H:$H,'Base Data Combined'!$A15,'RAW DATA_CT0554'!$D:$D,'Base Data Combined'!$B$10,'RAW DATA_CT0554'!$F:$F,'Base Data Combined'!$C$10,'RAW DATA_CT0554'!$E:$E,'Base Data Combined'!$I$10) -> 29 | D15: =SUMIFS('RAW DATA_CT0554'!J:J, 'RAW DATA_CT0554'!$H:$H,'Base Data Combined'!$A15,'RAW DATA_CT0554'!$D:$D,'Base Data Combined'!$B$10,'RAW DATA_CT0554'!$F:$F,'Base Data Combined'!$C$10,'RAW DATA_CT0554'!$E:$E,'Base Data Combined'!$I$10) -> 237 | E15: =SUMIFS('RAW DATA_CT0554'!K:K, 'RAW DATA_CT0554'!$H:$H,'Base Data Combined'!$A15,'RAW DATA_CT0554'!$D:$D,'Base Data Combined'!$B$10,'RAW DATA_CT0554'!$F:$F,'Base Data Combined'!$C$10,'RAW DATA_CT0554'!$E:$E,'Base Data Combined'!$I$10) -> 261 | F15: =SUMIFS('RAW DATA_CT0554'!L:L, 'RAW DATA_CT0554'!$H:$H,'Base Data Combined'!$A15,'RAW DATA_CT0554'!$D:$D,'Base Data Combined'!$B$10,'RAW DATA_CT0554'!$F:$F,'Base Data Combined'!$C$10,'RAW DATA_CT0554'!$E:$E,'Base Data Combined'!$I$10) -> 46 | G15: =SUMIFS('RAW DATA_CT0554'!M:M, 'RAW DATA_CT0554'!$H:$H,'Base Data Combined'!$A15,'RAW DATA_CT0554'!$D:$D,'Base Data Combined'!$B$10,'RAW DATA_CT0554'!$F:$F,'Base Data Combined'!$C$10,'RAW DATA_CT0554'!$E:$E,'Base Data Combined'!$I$10) -> 19
A16: 5 | B16: 5+ | C16: =SUMIFS('RAW DATA_CT0554'!N:N, 'RAW DATA_CT0554'!$H:$H,'Base Data Combined'!$A16,'RAW DATA_CT0554'!$D:$D,'Base Data Combined'!$B$10,'RAW DATA_CT0554'!$F:$F,'Base Data Combined'!$C$10,'RAW DATA_CT0554'!$E:$E,'Base Data Combined'!$I$10) -> 23 | D16: =SUMIFS('RAW DATA_CT0554'!J:J, 'RAW DATA_CT0554'!$H:$H,'Base Data Combined'!$A16,'RAW DATA_CT0554'!$D:$D,'Base Data Combined'!$B$10,'RAW DATA_CT0554'!$F:$F,'Base Data Combined'!$C$10,'RAW DATA_CT0554'!$E:$E,'Base Data Combined'!$I$10) -> 211 | E16: =SUMIFS('RAW DATA_CT0554'!K:K, 'RAW DATA_CT0554'!$H:$H,'Base Data Combined'!$A16,'RAW DATA_CT0554'!$D:$D,'Base Data Combined'!$B$10,'RAW DATA_CT0554'!$F:$F,'Base Data Combined'!$C$10,'RAW DATA_CT0554'!$E:$E,'Base Data Combined'!$I$10) -> 426 | F16: =SUMIFS('RAW DATA_CT0554'!L:L, 'RAW DATA_CT0554'!$H:$H,'Base Data Combined'!$A16,'RAW DATA_CT0554'!$D:$D,'Base Data Combined'!$B$10,'RAW DATA_CT0554'!$F:$F,'Base Data Combined'!$C$10,'RAW DATA_CT0554'!$E:$E,'Base Data Combined'!$I$10) -> 152 | G16: =SUMIFS('RAW DATA_CT0554'!M:M, 'RAW DATA_CT0554'!$H:$H,'Base Data Combined'!$A16,'RAW DATA_CT0554'!$D:$D,'Base Data Combined'!$B$10,'RAW DATA_CT0554'!$F:$F,'Base Data Combined'!$C$10,'RAW DATA_CT0554'!$E:$E,'Base Data Combined'!$I$10) -> 45
B18: Town and Fringe | C18: Shared ownership or rented (excluding living rent free) | I18: A flat; maisonette; apartment
B19: Bedrooms/Number of Cars | C19: Number of Dwellings
C20: 0 Cars | D20: 1 Car | E20: 2 Cars | F20: 3 Cars | G20: 4+ Cars
A21: 2 | B21: 1 or 2 | C21: =SUMIFS('RAW DATA_CT0554'!N:N, 'RAW DATA_CT0554'!$H:$H,'Base Data Combined'!$A21,'RAW DATA_CT0554'!$D:$D,'Base Data Combined'!$B$18,'RAW DATA_CT0554'!$F:$F,'Base Data Combined'!$C$18,'RAW DATA_CT0554'!$E:$E,'Base Data Combined'!$I$18) -> 608 | D21: =SUMIFS('RAW DATA_CT0554'!J:J, 'RAW DATA_CT0554'!$H:$H,'Base Data Combined'!$A21,'RAW DATA_CT0554'!$D:$D,'Base Data Combined'!$B$18,'RAW DATA_CT0554'!$F:$F,'Base Data Combined'!$C$18,'RAW DATA_CT0554'!$E:$E,'Base Data Combined'!$I$18) -> 514 | E21: =SUMIFS('RAW DATA_CT0554'!K:K, 'RAW DATA_CT0554'!$H:$H,'Base Data Combined'!$A21,'RAW DATA_CT0554'!$D:$D,'Base Data Combined'!$B$18,'RAW DATA_CT0554'!$F:$F,'Base Data Combined'!$C$18,'RAW DATA_CT0554'!$E:$E,'Base Data Combined'!$I$18) -> 77 | F21: =SUMIFS('RAW DATA_CT0554'!L:L, 'RAW DATA_CT0554'!$H:$H,'Base Data Combined'!$A21,'RAW DATA_CT0554'!$D:$D,'Base Data Combined'!$B$18,'RAW DATA_CT0554'!$F:$F,'Base Data Combined'!$C$18,'RAW DATA_CT0554'!$E:$E,'Base Data Combined'!$I$18) -> 10 | G21: =SUMIFS('RAW DATA_CT0554'!M:M, 'RAW DATA_CT0554'!$H:$H,'Base Data Combined'!$A21,'RAW DATA_CT0554'!$D:$D,'Base Data Combined'!$B$18,'RAW DATA_CT0554'!$F:$F,'Base Data Combined'!$C$18,'RAW DATA_CT0554'!$E:$E,'Base Data Combined'!$I$18) -> 3
A22: 3 | B22: 3 | C22: =SUMIFS('RAW DATA_CT0554'!N:N, 'RAW DATA_CT0554'!$H:$H,'Base Data Combined'!$A22,'RAW DATA_CT0554'!$D:$D,'Base Data Combined'!$B$18,'RAW DATA_CT0554'!$F:$F,'Base Data Combined'!$C$18,'RAW DATA_CT0554'!$E:$E,'Base Data Combined'!$I$18) -> 26 | D22: =SUMIFS('RAW DATA_CT0554'!J:J, 'RAW DATA_CT0554'!$H:$H,'Base Data Combined'!$A22,'RAW DATA_CT0554'!$D:$D,'Base Data Combined'!$B$18,'RAW DATA_CT0554'!$F:$F,'Base Data Combined'!$C$18,'RAW DATA_CT0554'!$E:$E,'Base Data Combined'!$I$18) -> 31 | E22: =SUMIFS('RAW DATA_CT0554'!K:K, 'RAW DATA_CT0554'!$H:$H,'Base Data Combined'!$A22,'RAW DATA_CT0554'!$D:$D,'Base Data Combined'!$B$18,'RAW DATA_CT0554'!$F:$F,'Base Data Combined'!$C$18,'RAW DATA_CT0554'!$E:$E,'Base Data Combined'!$I$18) -> 15 | F22: =SUMIFS('RAW DATA_CT0554'!L:L, 'RAW DATA_CT0554'!$H:$H,'Base Data Combined'!$A22,'RAW DATA_CT0554'!$D:$D,'Base Data Combined'!$B$18,'RAW DATA_CT0554'!$F:$F,'Base Data Combined'!$C$18,'RAW DATA_CT0554'!$E:$E,'Base Data Combined'!$I$18) -> 0 | G22: =SUMIFS('RAW DATA_CT0554'!M:M, 'RAW DATA_CT0554'!$H:$H,'Base Data Combined'!$A22,'RAW DATA_CT0554'!$D:$D,'Base Data Combined'!$B$18,'RAW DATA_CT0554'!$F:$F,'Base Data Combined'!$C$18,'RAW DATA_CT0554'!$E:$E,'Base Data Combined'!$I$18) -> 1
A23: 4 | B23: 4 | C23: =SUMIFS('RAW DATA_CT0554'!N:N, 'RAW DATA_CT0554'!$H:$H,'Base Data Combined'!$A23,'RAW DATA_CT0554'!$D:$D,'Base Data Combined'!$B$18,'RAW DATA_CT0554'!$F:$F,'Base Data Combined'!$C$18,'RAW DATA_CT0554'!$E:$E,'Base Data Combined'!$I$18) -> 2 | D23: =SUMIFS('RAW DATA_CT0554'!J:J, 'RAW DATA_CT0554'!$H:$H,'Base Data Combined'!$A23,'RAW DATA_CT0554'!$D:$D,'Base Data Combined'!$B$18,'RAW DATA_CT0554'!$F:$F,'Base Data Combined'!$C$18,'RAW DATA_CT0554'!$E:$E,'Base Data Combined'!$I$18) -> 2 | E23: =SUMIFS('RAW DATA_CT0554'!K:K, 'RAW DATA_CT0554'!$H:$H,'Base Data Combined'!$A23,'RAW DATA_CT0554'!$D:$D,'Base Data Combined'!$B$18,'RAW DATA_CT0554'!$F:$F,'Base Data Combined'!$C$18,'RAW DATA_CT0554'!$E:$E,'Base Data Combined'!$I$18) -> 2 | F23: =SUMIFS('RAW DATA_CT0554'!L:L, 'RAW DATA_CT0554'!$H:$H,'Base Data Combined'!$A23,'RAW DATA_CT0554'!$D:$D,'Base Data Combined'!$B$18,'RAW DATA_CT0554'!$F:$F,'Base Data Combined'!$C$18,'RAW DATA_CT0554'!$E:$E,'Base Data Combined'!$I$18) -> 1 | G23: =SUMIFS('RAW DATA_CT0554'!M:M, 'RAW DATA_CT0554'!$H:$H,'Base Data Combined'!$A23,'RAW DATA_CT0554'!$D:$D,'Base Data Combined'!$B$18,'RAW DATA_CT0554'!$F:$F,'Base Data Combined'!$C$18,'RAW DATA_CT0554'!$E:$E,'Base Data Combined'!$I$18) -> 1
A24: 5 | B24: 5+ | C24: =SUMIFS('RAW DATA_CT0554'!N:N, 'RAW DATA_CT0554'!$H:$H,'Base Data Combined'!$A24,'RAW DATA_CT0554'!$D:$D,'Base Data Combined'!$B$18,'RAW DATA_CT0554'!$F:$F,'Base Data Combined'!$C$18,'RAW DATA_CT0554'!$E:$E,'Base Data Combined'!$I$18) -> 1 | D24: =SUMIFS('RAW DATA_CT0554'!J:J, 'RAW DATA_CT0554'!$H:$H,'Base Data Combined'!$A24,'RAW DATA_CT0554'!$D:$D,'Base Data Combined'!$B$18,'RAW DATA_CT0554'!$F:$F,'Base Data Combined'!$C$18,'RAW DATA_CT0554'!$E:$E,'Base Data Combined'!$I$18) -> 2 | E24: =SUMIFS('RAW DATA_CT0554'!K:K, 'RAW DATA_CT0554'!$H:$H,'Base Data Combined'!$A24,'RAW DATA_CT0554'!$D:$D,'Base Data Combined'!$B$18,'RAW DATA_CT0554'!$F:$F,'Base Data Combined'!$C$18,'RAW DATA_CT0554'!$E:$E,'Base Data Combined'!$I$18) -> 1 | F24: =SUMIFS('RAW DATA_CT0554'!L:L, 'RAW DATA_CT0554'!$H:$H,'Base Data Combined'!$A24,'RAW DATA_CT0554'!$D:$D,'Base Data Combined'!$B$18,'RAW DATA_CT0554'!$F:$F,'Base Data Combined'!$C$18,'RAW DATA_CT0554'!$E:$E,'Base Data Combined'!$I$18) -> 2 | G24: =SUMIFS('RAW DATA_CT0554'!M:M, 'RAW DATA_CT0554'!$H:$H,'Base Data Combined'!$A24,'RAW DATA_CT0554'!$D:$D,'Base Data Combined'!$B$18,'RAW DATA_CT0554'!$F:$F,'Base Data Combined'!$C$18,'RAW DATA_CT0554'!$E:$E,'Base Data Combined'!$I$18) -> 0
B26: Town and Fringe | C26: Owned | I26: A flat; maisonette; apartment
B27: Bedrooms/Number of Cars | C27: Number of Dwellings
C28: 0 Cars | D28: 1 Car | E28: 2 Cars | F28: 3 Cars | G28: 4+ Cars
A29: 2 | B29: 1 or 2 | C29: =SUMIFS('RAW DATA_CT0554'!N:N, 'RAW DATA_CT0554'!$H:$H,'Base Data Combined'!$A29,'RAW DATA_CT0554'!$D:$D,'Base Data Combined'!$B$26,'RAW DATA_CT0554'!$F:$F,'Base Data Combined'!$C$26,'RAW DATA_CT0554'!$E:$E,'Base Data Combined'!$I$26) -> 163 | D29: =SUMIFS('RAW DATA_CT0554'!J:J, 'RAW DATA_CT0554'!$H:$H,'Base Data Combined'!$A29,'RAW DATA_CT0554'!$D:$D,'Base Data Combined'!$B$26,'RAW DATA_CT0554'!$F:$F,'Base Data Combined'!$C$26,'RAW DATA_CT0554'!$E:$E,'Base Data Combined'!$I$26) -> 184 | E29: =SUMIFS('RAW DATA_CT0554'!K:K, 'RAW DATA_CT0554'!$H:$H,'Base Data Combined'!$A29,'RAW DATA_CT0554'!$D:$D,'Base Data Combined'!$B$26,'RAW DATA_CT0554'!$F:$F,'Base Data Combined'!$C$26,'RAW DATA_CT0554'!$E:$E,'Base Data Combined'!$I$26) -> 34 | F29: =SUMIFS('RAW DATA_CT0554'!L:L, 'RAW DATA_CT0554'!$H:$H,'Base Data Combined'!$A29,'RAW DATA_CT0554'!$D:$D,'Base Data Combined'!$B$26,'RAW DATA_CT0554'!$F:$F,'Base Data Combined'!$C$26,'RAW DATA_CT0554'!$E:$E,'Base Data Combined'!$I$26) -> 1 | G29: =SUMIFS('RAW DATA_CT0554'!M:M, 'RAW DATA_CT0554'!$H:$H,'Base Data Combined'!$A29,'RAW DATA_CT0554'!$D:$D,'Base Data Combined'!$B$26,'RAW DATA_CT0554'!$F:$F,'Base Data Combined'!$C$26,'RAW DATA_CT0554'!$E:$E,'Base Data Combined'!$I$26) -> 2
A30: 3 | B30: 3 | C30: =SUMIFS('RAW DATA_CT0554'!N:N, 'RAW DATA_CT0554'!$H:$H,'Base Data Combined'!$A30,'RAW DATA_CT0554'!$D:$D,'Base Data Combined'!$B$26,'RAW DATA_CT0554'!$F:$F,'Base Data Combined'!$C$26,'RAW DATA_CT0554'!$E:$E,'Base Data Combined'!$I$26) -> 11 | D30: =SUMIFS('RAW DATA_CT0554'!J:J, 'RAW DATA_CT0554'!$H:$H,'Base Data Combined'!$A30,'RAW DATA_CT0554'!$D:$D,'Base Data Combined'!$B$26,'RAW DATA_CT0554'!$F:$F,'Base Data Combined'!$C$26,'RAW DATA_CT0554'!$E:$E,'Base Data Combined'!$I$26) -> 25 | E30: =SUMIFS('RAW DATA_CT0554'!K:K, 'RAW DATA_CT0554'!$H:$H,'Base Data Combined'!$A30,'RAW DATA_CT0554'!$D:$D,'Base Data Combined'!$B$26,'RAW DATA_CT0554'!$F:$F,'Base Data Combined'!$C$26,'RAW DATA_CT0554'!$E:$E,'Base Data Combined'!$I$26) -> 6 | F30: =SUMIFS('RAW DATA_CT0554'!L:L, 'RAW DATA_CT0554'!$H:$H,'Base Data Combined'!$A30,'RAW DATA_CT0554'!$D:$D,'Base Data Combined'!$B$26,'RAW DATA_CT0554'!$F:$F,'Base Data Combined'!$C$26,'RAW DATA_CT0554'!$E:$E,'Base Data Combined'!$I$26) -> 1 | G30: =SUMIFS('RAW DATA_CT0554'!M:M, 'RAW DATA_CT0554'!$H:$H,'Base Data Combined'!$A30,'RAW DATA_CT0554'!$D:$D,'Base Data Combined'!$B$26,'RAW DATA_CT0554'!$F:$F,'Base Data Combined'!$C$26,'RAW DATA_CT0554'!$E:$E,'Base Data Combined'!$I$26) -> 0
A31: 4 | B31: 4 | C31: =SUMIFS('RAW DATA_CT0554'!N:N, 'RAW DATA_CT0554'!$H:$H,'Base Data Combined'!$A31,'RAW DATA_CT0554'!$D:$D,'Base Data Combined'!$B$26,'RAW DATA_CT0554'!$F:$F,'Base Data Combined'!$C$26,'RAW DATA_CT0554'!$E:$E,'Base Data Combined'!$I$26) -> 0 | D31: =SUMIFS('RAW DATA_CT0554'!J:J, 'RAW DATA_CT0554'!$H:$H,'Base Data Combined'!$A31,'RAW DATA_CT0554'!$D:$D,'Base Data Combined'!$B$26,'RAW DATA_CT0554'!$F:$F,'Base Data Combined'!$C$26,'RAW DATA_CT0554'!$E:$E,'Base Data Combined'!$I$26) -> 0 | E31: =SUMIFS('RAW DATA_CT0554'!K:K, 'RAW DATA_CT0554'!$H:$H,'Base Data Combined'!$A31,'RAW DATA_CT0554'!$D:$D,'Base Data Combined'!$B$26,'RAW DATA_CT0554'!$F:$F,'Base Data Combined'!$C$26,'RAW DATA_CT0554'!$E:$E,'Base Data Combined'!$I$26) -> 0 | F31: =SUMIFS('RAW DATA_CT0554'!L:L, 'RAW DATA_CT0554'!$H:$H,'Base Data Combined'!$A31,'RAW DATA_CT0554'!$D:$D,'Base Data Combined'!$B$26,'RAW DATA_CT0554'!$F:$F,'Base Data Combined'!$C$26,'RAW DATA_CT0554'!$E:$E,'Base Data Combined'!$I$26) -> 0 | G31: =SUMIFS('RAW DATA_CT0554'!M:M, 'RAW DATA_CT0554'!$H:$H,'Base Data Combined'!$A31,'RAW DATA_CT0554'!$D:$D,'Base Data Combined'!$B$26,'RAW DATA_CT0554'!$F:$F,'Base Data Combined'!$C$26,'RAW DATA_CT0554'!$E:$E,'Base Data Combined'!$I$26) -> 0
A32: 5 | B32: 5+ | C32: =SUMIFS('RAW DATA_CT0554'!N:N, 'RAW DATA_CT0554'!$H:$H,'Base Data Combined'!$A32,'RAW DATA_CT0554'!$D:$D,'Base Data Combined'!$B$26,'RAW DATA_CT0554'!$F:$F,'Base Data Combined'!$C$26,'RAW DATA_CT0554'!$E:$E,'Base Data Combined'!$I$26) -> 1 | D32: =SUMIFS('RAW DATA_CT0554'!J:J, 'RAW DATA_CT0554'!$H:$H,'Base Data Combined'!$A32,'RAW DATA_CT0554'!$D:$D,'Base Data Combined'!$B$26,'RAW DATA_CT0554'!$F:$F,'Base Data Combined'!$C$26,'RAW DATA_CT0554'!$E:$E,'Base Data Combined'!$I$26) -> 1 | E32: =SUMIFS('RAW DATA_CT0554'!K:K, 'RAW DATA_CT0554'!$H:$H,'Base Data Combined'!$A32,'RAW DATA_CT0554'!$D:$D,'Base Data Combined'!$B$26,'RAW DATA_CT0554'!$F:$F,'Base Data Combined'!$C$26,'RAW DATA_CT0554'!$E:$E,'Base Data Combined'!$I$26) -> 0 | F32: =SUMIFS('RAW DATA_CT0554'!L:L, 'RAW DATA_CT0554'!$H:$H,'Base Data Combined'!$A32,'RAW DATA_CT0554'!$D:$D,'Base Data Combined'!$B$26,'RAW DATA_CT0554'!$F:$F,'Base Data Combined'!$C$26,'RAW DATA_CT0554'!$E:$E,'Base Data Combined'!$I$26) -> 1 | G32: =SUMIFS('RAW DATA_CT0554'!M:M, 'RAW DATA_CT0554'!$H:$H,'Base Data Combined'!$A32,'RAW DATA_CT0554'!$D:$D,'Base Data Combined'!$B$26,'RAW DATA_CT0554'!$F:$F,'Base Data Combined'!$C$26,'RAW DATA_CT0554'!$E:$E,'Base Data Combined'!$I$26) -> 0
B34: Small Settlements | C34: Shared ownership or rented (excluding living rent free) | I34: Detached; semi-detached; terraced whole house or bungalow
B35: Bedrooms/Number of Cars | C35: Number of Dwellings
C36: 0 Cars | D36: 1 Car | E36: 2 Cars | F36: 3 Cars | G36: 4+ Cars
A37: 2 | B37: 1 or 2 | C37: =SUMIFS('RAW DATA_CT0554'!N:N, 'RAW DATA_CT0554'!$H:$H,'Base Data Combined'!$A37,'RAW DATA_CT0554'!$D:$D,'Base Data Combined'!$B$34,'RAW DATA_CT0554'!$F:$F,'Base Data Combined'!$C$34,'RAW DATA_CT0554'!$E:$E,'Base Data Combined'!$I$34) -> 263 | D37: =SUMIFS('RAW DATA_CT0554'!J:J, 'RAW DATA_CT0554'!$H:$H,'Base Data Combined'!$A37,'RAW DATA_CT0554'!$D:$D,'Base Data Combined'!$B$34,'RAW DATA_CT0554'!$F:$F,'Base Data Combined'!$C$34,'RAW DATA_CT0554'!$E:$E,'Base Data Combined'!$I$34) -> 511 | E37: =SUMIFS('RAW DATA_CT0554'!K:K, 'RAW DATA_CT0554'!$H:$H,'Base Data Combined'!$A37,'RAW DATA_CT0554'!$D:$D,'Base Data Combined'!$B$34,'RAW DATA_CT0554'!$F:$F,'Base Data Combined'!$C$34,'RAW DATA_CT0554'!$E:$E,'Base Data Combined'!$I$34) -> 199 | F37: =SUMIFS('RAW DATA_CT0554'!L:L, 'RAW DATA_CT0554'!$H:$H,'Base Data Combined'!$A37,'RAW DATA_CT0554'!$D:$D,'Base Data Combined'!$B$34,'RAW DATA_CT0554'!$F:$F,'Base Data Combined'!$C$34,'RAW DATA_CT0554'!$E:$E,'Base Data Combined'!$I$34) -> 14 | G37: =SUMIFS('RAW DATA_CT0554'!M:M, 'RAW DATA_CT0554'!$H:$H,'Base Data Combined'!$A37,'RAW DATA_CT0554'!$D:$D,'Base Data Combined'!$B$34,'RAW DATA_CT0554'!$F:$F,'Base Data Combined'!$C$34,'RAW DATA_CT0554'!$E:$E,'Base Data Combined'!$I$34) -> 4
A38: 3 | B38: 3 | C38: =SUMIFS('RAW DATA_CT0554'!N:N, 'RAW DATA_CT0554'!$H:$H,'Base Data Combined'!$A38,'RAW DATA_CT0554'!$D:$D,'Base Data Combined'!$B$34,'RAW DATA_CT0554'!$F:$F,'Base Data Combined'!$C$34,'RAW DATA_CT0554'!$E:$E,'Base Data Combined'!$I$34) -> 204 | D38: =SUMIFS('RAW DATA_CT0554'!J:J, 'RAW DATA_CT0554'!$H:$H,'Base Data Combined'!$A38,'RAW DATA_CT0554'!$D:$D,'Base Data Combined'!$B$34,'RAW DATA_CT0554'!$F:$F,'Base Data Combined'!$C$34,'RAW DATA_CT0554'!$E:$E,'Base Data Combined'!$I$34) -> 622 | E38: =SUMIFS('RAW DATA_CT0554'!K:K, 'RAW DATA_CT0554'!$H:$H,'Base Data Combined'!$A38,'RAW DATA_CT0554'!$D:$D,'Base Data Combined'!$B$34,'RAW DATA_CT0554'!$F:$F,'Base Data Combined'!$C$34,'RAW DATA_CT0554'!$E:$E,'Base Data Combined'!$I$34) -> 357 | F38: =SUMIFS('RAW DATA_CT0554'!L:L, 'RAW DATA_CT0554'!$H:$H,'Base Data Combined'!$A38,'RAW DATA_CT0554'!$D:$D,'Base Data Combined'!$B$34,'RAW DATA_CT0554'!$F:$F,'Base Data Combined'!$C$34,'RAW DATA_CT0554'!$E:$E,'Base Data Combined'!$I$34) -> 66 | G38: =SUMIFS('RAW DATA_CT0554'!M:M, 'RAW DATA_CT0554'!$H:$H,'Base Data Combined'!$A38,'RAW DATA_CT0554'!$D:$D,'Base Data Combined'!$B$34,'RAW DATA_CT0554'!$F:$F,'Base Data Combined'!$C$34,'RAW DATA_CT0554'!$E:$E,'Base Data Combined'!$I$34) -> 9
A39: 4 | B39: 4 | C39: =SUMIFS('RAW DATA_CT0554'!N:N, 'RAW DATA_CT0554'!$H:$H,'Base Data Combined'!$A39,'RAW DATA_CT0554'!$D:$D,'Base Data Combined'!$B$34,'RAW DATA_CT0554'!$F:$F,'Base Data Combined'!$C$34,'RAW DATA_CT0554'!$E:$E,'Base Data Combined'!$I$34) -> 11 | D39: =SUMIFS('RAW DATA_CT0554'!J:J, 'RAW DATA_CT0554'!$H:$H,'Base Data Combined'!$A39,'RAW DATA_CT0554'!$D:$D,'Base Data Combined'!$B$34,'RAW DATA_CT0554'!$F:$F,'Base Data Combined'!$C$34,'RAW DATA_CT0554'!$E:$E,'Base Data Combined'!$I$34) -> 57 | E39: =SUMIFS('RAW DATA_CT0554'!K:K, 'RAW DATA_CT0554'!$H:$H,'Base Data Combined'!$A39,'RAW DATA_CT0554'!$D:$D,'Base Data Combined'!$B$34,'RAW DATA_CT0554'!$F:$F,'Base Data Combined'!$C$34,'RAW DATA_CT0554'!$E:$E,'Base Data Combined'!$I$34) -> 58 | F39: =SUMIFS('RAW DATA_CT0554'!L:L, 'RAW DATA_CT0554'!$H:$H,'Base Data Combined'!$A39,'RAW DATA_CT0554'!$D:$D,'Base Data Combined'!$B$34,'RAW DATA_CT0554'!$F:$F,'Base Data Combined'!$C$34,'RAW DATA_CT0554'!$E:$E,'Base Data Combined'!$I$34) -> 12 | G39: =SUMIFS('RAW DATA_CT0554'!M:M, 'RAW DATA_CT0554'!$H:$H,'Base Data Combined'!$A39,'RAW DATA_CT0554'!$D:$D,'Base Data Combined'!$B$34,'RAW DATA_CT0554'!$F:$F,'Base Data Combined'!$C$34,'RAW DATA_CT0554'!$E:$E,'Base Data Combined'!$I$34) -> 1
A40: 5 | B40: 5+ | C40: =SUMIFS('RAW DATA_CT0554'!N:N, 'RAW DATA_CT0554'!$H:$H,'Base Data Combined'!$A40,'RAW DATA_CT0554'!$D:$D,'Base Data Combined'!$B$34,'RAW DATA_CT0554'!$F:$F,'Base Data Combined'!$C$34,'RAW DATA_CT0554'!$E:$E,'Base Data Combined'!$I$34) -> 11 | D40: =SUMIFS('RAW DATA_CT0554'!J:J, 'RAW DATA_CT0554'!$H:$H,'Base Data Combined'!$A40,'RAW DATA_CT0554'!$D:$D,'Base Data Combined'!$B$34,'RAW DATA_CT0554'!$F:$F,'Base Data Combined'!$C$34,'RAW DATA_CT0554'!$E:$E,'Base Data Combined'!$I$34) -> 45 | E40: =SUMIFS('RAW DATA_CT0554'!K:K, 'RAW DATA_CT0554'!$H:$H,'Base Data Combined'!$A40,'RAW DATA_CT0554'!$D:$D,'Base Data Combined'!$B$34,'RAW DATA_CT0554'!$F:$F,'Base Data Combined'!$C$34,'RAW DATA_CT0554'!$E:$E,'Base Data Combined'!$I$34) -> 53 | F40: =SUMIFS('RAW DATA_CT0554'!L:L, 'RAW DATA_CT0554'!$H:$H,'Base Data Combined'!$A40,'RAW DATA_CT0554'!$D:$D,'Base Data Combined'!$B$34,'RAW DATA_CT0554'!$F:$F,'Base Data Combined'!$C$34,'RAW DATA_CT0554'!$E:$E,'Base Data Combined'!$I$34) -> 5 | G40: =SUMIFS('RAW DATA_CT0554'!M:M, 'RAW DATA_CT0554'!$H:$H,'Base Data Combined'!$A40,'RAW DATA_CT0554'!$D:$D,'Base Data Combined'!$B$34,'RAW DATA_CT0554'!$F:$F,'Base Data Combined'!$C$34,'RAW DATA_CT0554'!$E:$E,'Base Data Combined'!$I$34) -> 6
B42: Small Settlements | C42: Owned | I42: Detached; semi-detached; terraced whole house or bungalow
B43: Bedrooms/Number of Cars | C43: Number of Dwellings
C44: 0 Cars | D44: 1 Car | E44: 2 Cars | F44: 3 Cars | G44: 4+ Cars
A45: 2 | B45: 1 or 2 | C45: =SUMIFS('RAW DATA_CT0554'!N:N, 'RAW DATA_CT0554'!$H:$H,'Base Data Combined'!$A45,'RAW DATA_CT0554'!$D:$D,'Base Data Combined'!$B$42,'RAW DATA_CT0554'!$F:$F,'Base Data Combined'!$C$42,'RAW DATA_CT0554'!$E:$E,'Base Data Combined'!$I$42) -> 110 | D45: =SUMIFS('RAW DATA_CT0554'!J:J, 'RAW DATA_CT0554'!$H:$H,'Base Data Combined'!$A45,'RAW DATA_CT0554'!$D:$D,'Base Data Combined'!$B$42,'RAW DATA_CT0554'!$F:$F,'Base Data Combined'!$C$42,'RAW DATA_CT0554'!$E:$E,'Base Data Combined'!$I$42) -> 353 | E45: =SUMIFS('RAW DATA_CT0554'!K:K, 'RAW DATA_CT0554'!$H:$H,'Base Data Combined'!$A45,'RAW DATA_CT0554'!$D:$D,'Base Data Combined'!$B$42,'RAW DATA_CT0554'!$F:$F,'Base Data Combined'!$C$42,'RAW DATA_CT0554'!$E:$E,'Base Data Combined'!$I$42) -> 154 | F45: =SUMIFS('RAW DATA_CT0554'!L:L, 'RAW DATA_CT0554'!$H:$H,'Base Data Combined'!$A45,'RAW DATA_CT0554'!$D:$D,'Base Data Combined'!$B$42,'RAW DATA_CT0554'!$F:$F,'Base Data Combined'!$C$42,'RAW DATA_CT0554'!$E:$E,'Base Data Combined'!$I$42) -> 22 | G45: =SUMIFS('RAW DATA_CT0554'!M:M, 'RAW DATA_CT0554'!$H:$H,'Base Data Combined'!$A45,'RAW DATA_CT0554'!$D:$D,'Base Data Combined'!$B$42,'RAW DATA_CT0554'!$F:$F,'Base Data Combined'!$C$42,'RAW DATA_CT0554'!$E:$E,'Base Data Combined'!$I$42) -> 3
A46: 3 | B46: 3 | C46: =SUMIFS('RAW DATA_CT0554'!N:N, 'RAW DATA_CT0554'!$H:$H,'Base Data Combined'!$A46,'RAW DATA_CT0554'!$D:$D,'Base Data Combined'!$B$42,'RAW DATA_CT0554'!$F:$F,'Base Data Combined'!$C$42,'RAW DATA_CT0554'!$E:$E,'Base Data Combined'!$I$42) -> 310 | D46: =SUMIFS('RAW DATA_CT0554'!J:J, 'RAW DATA_CT0554'!$H:$H,'Base Data Combined'!$A46,'RAW DATA_CT0554'!$D:$D,'Base Data Combined'!$B$42,'RAW DATA_CT0554'!$F:$F,'Base Data Combined'!$C$42,'RAW DATA_CT0554'!$E:$E,'Base Data Combined'!$I$42) -> 1382 | E46: =SUMIFS('RAW DATA_CT0554'!K:K, 'RAW DATA_CT0554'!$H:$H,'Base Data Combined'!$A46,'RAW DATA_CT0554'!$D:$D,'Base Data Combined'!$B$42,'RAW DATA_CT0554'!$F:$F,'Base Data Combined'!$C$42,'RAW DATA_CT0554'!$E:$E,'Base Data Combined'!$I$42) -> 936 | F46: =SUMIFS('RAW DATA_CT0554'!L:L, 'RAW DATA_CT0554'!$H:$H,'Base Data Combined'!$A46,'RAW DATA_CT0554'!$D:$D,'Base Data Combined'!$B$42,'RAW DATA_CT0554'!$F:$F,'Base Data Combined'!$C$42,'RAW DATA_CT0554'!$E:$E,'Base Data Combined'!$I$42) -> 208 | G46: =SUMIFS('RAW DATA_CT0554'!M:M, 'RAW DATA_CT0554'!$H:$H,'Base Data Combined'!$A46,'RAW DATA_CT0554'!$D:$D,'Base Data Combined'!$B$42,'RAW DATA_CT0554'!$F:$F,'Base Data Combined'!$C$42,'RAW DATA_CT0554'!$E:$E,'Base Data Combined'!$I$42) -> 67
A47: 4 | B47: 4 | C47: =SUMIFS('RAW DATA_CT0554'!N:N, 'RAW DATA_CT0554'!$H:$H,'Base Data Combined'!$A47,'RAW DATA_CT0554'!$D:$D,'Base Data Combined'!$B$42,'RAW DATA_CT0554'!$F:$F,'Base Data Combined'!$C$42,'RAW DATA_CT0554'!$E:$E,'Base Data Combined'!$I$42) -> 46 | D47: =SUMIFS('RAW DATA_CT0554'!J:J, 'RAW DATA_CT0554'!$H:$H,'Base Data Combined'!$A47,'RAW DATA_CT0554'!$D:$D,'Base Data Combined'!$B$42,'RAW DATA_CT0554'!$F:$F,'Base Data Combined'!$C$42,'RAW DATA_CT0554'!$E:$E,'Base Data Combined'!$I$42) -> 382 | E47: =SUMIFS('RAW DATA_CT0554'!K:K, 'RAW DATA_CT0554'!$H:$H,'Base Data Combined'!$A47,'RAW DATA_CT0554'!$D:$D,'Base Data Combined'!$B$42,'RAW DATA_CT0554'!$F:$F,'Base Data Combined'!$C$42,'RAW DATA_CT0554'!$E:$E,'Base Data Combined'!$I$42) -> 454 | F47: =SUMIFS('RAW DATA_CT0554'!L:L, 'RAW DATA_CT0554'!$H:$H,'Base Data Combined'!$A47,'RAW DATA_CT0554'!$D:$D,'Base Data Combined'!$B$42,'RAW DATA_CT0554'!$F:$F,'Base Data Combined'!$C$42,'RAW DATA_CT0554'!$E:$E,'Base Data Combined'!$I$42) -> 117 | G47: =SUMIFS('RAW DATA_CT0554'!M:M, 'RAW DATA_CT0554'!$H:$H,'Base Data Combined'!$A47,'RAW DATA_CT0554'!$D:$D,'Base Data Combined'!$B$42,'RAW DATA_CT0554'!$F:$F,'Base Data Combined'!$C$42,'RAW DATA_CT0554'!$E:$E,'Base Data Combined'!$I$42) -> 50
A48: 5 | B48: 5+ | C48: =SUMIFS('RAW DATA_CT0554'!N:N, 'RAW DATA_CT0554'!$H:$H,'Base Data Combined'!$A48,'RAW DATA_CT0554'!$D:$D,'Base Data Combined'!$B$42,'RAW DATA_CT0554'!$F:$F,'Base Data Combined'!$C$42,'RAW DATA_CT0554'!$E:$E,'Base Data Combined'!$I$42) -> 41 | D48: =SUMIFS('RAW DATA_CT0554'!J:J, 'RAW DATA_CT0554'!$H:$H,'Base Data Combined'!$A48,'RAW DATA_CT0554'!$D:$D,'Base Data Combined'!$B$42,'RAW DATA_CT0554'!$F:$F,'Base Data Combined'!$C$42,'RAW DATA_CT0554'!$E:$E,'Base Data Combined'!$I$42) -> 452 | E48: =SUMIFS('RAW DATA_CT0554'!K:K, 'RAW DATA_CT0554'!$H:$H,'Base Data Combined'!$A48,'RAW DATA_CT0554'!$D:$D,'Base Data Combined'!$B$42,'RAW DATA_CT0554'!$F:$F,'Base Data Combined'!$C$42,'RAW DATA_CT0554'!$E:$E,'Base Data Combined'!$I$42) -> 926 | F48: =SUMIFS('RAW DATA_CT0554'!L:L, 'RAW DATA_CT0554'!$H:$H,'Base Data Combined'!$A48,'RAW DATA_CT0554'!$D:$D,'Base Data Combined'!$B$42,'RAW DATA_CT0554'!$F:$F,'Base Data Combined'!$C$42,'RAW DATA_CT0554'!$E:$E,'Base Data Combined'!$I$42) -> 267 | G48: =SUMIFS('RAW DATA_CT0554'!M:M, 'RAW DATA_CT0554'!$H:$H,'Base Data Combined'!$A48,'RAW DATA_CT0554'!$D:$D,'Base Data Combined'!$B$42,'RAW DATA_CT0554'!$F:$F,'Base Data Combined'!$C$42,'RAW DATA_CT0554'!$E:$E,'Base Data Combined'!$I$42) -> 121
B50: Small Settlements | C50: Shared ownership or rented (excluding living rent free) | I50: A flat; maisonette; apartment
B51: Bedrooms/Number of Cars | C51: Number of Dwellings
C52: 0 Cars | D52: 1 Car | E52: 2 Cars | F52: 3 Cars | G52: 4+ Cars
A53: 2 | B53: 1 or 2 | C53: =SUMIFS('RAW DATA_CT0554'!N:N, 'RAW DATA_CT0554'!$H:$H,'Base Data Combined'!$A53,'RAW DATA_CT0554'!$D:$D,'Base Data Combined'!$B$50,'RAW DATA_CT0554'!$F:$F,'Base Data Combined'!$C$50,'RAW DATA_CT0554'!$E:$E,'Base Data Combined'!$I$50) -> 342 | D53: =SUMIFS('RAW DATA_CT0554'!J:J, 'RAW DATA_CT0554'!$H:$H,'Base Data Combined'!$A53,'RAW DATA_CT0554'!$D:$D,'Base Data Combined'!$B$50,'RAW DATA_CT0554'!$F:$F,'Base Data Combined'!$C$50,'RAW DATA_CT0554'!$E:$E,'Base Data Combined'!$I$50) -> 348 | E53: =SUMIFS('RAW DATA_CT0554'!K:K, 'RAW DATA_CT0554'!$H:$H,'Base Data Combined'!$A53,'RAW DATA_CT0554'!$D:$D,'Base Data Combined'!$B$50,'RAW DATA_CT0554'!$F:$F,'Base Data Combined'!$C$50,'RAW DATA_CT0554'!$E:$E,'Base Data Combined'!$I$50) -> 62 | F53: =SUMIFS('RAW DATA_CT0554'!L:L, 'RAW DATA_CT0554'!$H:$H,'Base Data Combined'!$A53,'RAW DATA_CT0554'!$D:$D,'Base Data Combined'!$B$50,'RAW DATA_CT0554'!$F:$F,'Base Data Combined'!$C$50,'RAW DATA_CT0554'!$E:$E,'Base Data Combined'!$I$50) -> 2 | G53: =SUMIFS('RAW DATA_CT0554'!M:M, 'RAW DATA_CT0554'!$H:$H,'Base Data Combined'!$A53,'RAW DATA_CT0554'!$D:$D,'Base Data Combined'!$B$50,'RAW DATA_CT0554'!$F:$F,'Base Data Combined'!$C$50,'RAW DATA_CT0554'!$E:$E,'Base Data Combined'!$I$50) -> 3
A54: 3 | B54: 3 | C54: =SUMIFS('RAW DATA_CT0554'!N:N, 'RAW DATA_CT0554'!$H:$H,'Base Data Combined'!$A54,'RAW DATA_CT0554'!$D:$D,'Base Data Combined'!$B$50,'RAW DATA_CT0554'!$F:$F,'Base Data Combined'!$C$50,'RAW DATA_CT0554'!$E:$E,'Base Data Combined'!$I$50) -> 13 | D54: =SUMIFS('RAW DATA_CT0554'!J:J, 'RAW DATA_CT0554'!$H:$H,'Base Data Combined'!$A54,'RAW DATA_CT0554'!$D:$D,'Base Data Combined'!$B$50,'RAW DATA_CT0554'!$F:$F,'Base Data Combined'!$C$50,'RAW DATA_CT0554'!$E:$E,'Base Data Combined'!$I$50) -> 50 | E54: =SUMIFS('RAW DATA_CT0554'!K:K, 'RAW DATA_CT0554'!$H:$H,'Base Data Combined'!$A54,'RAW DATA_CT0554'!$D:$D,'Base Data Combined'!$B$50,'RAW DATA_CT0554'!$F:$F,'Base Data Combined'!$C$50,'RAW DATA_CT0554'!$E:$E,'Base Data Combined'!$I$50) -> 14 | F54: =SUMIFS('RAW DATA_CT0554'!L:L, 'RAW DATA_CT0554'!$H:$H,'Base Data Combined'!$A54,'RAW DATA_CT0554'!$D:$D,'Base Data Combined'!$B$50,'RAW DATA_CT0554'!$F:$F,'Base Data Combined'!$C$50,'RAW DATA_CT0554'!$E:$E,'Base Data Combined'!$I$50) -> 0 | G54: =SUMIFS('RAW DATA_CT0554'!M:M, 'RAW DATA_CT0554'!$H:$H,'Base Data Combined'!$A54,'RAW DATA_CT0554'!$D:$D,'Base Data Combined'!$B$50,'RAW DATA_CT0554'!$F:$F,'Base Data Combined'!$C$50,'RAW DATA_CT0554'!$E:$E,'Base Data Combined'!$I$50) -> 1
A55: 4 | B55: 4 | C55: =SUMIFS('RAW DATA_CT0554'!N:N, 'RAW DATA_CT0554'!$H:$H,'Base Data Combined'!$A55,'RAW DATA_CT0554'!$D:$D,'Base Data Combined'!$B$50,'RAW DATA_CT0554'!$F:$F,'Base Data Combined'!$C$50,'RAW DATA_CT0554'!$E:$E,'Base Data Combined'!$I$50) -> 1 | D55: =SUMIFS('RAW DATA_CT0554'!J:J, 'RAW DATA_CT0554'!$H:$H,'Base Data Combined'!$A55,'RAW DATA_CT0554'!$D:$D,'Base Data Combined'!$B$50,'RAW DATA_CT0554'!$F:$F,'Base Data Combined'!$C$50,'RAW DATA_CT0554'!$E:$E,'Base Data Combined'!$I$50) -> 2 | E55: =SUMIFS('RAW DATA_CT0554'!K:K, 'RAW DATA_CT0554'!$H:$H,'Base Data Combined'!$A55,'RAW DATA_CT0554'!$D:$D,'Base Data Combined'!$B$50,'RAW DATA_CT0554'!$F:$F,'Base Data Combined'!$C$50,'RAW DATA_CT0554'!$E:$E,'Base Data Combined'!$I$50) -> 2 | F55: =SUMIFS('RAW DATA_CT0554'!L:L, 'RAW DATA_CT0554'!$H:$H,'Base Data Combined'!$A55,'RAW DATA_CT0554'!$D:$D,'Base Data Combined'!$B$50,'RAW DATA_CT0554'!$F:$F,'Base Data Combined'!$C$50,'RAW DATA_CT0554'!$E:$E,'Base Data Combined'!$I$50) -> 0 | G55: =SUMIFS('RAW DATA_CT0554'!M:M, 'RAW DATA_CT0554'!$H:$H,'Base Data Combined'!$A55,'RAW DATA_CT0554'!$D:$D,'Base Data Combined'!$B$50,'RAW DATA_CT0554'!$F:$F,'Base Data Combined'!$C$50,'RAW DATA_CT0554'!$E:$E,'Base Data Combined'!$I$50) -> 0
A56: 5 | B56: 5+ | C56: =SUMIFS('RAW DATA_CT0554'!N:N, 'RAW DATA_CT0554'!$H:$H,'Base Data Combined'!$A56,'RAW DATA_CT0554'!$D:$D,'Base Data Combined'!$B$50,'RAW DATA_CT0554'!$F:$F,'Base Data Combined'!$C$50,'RAW DATA_CT0554'!$E:$E,'Base Data Combined'!$I$50) -> 4 | D56: =SUMIFS('RAW DATA_CT0554'!J:J, 'RAW DATA_CT0554'!$H:$H,'Base Data Combined'!$A56,'RAW DATA_CT0554'!$D:$D,'Base Data Combined'!$B$50,'RAW DATA_CT0554'!$F:$F,'Base Data Combined'!$C$50,'RAW DATA_CT0554'!$E:$E,'Base Data Combined'!$I$50) -> 1 | E56: =SUMIFS('RAW DATA_CT0554'!K:K, 'RAW DATA_CT0554'!$H:$H,'Base Data Combined'!$A56,'RAW DATA_CT0554'!$D:$D,'Base Data Combined'!$B$50,'RAW DATA_CT0554'!$F:$F,'Base Data Combined'!$C$50,'RAW DATA_CT0554'!$E:$E,'Base Data Combined'!$I$50) -> 2 | F56: =SUMIFS('RAW DATA_CT0554'!L:L, 'RAW DATA_CT0554'!$H:$H,'Base Data Combined'!$A56,'RAW DATA_CT0554'!$D:$D,'Base Data Combined'!$B$50,'RAW DATA_CT0554'!$F:$F,'Base Data Combined'!$C$50,'RAW DATA_CT0554'!$E:$E,'Base Data Combined'!$I$50) -> 0 | G56: =SUMIFS('RAW DATA_CT0554'!M:M, 'RAW DATA_CT0554'!$H:$H,'Base Data Combined'!$A56,'RAW DATA_CT0554'!$D:$D,'Base Data Combined'!$B$50,'RAW DATA_CT0554'!$F:$F,'Base Data Combined'!$C$50,'RAW DATA_CT0554'!$E:$E,'Base Data Combined'!$I$50) -> 0
B58: Small Settlements | C58: Owned | I58: A flat; maisonette; apartment
B59: Bedrooms/Number of Cars | C59: Number of Dwellings
C60: 0 Cars | D60: 1 Car | E60: 2 Cars | F60: 3 Cars | G60: 4+ Cars
A61: 2 | B61: 1 or 2 | C61: =SUMIFS('RAW DATA_CT0554'!N:N, 'RAW DATA_CT0554'!$H:$H,'Base Data Combined'!$A61,'RAW DATA_CT0554'!$D:$D,'Base Data Combined'!$B$58,'RAW DATA_CT0554'!$F:$F,'Base Data Combined'!$C$58,'RAW DATA_CT0554'!$E:$E,'Base Data Combined'!$I$58) -> 54 | D61: =SUMIFS('RAW DATA_CT0554'!J:J, 'RAW DATA_CT0554'!$H:$H,'Base Data Combined'!$A61,'RAW DATA_CT0554'!$D:$D,'Base Data Combined'!$B$58,'RAW DATA_CT0554'!$F:$F,'Base Data Combined'!$C$58,'RAW DATA_CT0554'!$E:$E,'Base Data Combined'!$I$58) -> 121 | E61: =SUMIFS('RAW DATA_CT0554'!K:K, 'RAW DATA_CT0554'!$H:$H,'Base Data Combined'!$A61,'RAW DATA_CT0554'!$D:$D,'Base Data Combined'!$B$58,'RAW DATA_CT0554'!$F:$F,'Base Data Combined'!$C$58,'RAW DATA_CT0554'!$E:$E,'Base Data Combined'!$I$58) -> 34 | F61: =SUMIFS('RAW DATA_CT0554'!L:L, 'RAW DATA_CT0554'!$H:$H,'Base Data Combined'!$A61,'RAW DATA_CT0554'!$D:$D,'Base Data Combined'!$B$58,'RAW DATA_CT0554'!$F:$F,'Base Data Combined'!$C$58,'RAW DATA_CT0554'!$E:$E,'Base Data Combined'!$I$58) -> 6 | G61: =SUMIFS('RAW DATA_CT0554'!M:M, 'RAW DATA_CT0554'!$H:$H,'Base Data Combined'!$A61,'RAW DATA_CT0554'!$D:$D,'Base Data Combined'!$B$58,'RAW DATA_CT0554'!$F:$F,'Base Data Combined'!$C$58,'RAW DATA_CT0554'!$E:$E,'Base Data Combined'!$I$58) -> 1
A62: 3 | B62: 3 | C62: =SUMIFS('RAW DATA_CT0554'!N:N, 'RAW DATA_CT0554'!$H:$H,'Base Data Combined'!$A62,'RAW DATA_CT0554'!$D:$D,'Base Data Combined'!$B$58,'RAW DATA_CT0554'!$F:$F,'Base Data Combined'!$C$58,'RAW DATA_CT0554'!$E:$E,'Base Data Combined'!$I$58) -> 6 | D62: =SUMIFS('RAW DATA_CT0554'!J:J, 'RAW DATA_CT0554'!$H:$H,'Base Data Combined'!$A62,'RAW DATA_CT0554'!$D:$D,'Base Data Combined'!$B$58,'RAW DATA_CT0554'!$F:$F,'Base Data Combined'!$C$58,'RAW DATA_CT0554'!$E:$E,'Base Data Combined'!$I$58) -> 34 | E62: =SUMIFS('RAW DATA_CT0554'!K:K, 'RAW DATA_CT0554'!$H:$H,'Base Data Combined'!$A62,'RAW DATA_CT0554'!$D:$D,'Base Data Combined'!$B$58,'RAW DATA_CT0554'!$F:$F,'Base Data Combined'!$C$58,'RAW DATA_CT0554'!$E:$E,'Base Data Combined'!$I$58) -> 15 | F62: =SUMIFS('RAW DATA_CT0554'!L:L, 'RAW DATA_CT0554'!$H:$H,'Base Data Combined'!$A62,'RAW DATA_CT0554'!$D:$D,'Base Data Combined'!$B$58,'RAW DATA_CT0554'!$F:$F,'Base Data Combined'!$C$58,'RAW DATA_CT0554'!$E:$E,'Base Data Combined'!$I$58) -> 3 | G62: =SUMIFS('RAW DATA_CT0554'!M:M, 'RAW DATA_CT0554'!$H:$H,'Base Data Combined'!$A62,'RAW DATA_CT0554'!$D:$D,'Base Data Combined'!$B$58,'RAW DATA_CT0554'!$F:$F,'Base Data Combined'!$C$58,'RAW DATA_CT0554'!$E:$E,'Base Data Combined'!$I$58) -> 1
A63: 4 | B63: 4 | C63: =SUMIFS('RAW DATA_CT0554'!N:N, 'RAW DATA_CT0554'!$H:$H,'Base Data Combined'!$A63,'RAW DATA_CT0554'!$D:$D,'Base Data Combined'!$B$58,'RAW DATA_CT0554'!$F:$F,'Base Data Combined'!$C$58,'RAW DATA_CT0554'!$E:$E,'Base Data Combined'!$I$58) -> 0 | D63: =SUMIFS('RAW DATA_CT0554'!J:J, 'RAW DATA_CT0554'!$H:$H,'Base Data Combined'!$A63,'RAW DATA_CT0554'!$D:$D,'Base Data Combined'!$B$58,'RAW DATA_CT0554'!$F:$F,'Base Data Combined'!$C$58,'RAW DATA_CT0554'!$E:$E,'Base Data Combined'!$I$58) -> 3 | E63: =SUMIFS('RAW DATA_CT0554'!K:K, 'RAW DATA_CT0554'!$H:$H,'Base Data Combined'!$A63,'RAW DATA_CT0554'!$D:$D,'Base Data Combined'!$B$58,'RAW DATA_CT0554'!$F:$F,'Base Data Combined'!$C$58,'RAW DATA_CT0554'!$E:$E,'Base Data Combined'!$I$58) -> 2 | F63: =SUMIFS('RAW DATA_CT0554'!L:L, 'RAW DATA_CT0554'!$H:$H,'Base Data Combined'!$A63,'RAW DATA_CT0554'!$D:$D,'Base Data Combined'!$B$58,'RAW DATA_CT0554'!$F:$F,'Base Data Combined'!$C$58,'RAW DATA_CT0554'!$E:$E,'Base Data Combined'!$I$58) -> 2 | G63: =SUMIFS('RAW DATA_CT0554'!M:M, 'RAW DATA_CT0554'!$H:$H,'Base Data Combined'!$A63,'RAW DATA_CT0554'!$D:$D,'Base Data Combined'!$B$58,'RAW DATA_CT0554'!$F:$F,'Base Data Combined'!$C$58,'RAW DATA_CT0554'!$E:$E,'Base Data Combined'!$I$58) -> 0
A64: 5 | B64: 5+ | C64: =SUMIFS('RAW DATA_CT0554'!N:N, 'RAW DATA_CT0554'!$H:$H,'Base Data Combined'!$A64,'RAW DATA_CT0554'!$D:$D,'Base Data Combined'!$B$58,'RAW DATA_CT0554'!$F:$F,'Base Data Combined'!$C$58,'RAW DATA_CT0554'!$E:$E,'Base Data Combined'!$I$58) -> 1 | D64: =SUMIFS('RAW DATA_CT0554'!J:J, 'RAW DATA_CT0554'!$H:$H,'Base Data Combined'!$A64,'RAW DATA_CT0554'!$D:$D,'Base Data Combined'!$B$58,'RAW DATA_CT0554'!$F:$F,'Base Data Combined'!$C$58,'RAW DATA_CT0554'!$E:$E,'Base Data Combined'!$I$58) -> 1 | E64: =SUMIFS('RAW DATA_CT0554'!K:K, 'RAW DATA_CT0554'!$H:$H,'Base Data Combined'!$A64,'RAW DATA_CT0554'!$D:$D,'Base Data Combined'!$B$58,'RAW DATA_CT0554'!$F:$F,'Base Data Combined'!$C$58,'RAW DATA_CT0554'!$E:$E,'Base Data Combined'!$I$58) -> 6 | F64: =SUMIFS('RAW DATA_CT0554'!L:L, 'RAW DATA_CT0554'!$H:$H,'Base Data Combined'!$A64,'RAW DATA_CT0554'!$D:$D,'Base Data Combined'!$B$58,'RAW DATA_CT0554'!$F:$F,'Base Data Combined'!$C$58,'RAW DATA_CT0554'!$E:$E,'Base Data Combined'!$I$58) -> 2 | G64: =SUMIFS('RAW DATA_CT0554'!M:M, 'RAW DATA_CT0554'!$H:$H,'Base Data Combined'!$A64,'RAW DATA_CT0554'!$D:$D,'Base Data Combined'!$B$58,'RAW DATA_CT0554'!$F:$F,'Base Data Combined'!$C$58,'RAW DATA_CT0554'!$E:$E,'Base Data Combined'!$I$58) -> 1
B66: Rural | C66: Shared ownership or rented (excluding living rent free) | I66: Detached; semi-detached; terraced whole house or bungalow
B67: Bedrooms/Number of Cars | C67: Number of Dwellings
C68: 0 Cars | D68: 1 Car | E68: 2 Cars | F68: 3 Cars | G68: 4+ Cars
A69: 2 | B69: 1 or 2 | C69: =SUMIFS('RAW DATA_CT0554'!N:N, 'RAW DATA_CT0554'!$H:$H,'Base Data Combined'!$A69,'RAW DATA_CT0554'!$D:$D,'Base Data Combined'!$B$66,'RAW DATA_CT0554'!$F:$F,'Base Data Combined'!$C$66,'RAW DATA_CT0554'!$E:$E,'Base Data Combined'!$I$66) -> 256 | D69: =SUMIFS('RAW DATA_CT0554'!J:J, 'RAW DATA_CT0554'!$H:$H,'Base Data Combined'!$A69,'RAW DATA_CT0554'!$D:$D,'Base Data Combined'!$B$66,'RAW DATA_CT0554'!$F:$F,'Base Data Combined'!$C$66,'RAW DATA_CT0554'!$E:$E,'Base Data Combined'!$I$66) -> 803 | E69: =SUMIFS('RAW DATA_CT0554'!K:K, 'RAW DATA_CT0554'!$H:$H,'Base Data Combined'!$A69,'RAW DATA_CT0554'!$D:$D,'Base Data Combined'!$B$66,'RAW DATA_CT0554'!$F:$F,'Base Data Combined'!$C$66,'RAW DATA_CT0554'!$E:$E,'Base Data Combined'!$I$66) -> 320 | F69: =SUMIFS('RAW DATA_CT0554'!L:L, 'RAW DATA_CT0554'!$H:$H,'Base Data Combined'!$A69,'RAW DATA_CT0554'!$D:$D,'Base Data Combined'!$B$66,'RAW DATA_CT0554'!$F:$F,'Base Data Combined'!$C$66,'RAW DATA_CT0554'!$E:$E,'Base Data Combined'!$I$66) -> 40 | G69: =SUMIFS('RAW DATA_CT0554'!M:M, 'RAW DATA_CT0554'!$H:$H,'Base Data Combined'!$A69,'RAW DATA_CT0554'!$D:$D,'Base Data Combined'!$B$66,'RAW DATA_CT0554'!$F:$F,'Base Data Combined'!$C$66,'RAW DATA_CT0554'!$E:$E,'Base Data Combined'!$I$66) -> 7
A70: 3 | B70: 3 | C70: =SUMIFS('RAW DATA_CT0554'!N:N, 'RAW DATA_CT0554'!$H:$H,'Base Data Combined'!$A70,'RAW DATA_CT0554'!$D:$D,'Base Data Combined'!$B$66,'RAW DATA_CT0554'!$F:$F,'Base Data Combined'!$C$66,'RAW DATA_CT0554'!$E:$E,'Base Data Combined'!$I$66) -> 235 | D70: =SUMIFS('RAW DATA_CT0554'!J:J, 'RAW DATA_CT0554'!$H:$H,'Base Data Combined'!$A70,'RAW DATA_CT0554'!$D:$D,'Base Data Combined'!$B$66,'RAW DATA_CT0554'!$F:$F,'Base Data Combined'!$C$66,'RAW DATA_CT0554'!$E:$E,'Base Data Combined'!$I$66) -> 1038 | E70: =SUMIFS('RAW DATA_CT0554'!K:K, 'RAW DATA_CT0554'!$H:$H,'Base Data Combined'!$A70,'RAW DATA_CT0554'!$D:$D,'Base Data Combined'!$B$66,'RAW DATA_CT0554'!$F:$F,'Base Data Combined'!$C$66,'RAW DATA_CT0554'!$E:$E,'Base Data Combined'!$I$66) -> 826 | F70: =SUMIFS('RAW DATA_CT0554'!L:L, 'RAW DATA_CT0554'!$H:$H,'Base Data Combined'!$A70,'RAW DATA_CT0554'!$D:$D,'Base Data Combined'!$B$66,'RAW DATA_CT0554'!$F:$F,'Base Data Combined'!$C$66,'RAW DATA_CT0554'!$E:$E,'Base Data Combined'!$I$66) -> 183 | G70: =SUMIFS('RAW DATA_CT0554'!M:M, 'RAW DATA_CT0554'!$H:$H,'Base Data Combined'!$A70,'RAW DATA_CT0554'!$D:$D,'Base Data Combined'!$B$66,'RAW DATA_CT0554'!$F:$F,'Base Data Combined'!$C$66,'RAW DATA_CT0554'!$E:$E,'Base Data Combined'!$I$66) -> 64
A71: 4 | B71: 4 | C71: =SUMIFS('RAW DATA_CT0554'!N:N, 'RAW DATA_CT0554'!$H:$H,'Base Data Combined'!$A71,'RAW DATA_CT0554'!$D:$D,'Base Data Combined'!$B$66,'RAW DATA_CT0554'!$F:$F,'Base Data Combined'!$C$66,'RAW DATA_CT0554'!$E:$E,'Base Data Combined'!$I$66) -> 17 | D71: =SUMIFS('RAW DATA_CT0554'!J:J, 'RAW DATA_CT0554'!$H:$H,'Base Data Combined'!$A71,'RAW DATA_CT0554'!$D:$D,'Base Data Combined'!$B$66,'RAW DATA_CT0554'!$F:$F,'Base Data Combined'!$C$66,'RAW DATA_CT0554'!$E:$E,'Base Data Combined'!$I$66) -> 119 | E71: =SUMIFS('RAW DATA_CT0554'!K:K, 'RAW DATA_CT0554'!$H:$H,'Base Data Combined'!$A71,'RAW DATA_CT0554'!$D:$D,'Base Data Combined'!$B$66,'RAW DATA_CT0554'!$F:$F,'Base Data Combined'!$C$66,'RAW DATA_CT0554'!$E:$E,'Base Data Combined'!$I$66) -> 165 | F71: =SUMIFS('RAW DATA_CT0554'!L:L, 'RAW DATA_CT0554'!$H:$H,'Base Data Combined'!$A71,'RAW DATA_CT0554'!$D:$D,'Base Data Combined'!$B$66,'RAW DATA_CT0554'!$F:$F,'Base Data Combined'!$C$66,'RAW DATA_CT0554'!$E:$E,'Base Data Combined'!$I$66) -> 50 | G71: =SUMIFS('RAW DATA_CT0554'!M:M, 'RAW DATA_CT0554'!$H:$H,'Base Data Combined'!$A71,'RAW DATA_CT0554'!$D:$D,'Base Data Combined'!$B$66,'RAW DATA_CT0554'!$F:$F,'Base Data Combined'!$C$66,'RAW DATA_CT0554'!$E:$E,'Base Data Combined'!$I$66) -> 9
A72: 5 | B72: 5+ | C72: =SUMIFS('RAW DATA_CT0554'!N:N, 'RAW DATA_CT0554'!$H:$H,'Base Data Combined'!$A72,'RAW DATA_CT0554'!$D:$D,'Base Data Combined'!$B$66,'RAW DATA_CT0554'!$F:$F,'Base Data Combined'!$C$66,'RAW DATA_CT0554'!$E:$E,'Base Data Combined'!$I$66) -> 22 | D72: =SUMIFS('RAW DATA_CT0554'!J:J, 'RAW DATA_CT0554'!$H:$H,'Base Data Combined'!$A72,'RAW DATA_CT0554'!$D:$D,'Base Data Combined'!$B$66,'RAW DATA_CT0554'!$F:$F,'Base Data Combined'!$C$66,'RAW DATA_CT0554'!$E:$E,'Base Data Combined'!$I$66) -> 95 | E72: =SUMIFS('RAW DATA_CT0554'!K:K, 'RAW DATA_CT0554'!$H:$H,'Base Data Combined'!$A72,'RAW DATA_CT0554'!$D:$D,'Base Data Combined'!$B$66,'RAW DATA_CT0554'!$F:$F,'Base Data Combined'!$C$66,'RAW DATA_CT0554'!$E:$E,'Base Data Combined'!$I$66) -> 220 | F72: =SUMIFS('RAW DATA_CT0554'!L:L, 'RAW DATA_CT0554'!$H:$H,'Base Data Combined'!$A72,'RAW DATA_CT0554'!$D:$D,'Base Data Combined'!$B$66,'RAW DATA_CT0554'!$F:$F,'Base Data Combined'!$C$66,'RAW DATA_CT0554'!$E:$E,'Base Data Combined'!$I$66) -> 94 | G72: =SUMIFS('RAW DATA_CT0554'!M:M, 'RAW DATA_CT0554'!$H:$H,'Base Data Combined'!$A72,'RAW DATA_CT0554'!$D:$D,'Base Data Combined'!$B$66,'RAW DATA_CT0554'!$F:$F,'Base Data Combined'!$C$66,'RAW DATA_CT0554'!$E:$E,'Base Data Combined'!$I$66) -> 48
B74: Rural | C74: Owned | I74: Detached; semi-detached; terraced whole house or bungalow
B75: Bedrooms/Number of Cars | C75: Number of Dwellings
C76: 0 Cars | D76: 1 Car | E76: 2 Cars | F76: 3 Cars | G76: 4+ Cars
A77: 2 | B77: 1 or 2 | C77: =SUMIFS('RAW DATA_CT0554'!N:N, 'RAW DATA_CT0554'!$H:$H,'Base Data Combined'!$A77,'RAW DATA_CT0554'!$D:$D,'Base Data Combined'!$B$74,'RAW DATA_CT0554'!$F:$F,'Base Data Combined'!$C$74,'RAW DATA_CT0554'!$E:$E,'Base Data Combined'!$I$74) -> 147 | D77: =SUMIFS('RAW DATA_CT0554'!J:J, 'RAW DATA_CT0554'!$H:$H,'Base Data Combined'!$A77,'RAW DATA_CT0554'!$D:$D,'Base Data Combined'!$B$74,'RAW DATA_CT0554'!$F:$F,'Base Data Combined'!$C$74,'RAW DATA_CT0554'!$E:$E,'Base Data Combined'!$I$74) -> 563 | E77: =SUMIFS('RAW DATA_CT0554'!K:K, 'RAW DATA_CT0554'!$H:$H,'Base Data Combined'!$A77,'RAW DATA_CT0554'!$D:$D,'Base Data Combined'!$B$74,'RAW DATA_CT0554'!$F:$F,'Base Data Combined'!$C$74,'RAW DATA_CT0554'!$E:$E,'Base Data Combined'!$I$74) -> 235 | F77: =SUMIFS('RAW DATA_CT0554'!L:L, 'RAW DATA_CT0554'!$H:$H,'Base Data Combined'!$A77,'RAW DATA_CT0554'!$D:$D,'Base Data Combined'!$B$74,'RAW DATA_CT0554'!$F:$F,'Base Data Combined'!$C$74,'RAW DATA_CT0554'!$E:$E,'Base Data Combined'!$I$74) -> 55 | G77: =SUMIFS('RAW DATA_CT0554'!M:M, 'RAW DATA_CT0554'!$H:$H,'Base Data Combined'!$A77,'RAW DATA_CT0554'!$D:$D,'Base Data Combined'!$B$74,'RAW DATA_CT0554'!$F:$F,'Base Data Combined'!$C$74,'RAW DATA_CT0554'!$E:$E,'Base Data Combined'!$I$74) -> 20 | Q77: =34824*8 -> 278592
A78: 3 | B78: 3 | C78: =SUMIFS('RAW DATA_CT0554'!N:N, 'RAW DATA_CT0554'!$H:$H,'Base Data Combined'!$A78,'RAW DATA_CT0554'!$D:$D,'Base Data Combined'!$B$74,'RAW DATA_CT0554'!$F:$F,'Base Data Combined'!$C$74,'RAW DATA_CT0554'!$E:$E,'Base Data Combined'!$I$74) -> 349 | D78: =SUMIFS('RAW DATA_CT0554'!J:J, 'RAW DATA_CT0554'!$H:$H,'Base Data Combined'!$A78,'RAW DATA_CT0554'!$D:$D,'Base Data Combined'!$B$74,'RAW DATA_CT0554'!$F:$F,'Base Data Combined'!$C$74,'RAW DATA_CT0554'!$E:$E,'Base Data Combined'!$I$74) -> 1897 | E78: =SUMIFS('RAW DATA_CT0554'!K:K, 'RAW DATA_CT0554'!$H:$H,'Base Data Combined'!$A78,'RAW DATA_CT0554'!$D:$D,'Base Data Combined'!$B$74,'RAW DATA_CT0554'!$F:$F,'Base Data Combined'!$C$74,'RAW DATA_CT0554'!$E:$E,'Base Data Combined'!$I$74) -> 1561 | F78: =SUMIFS('RAW DATA_CT0554'!L:L, 'RAW DATA_CT0554'!$H:$H,'Base Data Combined'!$A78,'RAW DATA_CT0554'!$D:$D,'Base Data Combined'!$B$74,'RAW DATA_CT0554'!$F:$F,'Base Data Combined'!$C$74,'RAW DATA_CT0554'!$E:$E,'Base Data Combined'!$I$74) -> 394 | G78: =SUMIFS('RAW DATA_CT0554'!M:M, 'RAW DATA_CT0554'!$H:$H,'Base Data Combined'!$A78,'RAW DATA_CT0554'!$D:$D,'Base Data Combined'!$B$74,'RAW DATA_CT0554'!$F:$F,'Base Data Combined'!$C$74,'RAW DATA_CT0554'!$E:$E,'Base Data Combined'!$I$74) -> 122
A79: 4 | B79: 4 | C79: =SUMIFS('RAW DATA_CT0554'!N:N, 'RAW DATA_CT0554'!$H:$H,'Base Data Combined'!$A79,'RAW DATA_CT0554'!$D:$D,'Base Data Combined'!$B$74,'RAW DATA_CT0554'!$F:$F,'Base Data Combined'!$C$74,'RAW DATA_CT0554'!$E:$E,'Base Data Combined'!$I$74) -> 76 | D79: =SUMIFS('RAW DATA_CT0554'!J:J, 'RAW DATA_CT0554'!$H:$H,'Base Data Combined'!$A79,'RAW DATA_CT0554'!$D:$D,'Base Data Combined'!$B$74,'RAW DATA_CT0554'!$F:$F,'Base Data Combined'!$C$74,'RAW DATA_CT0554'!$E:$E,'Base Data Combined'!$I$74) -> 691 | E79: =SUMIFS('RAW DATA_CT0554'!K:K, 'RAW DATA_CT0554'!$H:$H,'Base Data Combined'!$A79,'RAW DATA_CT0554'!$D:$D,'Base Data Combined'!$B$74,'RAW DATA_CT0554'!$F:$F,'Base Data Combined'!$C$74,'RAW DATA_CT0554'!$E:$E,'Base Data Combined'!$I$74) -> 1003 | F79: =SUMIFS('RAW DATA_CT0554'!L:L, 'RAW DATA_CT0554'!$H:$H,'Base Data Combined'!$A79,'RAW DATA_CT0554'!$D:$D,'Base Data Combined'!$B$74,'RAW DATA_CT0554'!$F:$F,'Base Data Combined'!$C$74,'RAW DATA_CT0554'!$E:$E,'Base Data Combined'!$I$74) -> 281 | G79: =SUMIFS('RAW DATA_CT0554'!M:M, 'RAW DATA_CT0554'!$H:$H,'Base Data Combined'!$A79,'RAW DATA_CT0554'!$D:$D,'Base Data Combined'!$B$74,'RAW DATA_CT0554'!$F:$F,'Base Data Combined'!$C$74,'RAW DATA_CT0554'!$E:$E,'Base Data Combined'!$I$74) -> 99
A80: 5 | B80: 5+ | C80: =SUMIFS('RAW DATA_CT0554'!N:N, 'RAW DATA_CT0554'!$H:$H,'Base Data Combined'!$A80,'RAW DATA_CT0554'!$D:$D,'Base Data Combined'!$B$74,'RAW DATA_CT0554'!$F:$F,'Base Data Combined'!$C$74,'RAW DATA_CT0554'!$E:$E,'Base Data Combined'!$I$74) -> 60 | D80: =SUMIFS('RAW DATA_CT0554'!J:J, 'RAW DATA_CT0554'!$H:$H,'Base Data Combined'!$A80,'RAW DATA_CT0554'!$D:$D,'Base Data Combined'!$B$74,'RAW DATA_CT0554'!$F:$F,'Base Data Combined'!$C$74,'RAW DATA_CT0554'!$E:$E,'Base Data Combined'!$I$74) -> 911 | E80: =SUMIFS('RAW DATA_CT0554'!K:K, 'RAW DATA_CT0554'!$H:$H,'Base Data Combined'!$A80,'RAW DATA_CT0554'!$D:$D,'Base Data Combined'!$B$74,'RAW DATA_CT0554'!$F:$F,'Base Data Combined'!$C$74,'RAW DATA_CT0554'!$E:$E,'Base Data Combined'!$I$74) -> 2521 | F80: =SUMIFS('RAW DATA_CT0554'!L:L, 'RAW DATA_CT0554'!$H:$H,'Base Data Combined'!$A80,'RAW DATA_CT0554'!$D:$D,'Base Data Combined'!$B$74,'RAW DATA_CT0554'!$F:$F,'Base Data Combined'!$C$74,'RAW DATA_CT0554'!$E:$E,'Base Data Combined'!$I$74) -> 983 | G80: =SUMIFS('RAW DATA_CT0554'!M:M, 'RAW DATA_CT0554'!$H:$H,'Base Data Combined'!$A80,'RAW DATA_CT0554'!$D:$D,'Base Data Combined'!$B$74,'RAW DATA_CT0554'!$F:$F,'Base Data Combined'!$C$74,'RAW DATA_CT0554'!$E:$E,'Base Data Combined'!$I$74) -> 540
B82: Rural | C82: Shared ownership or rented (excluding living rent free) | I82: A flat; maisonette; apartment
B83: Bedrooms/Number of Cars | C83: Number of Dwellings
C84: 0 Cars | D84: 1 Car | E84: 2 Cars | F84: 3 Cars | G84: 4+ Cars
A85: 2 | B85: 1 or 2 | C85: =SUMIFS('RAW DATA_CT0554'!N:N, 'RAW DATA_CT0554'!$H:$H,'Base Data Combined'!$A85,'RAW DATA_CT0554'!$D:$D,'Base Data Combined'!$B$82,'RAW DATA_CT0554'!$F:$F,'Base Data Combined'!$C$82,'RAW DATA_CT0554'!$E:$E,'Base Data Combined'!$I$82) -> 149 | D85: =SUMIFS('RAW DATA_CT0554'!J:J, 'RAW DATA_CT0554'!$H:$H,'Base Data Combined'!$A85,'RAW DATA_CT0554'!$D:$D,'Base Data Combined'!$B$82,'RAW DATA_CT0554'!$F:$F,'Base Data Combined'!$C$82,'RAW DATA_CT0554'!$E:$E,'Base Data Combined'!$I$82) -> 247 | E85: =SUMIFS('RAW DATA_CT0554'!K:K, 'RAW DATA_CT0554'!$H:$H,'Base Data Combined'!$A85,'RAW DATA_CT0554'!$D:$D,'Base Data Combined'!$B$82,'RAW DATA_CT0554'!$F:$F,'Base Data Combined'!$C$82,'RAW DATA_CT0554'!$E:$E,'Base Data Combined'!$I$82) -> 74 | F85: =SUMIFS('RAW DATA_CT0554'!L:L, 'RAW DATA_CT0554'!$H:$H,'Base Data Combined'!$A85,'RAW DATA_CT0554'!$D:$D,'Base Data Combined'!$B$82,'RAW DATA_CT0554'!$F:$F,'Base Data Combined'!$C$82,'RAW DATA_CT0554'!$E:$E,'Base Data Combined'!$I$82) -> 9 | G85: =SUMIFS('RAW DATA_CT0554'!M:M, 'RAW DATA_CT0554'!$H:$H,'Base Data Combined'!$A85,'RAW DATA_CT0554'!$D:$D,'Base Data Combined'!$B$82,'RAW DATA_CT0554'!$F:$F,'Base Data Combined'!$C$82,'RAW DATA_CT0554'!$E:$E,'Base Data Combined'!$I$82) -> 6
A86: 3 | B86: 3 | C86: =SUMIFS('RAW DATA_CT0554'!N:N, 'RAW DATA_CT0554'!$H:$H,'Base Data Combined'!$A86,'RAW DATA_CT0554'!$D:$D,'Base Data Combined'!$B$82,'RAW DATA_CT0554'!$F:$F,'Base Data Combined'!$C$82,'RAW DATA_CT0554'!$E:$E,'Base Data Combined'!$I$82) -> 8 | D86: =SUMIFS('RAW DATA_CT0554'!J:J, 'RAW DATA_CT0554'!$H:$H,'Base Data Combined'!$A86,'RAW DATA_CT0554'!$D:$D,'Base Data Combined'!$B$82,'RAW DATA_CT0554'!$F:$F,'Base Data Combined'!$C$82,'RAW DATA_CT0554'!$E:$E,'Base Data Combined'!$I$82) -> 36 | E86: =SUMIFS('RAW DATA_CT0554'!K:K, 'RAW DATA_CT0554'!$H:$H,'Base Data Combined'!$A86,'RAW DATA_CT0554'!$D:$D,'Base Data Combined'!$B$82,'RAW DATA_CT0554'!$F:$F,'Base Data Combined'!$C$82,'RAW DATA_CT0554'!$E:$E,'Base Data Combined'!$I$82) -> 18 | F86: =SUMIFS('RAW DATA_CT0554'!L:L, 'RAW DATA_CT0554'!$H:$H,'Base Data Combined'!$A86,'RAW DATA_CT0554'!$D:$D,'Base Data Combined'!$B$82,'RAW DATA_CT0554'!$F:$F,'Base Data Combined'!$C$82,'RAW DATA_CT0554'!$E:$E,'Base Data Combined'!$I$82) -> 2 | G86: =SUMIFS('RAW DATA_CT0554'!M:M, 'RAW DATA_CT0554'!$H:$H,'Base Data Combined'!$A86,'RAW DATA_CT0554'!$D:$D,'Base Data Combined'!$B$82,'RAW DATA_CT0554'!$F:$F,'Base Data Combined'!$C$82,'RAW DATA_CT0554'!$E:$E,'Base Data Combined'!$I$82) -> 3
A87: 4 | B87: 4 | C87: =SUMIFS('RAW DATA_CT0554'!N:N, 'RAW DATA_CT0554'!$H:$H,'Base Data Combined'!$A87,'RAW DATA_CT0554'!$D:$D,'Base Data Combined'!$B$82,'RAW DATA_CT0554'!$F:$F,'Base Data Combined'!$C$82,'RAW DATA_CT0554'!$E:$E,'Base Data Combined'!$I$82) -> 2 | D87: =SUMIFS('RAW DATA_CT0554'!J:J, 'RAW DATA_CT0554'!$H:$H,'Base Data Combined'!$A87,'RAW DATA_CT0554'!$D:$D,'Base Data Combined'!$B$82,'RAW DATA_CT0554'!$F:$F,'Base Data Combined'!$C$82,'RAW DATA_CT0554'!$E:$E,'Base Data Combined'!$I$82) -> 4 | E87: =SUMIFS('RAW DATA_CT0554'!K:K, 'RAW DATA_CT0554'!$H:$H,'Base Data Combined'!$A87,'RAW DATA_CT0554'!$D:$D,'Base Data Combined'!$B$82,'RAW DATA_CT0554'!$F:$F,'Base Data Combined'!$C$82,'RAW DATA_CT0554'!$E:$E,'Base Data Combined'!$I$82) -> 3 | F87: =SUMIFS('RAW DATA_CT0554'!L:L, 'RAW DATA_CT0554'!$H:$H,'Base Data Combined'!$A87,'RAW DATA_CT0554'!$D:$D,'Base Data Combined'!$B$82,'RAW DATA_CT0554'!$F:$F,'Base Data Combined'!$C$82,'RAW DATA_CT0554'!$E:$E,'Base Data Combined'!$I$82) -> 0 | G87: =SUMIFS('RAW DATA_CT0554'!M:M, 'RAW DATA_CT0554'!$H:$H,'Base Data Combined'!$A87,'RAW DATA_CT0554'!$D:$D,'Base Data Combined'!$B$82,'RAW DATA_CT0554'!$F:$F,'Base Data Combined'!$C$82,'RAW DATA_CT0554'!$E:$E,'Base Data Combined'!$I$82) -> 2
A88: 5 | B88: 5+ | C88: =SUMIFS('RAW DATA_CT0554'!N:N, 'RAW DATA_CT0554'!$H:$H,'Base Data Combined'!$A88,'RAW DATA_CT0554'!$D:$D,'Base Data Combined'!$B$82,'RAW DATA_CT0554'!$F:$F,'Base Data Combined'!$C$82,'RAW DATA_CT0554'!$E:$E,'Base Data Combined'!$I$82) -> 2 | D88: =SUMIFS('RAW DATA_CT0554'!J:J, 'RAW DATA_CT0554'!$H:$H,'Base Data Combined'!$A88,'RAW DATA_CT0554'!$D:$D,'Base Data Combined'!$B$82,'RAW DATA_CT0554'!$F:$F,'Base Data Combined'!$C$82,'RAW DATA_CT0554'!$E:$E,'Base Data Combined'!$I$82) -> 2 | E88: =SUMIFS('RAW DATA_CT0554'!K:K, 'RAW DATA_CT0554'!$H:$H,'Base Data Combined'!$A88,'RAW DATA_CT0554'!$D:$D,'Base Data Combined'!$B$82,'RAW DATA_CT0554'!$F:$F,'Base Data Combined'!$C$82,'RAW DATA_CT0554'!$E:$E,'Base Data Combined'!$I$82) -> 3 | F88: =SUMIFS('RAW DATA_CT0554'!L:L, 'RAW DATA_CT0554'!$H:$H,'Base Data Combined'!$A88,'RAW DATA_CT0554'!$D:$D,'Base Data Combined'!$B$82,'RAW DATA_CT0554'!$F:$F,'Base Data Combined'!$C$82,'RAW DATA_CT0554'!$E:$E,'Base Data Combined'!$I$82) -> 0 | G88: =SUMIFS('RAW DATA_CT0554'!M:M, 'RAW DATA_CT0554'!$H:$H,'Base Data Combined'!$A88,'RAW DATA_CT0554'!$D:$D,'Base Data Combined'!$B$82,'RAW DATA_CT0554'!$F:$F,'Base Data Combined'!$C$82,'RAW DATA_CT0554'!$E:$E,'Base Data Combined'!$I$82) -> 1
B90: Rural | C90: Owned | I90: A flat; maisonette; apartment
B91: Bedrooms/Number of Cars | C91: Number of Dwellings
C92: 0 Cars | D92: 1 Car | E92: 2 Cars | F92: 3 Cars | G92: 4+ Cars
A93: 2 | B93: 1 or 2 | C93: =SUMIFS('RAW DATA_CT0554'!N:N, 'RAW DATA_CT0554'!$H:$H,'Base Data Combined'!$A93,'RAW DATA_CT0554'!$D:$D,'Base Data Combined'!$B$90,'RAW DATA_CT0554'!$F:$F,'Base Data Combined'!$C$90,'RAW DATA_CT0554'!$E:$E,'Base Data Combined'!$I$90) -> 25 | D93: =SUMIFS('RAW DATA_CT0554'!J:J, 'RAW DATA_CT0554'!$H:$H,'Base Data Combined'!$A93,'RAW DATA_CT0554'!$D:$D,'Base Data Combined'!$B$90,'RAW DATA_CT0554'!$F:$F,'Base Data Combined'!$C$90,'RAW DATA_CT0554'!$E:$E,'Base Data Combined'!$I$90) -> 55 | E93: =SUMIFS('RAW DATA_CT0554'!K:K, 'RAW DATA_CT0554'!$H:$H,'Base Data Combined'!$A93,'RAW DATA_CT0554'!$D:$D,'Base Data Combined'!$B$90,'RAW DATA_CT0554'!$F:$F,'Base Data Combined'!$C$90,'RAW DATA_CT0554'!$E:$E,'Base Data Combined'!$I$90) -> 16 | F93: =SUMIFS('RAW DATA_CT0554'!L:L, 'RAW DATA_CT0554'!$H:$H,'Base Data Combined'!$A93,'RAW DATA_CT0554'!$D:$D,'Base Data Combined'!$B$90,'RAW DATA_CT0554'!$F:$F,'Base Data Combined'!$C$90,'RAW DATA_CT0554'!$E:$E,'Base Data Combined'!$I$90) -> 4 | G93: =SUMIFS('RAW DATA_CT0554'!M:M, 'RAW DATA_CT0554'!$H:$H,'Base Data Combined'!$A93,'RAW DATA_CT0554'!$D:$D,'Base Data Combined'!$B$90,'RAW DATA_CT0554'!$F:$F,'Base Data Combined'!$C$90,'RAW DATA_CT0554'!$E:$E,'Base Data Combined'!$I$90) -> 0
A94: 3 | B94: 3 | C94: =SUMIFS('RAW DATA_CT0554'!N:N, 'RAW DATA_CT0554'!$H:$H,'Base Data Combined'!$A94,'RAW DATA_CT0554'!$D:$D,'Base Data Combined'!$B$90,'RAW DATA_CT0554'!$F:$F,'Base Data Combined'!$C$90,'RAW DATA_CT0554'!$E:$E,'Base Data Combined'!$I$90) -> 7 | D94: =SUMIFS('RAW DATA_CT0554'!J:J, 'RAW DATA_CT0554'!$H:$H,'Base Data Combined'!$A94,'RAW DATA_CT0554'!$D:$D,'Base Data Combined'!$B$90,'RAW DATA_CT0554'!$F:$F,'Base Data Combined'!$C$90,'RAW DATA_CT0554'!$E:$E,'Base Data Combined'!$I$90) -> 29 | E94: =SUMIFS('RAW DATA_CT0554'!K:K, 'RAW DATA_CT0554'!$H:$H,'Base Data Combined'!$A94,'RAW DATA_CT0554'!$D:$D,'Base Data Combined'!$B$90,'RAW DATA_CT0554'!$F:$F,'Base Data Combined'!$C$90,'RAW DATA_CT0554'!$E:$E,'Base Data Combined'!$I$90) -> 14 | F94: =SUMIFS('RAW DATA_CT0554'!L:L, 'RAW DATA_CT0554'!$H:$H,'Base Data Combined'!$A94,'RAW DATA_CT0554'!$D:$D,'Base Data Combined'!$B$90,'RAW DATA_CT0554'!$F:$F,'Base Data Combined'!$C$90,'RAW DATA_CT0554'!$E:$E,'Base Data Combined'!$I$90) -> 2 | G94: =SUMIFS('RAW DATA_CT0554'!M:M, 'RAW DATA_CT0554'!$H:$H,'Base Data Combined'!$A94,'RAW DATA_CT0554'!$D:$D,'Base Data Combined'!$B$90,'RAW DATA_CT0554'!$F:$F,'Base Data Combined'!$C$90,'RAW DATA_CT0554'!$E:$E,'Base Data Combined'!$I$90) -> 1
A95: 4 | B95: 4 | C95: =SUMIFS('RAW DATA_CT0554'!N:N, 'RAW DATA_CT0554'!$H:$H,'Base Data Combined'!$A95,'RAW DATA_CT0554'!$D:$D,'Base Data Combined'!$B$90,'RAW DATA_CT0554'!$F:$F,'Base Data Combined'!$C$90,'RAW DATA_CT0554'!$E:$E,'Base Data Combined'!$I$90) -> 1 | D95: =SUMIFS('RAW DATA_CT0554'!J:J, 'RAW DATA_CT0554'!$H:$H,'Base Data Combined'!$A95,'RAW DATA_CT0554'!$D:$D,'Base Data Combined'!$B$90,'RAW DATA_CT0554'!$F:$F,'Base Data Combined'!$C$90,'RAW DATA_CT0554'!$E:$E,'Base Data Combined'!$I$90) -> 2 | E95: =SUMIFS('RAW DATA_CT0554'!K:K, 'RAW DATA_CT0554'!$H:$H,'Base Data Combined'!$A95,'RAW DATA_CT0554'!$D:$D,'Base Data Combined'!$B$90,'RAW DATA_CT0554'!$F:$F,'Base Data Combined'!$C$90,'RAW DATA_CT0554'!$E:$E,'Base Data Combined'!$I$90) -> 1 | F95: =SUMIFS('RAW DATA_CT0554'!L:L, 'RAW DATA_CT0554'!$H:$H,'Base Data Combined'!$A95,'RAW DATA_CT0554'!$D:$D,'Base Data Combined'!$B$90,'RAW DATA_CT0554'!$F:$F,'Base Data Combined'!$C$90,'RAW DATA_CT0554'!$E:$E,'Base Data Combined'!$I$90) -> 1 | G95: =SUMIFS('RAW DATA_CT0554'!M:M, 'RAW DATA_CT0554'!$H:$H,'Base Data Combined'!$A95,'RAW DATA_CT0554'!$D:$D,'Base Data Combined'!$B$90,'RAW DATA_CT0554'!$F:$F,'Base Data Combined'!$C$90,'RAW DATA_CT0554'!$E:$E,'Base Data Combined'!$I$90) -> 0
A96: 5 | B96: 5+ | C96: =SUMIFS('RAW DATA_CT0554'!N:N, 'RAW DATA_CT0554'!$H:$H,'Base Data Combined'!$A96,'RAW DATA_CT0554'!$D:$D,'Base Data Combined'!$B$90,'RAW DATA_CT0554'!$F:$F,'Base Data Combined'!$C$90,'RAW DATA_CT0554'!$E:$E,'Base Data Combined'!$I$90) -> 0 | D96: =SUMIFS('RAW DATA_CT0554'!J:J, 'RAW DATA_CT0554'!$H:$H,'Base Data Combined'!$A96,'RAW DATA_CT0554'!$D:$D,'Base Data Combined'!$B$90,'RAW DATA_CT0554'!$F:$F,'Base Data Combined'!$C$90,'RAW DATA_CT0554'!$E:$E,'Base Data Combined'!$I$90) -> 6 | E96: =SUMIFS('RAW DATA_CT0554'!K:K, 'RAW DATA_CT0554'!$H:$H,'Base Data Combined'!$A96,'RAW DATA_CT0554'!$D:$D,'Base Data Combined'!$B$90,'RAW DATA_CT0554'!$F:$F,'Base Data Combined'!$C$90,'RAW DATA_CT0554'!$E:$E,'Base Data Combined'!$I$90) -> 5 | F96: =SUMIFS('RAW DATA_CT0554'!L:L, 'RAW DATA_CT0554'!$H:$H,'Base Data Combined'!$A96,'RAW DATA_CT0554'!$D:$D,'Base Data Combined'!$B$90,'RAW DATA_CT0554'!$F:$F,'Base Data Combined'!$C$90,'RAW DATA_CT0554'!$E:$E,'Base Data Combined'!$I$90) -> 2 | G96: =SUMIFS('RAW DATA_CT0554'!M:M, 'RAW DATA_CT0554'!$H:$H,'Base Data Combined'!$A96,'RAW DATA_CT0554'!$D:$D,'Base Data Combined'!$B$90,'RAW DATA_CT0554'!$F:$F,'Base Data Combined'!$C$90,'RAW DATA_CT0554'!$E:$E,'Base Data Combined'!$I$90) -> 1

Sheet Growth (hidden)
B2: Town and Fringe | C2: Shared ownership or rented (excluding living rent free) | I2: Detached; semi-detached; terraced whole house or bungalow | Q2: TEMPRO
B3: Bedrooms/Number of Cars | C3: Number of Dwellings | Q3: Area Description | R3: Area Name | S3: No Car | T3: 1 Car | U3: 2 Cars | V3: 3+ Cars | W3: Total Cars
C4: 0 Cars | D4: 1 Car | E4: 2 Cars | F4: 3 Cars | G4: 4+ Cars | Q4: Authority | R4: Cotswold | S4: 0.895 | T4: 1.0647 | U4: 1.071 | V4: 1.1293 | W4: 1.0826
A5: 2 | B5: 1 or 2 | C5: ='Base Data Combined'!C5*Growth!$S$4 -> 161.995 | D5: ='Base Data Combined'!D5*Growth!$T$4 -> 231.0399 | E5: ='Base Data Combined'!E5*Growth!$U$4 -> 92.106 | F5: ='Base Data Combined'!F5*Growth!$V$4 -> 3.3879 | G5: ='Base Data Combined'!G5*Growth!$W$4 -> 0
A6: 3 | B6: 3 | C6: ='Base Data Combined'!C6*Growth!$S$4 -> 171.84 | D6: ='Base Data Combined'!D6*Growth!$T$4 -> 431.2035 | E6: ='Base Data Combined'!E6*Growth!$U$4 -> 205.632 | F6: ='Base Data Combined'!F6*Growth!$V$4 -> 55.3357 | G6: ='Base Data Combined'!G6*Growth!$W$4 -> 15.1564
A7: 4 | B7: 4 | C7: ='Base Data Combined'!C7*Growth!$S$4 -> 5.37 | D7: ='Base Data Combined'!D7*Growth!$T$4 -> 42.588 | E7: ='Base Data Combined'!E7*Growth!$U$4 -> 19.278 | F7: ='Base Data Combined'!F7*Growth!$V$4 -> 6.7758 | G7: ='Base Data Combined'!G7*Growth!$W$4 -> 11.9086
A8: 5 | B8: 5+ | C8: ='Base Data Combined'!C8*Growth!$S$4 -> 2.685 | D8: ='Base Data Combined'!D8*Growth!$T$4 -> 19.1646 | E8: ='Base Data Combined'!E8*Growth!$U$4 -> 23.562 | F8: ='Base Data Combined'!F8*Growth!$V$4 -> 6.7758 | G8: ='Base Data Combined'!G8*Growth!$W$4 -> 14.0738
B10: Town and Fringe | C10: Owned | I10: Detached; semi-detached; terraced whole house or bungalow
B11: Bedrooms/Number of Cars | C11: Number of Dwellings
C12: 0 Cars | D12: 1 Car | E12: 2 Cars | F12: 3 Cars | G12: 4+ Cars
A13: 2 | B13: 1 or 2 | C13: ='Base Data Combined'!C13*Growth!$S$4 -> 73.39 | D13: ='Base Data Combined'!D13*Growth!$T$4 -> 221.4576 | E13: ='Base Data Combined'!E13*Growth!$U$4 -> 78.183 | F13: ='Base Data Combined'!F13*Growth!$V$4 -> 10.1637 | G13: ='Base Data Combined'!G13*Growth!$W$4 -> 1.0826
A14: 3 | B14: 3 | C14: ='Base Data Combined'!C14*Growth!$S$4 -> 184.37 | D14: ='Base Data Combined'!D14*Growth!$T$4 -> 956.1006 | E14: ='Base Data Combined'!E14*Growth!$U$4 -> 661.878 | F14: ='Base Data Combined'!F14*Growth!$V$4 -> 144.5504 | G14: ='Base Data Combined'!G14*Growth!$W$4 -> 32.478
A15: 4 | B15: 4 | C15: ='Base Data Combined'!C15*Growth!$S$4 -> 25.955 | D15: ='Base Data Combined'!D15*Growth!$T$4 -> 252.3339 | E15: ='Base Data Combined'!E15*Growth!$U$4 -> 279.531 | F15: ='Base Data Combined'!F15*Growth!$V$4 -> 51.9478 | G15: ='Base Data Combined'!G15*Growth!$W$4 -> 20.5694
A16: 5 | B16: 5+ | C16: ='Base Data Combined'!C16*Growth!$S$4 -> 20.585 | D16: ='Base Data Combined'!D16*Growth!$T$4 -> 224.6517 | E16: ='Base Data Combined'!E16*Growth!$U$4 -> 456.246 | F16: ='Base Data Combined'!F16*Growth!$V$4 -> 171.6536 | G16: ='Base Data Combined'!G16*Growth!$W$4 -> 48.717
B18: Town and Fringe | C18: Shared ownership or rented (excluding living rent free) | I18: A flat; maisonette; apartment
B19: Bedrooms/Number of Cars | C19: Number of Dwellings
C20: 0 Cars | D20: 1 Car | E20: 2 Cars | F20: 3 Cars | G20: 4+ Cars
A21: 2 | B21: 1 or 2 | C21: ='Base Data Combined'!C21*Growth!$S$4 -> 544.16 | D21: ='Base Data Combined'!D21*Growth!$T$4 -> 547.2558 | E21: ='Base Data Combined'!E21*Growth!$U$4 -> 82.467 | F21: ='Base Data Combined'!F21*Growth!$V$4 -> 11.293 | G21: ='Base Data Combined'!G21*Growth!$W$4 -> 3.2478
A22: 3 | B22: 3 | C22: ='Base Data Combined'!C22*Growth!$S$4 -> 23.27 | D22: ='Base Data Combined'!D22*Growth!$T$4 -> 33.0057 | E22: ='Base Data Combined'!E22*Growth!$U$4 -> 16.065 | F22: ='Base Data Combined'!F22*Growth!$V$4 -> 0 | G22: ='Base Data Combined'!G22*Growth!$W$4 -> 1.0826
A23: 4 | B23: 4 | C23: ='Base Data Combined'!C23*Growth!$S$4 -> 1.79 | D23: ='Base Data Combined'!D23*Growth!$T$4 -> 2.1294 | E23: ='Base Data Combined'!E23*Growth!$U$4 -> 2.142 | F23: ='Base Data Combined'!F23*Growth!$V$4 -> 1.1293 | G23: ='Base Data Combined'!G23*Growth!$W$4 -> 1.0826
A24: 5 | B24: 5+ | C24: ='Base Data Combined'!C24*Growth!$S$4 -> 0.895 | D24: ='Base Data Combined'!D24*Growth!$T$4 -> 2.1294 | E24: ='Base Data Combined'!E24*Growth!$U$4 -> 1.071 | F24: ='Base Data Combined'!F24*Growth!$V$4 -> 2.2586 | G24: ='Base Data Combined'!G24*Growth!$W$4 -> 0
B26: Town and Fringe | C26: Owned | I26: A flat; maisonette; apartment
B27: Bedrooms/Number of Cars | C27: Number of Dwellings
C28: 0 Cars | D28: 1 Car | E28: 2 Cars | F28: 3 Cars | G28: 4+ Cars
A29: 2 | B29: 1 or 2 | C29: ='Base Data Combined'!C29*Growth!$S$4 -> 145.885 | D29: ='Base Data Combined'!D29*Growth!$T$4 -> 195.9048 | E29: ='Base Data Combined'!E29*Growth!$U$4 -> 36.414 | F29: ='Base Data Combined'!F29*Growth!$V$4 -> 1.1293 | G29: ='Base Data Combined'!G29*Growth!$W$4 -> 2.1652
A30: 3 | B30: 3 | C30: ='Base Data Combined'!C30*Growth!$S$4 -> 9.845 | D30: ='Base Data Combined'!D30*Growth!$T$4 -> 26.6175 | E30: ='Base Data Combined'!E30*Growth!$U$4 -> 6.426 | F30: ='Base Data Combined'!F30*Growth!$V$4 -> 1.1293 | G30: ='Base Data Combined'!G30*Growth!$W$4 -> 0
A31: 4 | B31: 4 | C31: ='Base Data Combined'!C31*Growth!$S$4 -> 0 | D31: ='Base Data Combined'!D31*Growth!$T$4 -> 0 | E31: ='Base Data Combined'!E31*Growth!$U$4 -> 0 | F31: ='Base Data Combined'!F31*Growth!$V$4 -> 0 | G31: ='Base Data Combined'!G31*Growth!$W$4 -> 0
A32: 5 | B32: 5+ | C32: ='Base Data Combined'!C32*Growth!$S$4 -> 0.895 | D32: ='Base Data Combined'!D32*Growth!$T$4 -> 1.0647 | E32: ='Base Data Combined'!E32*Growth!$U$4 -> 0 | F32: ='Base Data Combined'!F32*Growth!$V$4 -> 1.1293 | G32: ='Base Data Combined'!G32*Growth!$W$4 -> 0
B34: Small Settlements | C34: Shared ownership or rented (excluding living rent free) | I34: Detached; semi-detached; terraced whole house or bungalow
B35: Bedrooms/Number of Cars | C35: Number of Dwellings
C36: 0 Cars | D36: 1 Car | E36: 2 Cars | F36: 3 Cars | G36: 4+ Cars
A37: 2 | B37: 1 or 2 | C37: ='Base Data Combined'!C37*Growth!$S$4 -> 235.385 | D37: ='Base Data Combined'!D37*Growth!$T$4 -> 544.0617 | E37: ='Base Data Combined'!E37*Growth!$U$4 -> 213.129 | F37: ='Base Data Combined'!F37*Growth!$V$4 -> 15.8102 | G37: ='Base Data Combined'!G37*Growth!$W$4 -> 4.3304
A38: 3 | B38: 3 | C38: ='Base Data Combined'!C38*Growth!$S$4 -> 182.58 | D38: ='Base Data Combined'!D38*Growth!$T$4 -> 662.2434 | E38: ='Base Data Combined'!E38*Growth!$U$4 -> 382.347 | F38: ='Base Data Combined'!F38*Growth!$V$4 -> 74.5338 | G38: ='Base Data Combined'!G38*Growth!$W$4 -> 9.7434
A39: 4 | B39: 4 | C39: ='Base Data Combined'!C39*Growth!$S$4 -> 9.845 | D39: ='Base Data Combined'!D39*Growth!$T$4 -> 60.6879 | E39: ='Base Data Combined'!E39*Growth!$U$4 -> 62.118 | F39: ='Base Data Combined'!F39*Growth!$V$4 -> 13.5516 | G39: ='Base Data Combined'!G39*Growth!$W$4 -> 1.0826
A40: 5 | B40: 5+ | C40: ='Base Data Combined'!C40*Growth!$S$4 -> 9.845 | D40: ='Base Data Combined'!D40*Growth!$T$4 -> 47.9115 | E40: ='Base Data Combined'!E40*Growth!$U$4 -> 56.763 | F40: ='Base Data Combined'!F40*Growth!$V$4 -> 5.6465 | G40: ='Base Data Combined'!G40*Growth!$W$4 -> 6.4956
B42: Small Settlements | C42: Owned | I42: Detached; semi-detached; terraced whole house or bungalow
B43: Bedrooms/Number of Cars | C43: Number of Dwellings
C44: 0 Cars | D44: 1 Car | E44: 2 Cars | F44: 3 Cars | G44: 4+ Cars
A45: 2 | B45: 1 or 2 | C45: ='Base Data Combined'!C45*Growth!$S$4 -> 98.45 | D45: ='Base Data Combined'!D45*Growth!$T$4 -> 375.8391 | E45: ='Base Data Combined'!E45*Growth!$U$4 -> 164.934 | F45: ='Base Data Combined'!F45*Growth!$V$4 -> 24.8446 | G45: ='Base Data Combined'!G45*Growth!$W$4 -> 3.2478
A46: 3 | B46: 3 | C46: ='Base Data Combined'!C46*Growth!$S$4 -> 277.45 | D46: ='Base Data Combined'!D46*Growth!$T$4 -> 1471.4154 | E46: ='Base Data Combined'!E46*Growth!$U$4 -> 1002.456 | F46: ='Base Data Combined'!F46*Growth!$V$4 -> 234.8944 | G46: ='Base Data Combined'!G46*Growth!$W$4 -> 72.5342
A47: 4 | B47: 4 | C47: ='Base Data Combined'!C47*Growth!$S$4 -> 41.17 | D47: ='Base Data Combined'!D47*Growth!$T$4 -> 406.7154 | E47: ='Base Data Combined'!E47*Growth!$U$4 -> 486.234 | F47: ='Base Data Combined'!F47*Growth!$V$4 -> 132.1281 | G47: ='Base Data Combined'!G47*Growth!$W$4 -> 54.13
A48: 5 | B48: 5+ | C48: ='Base Data Combined'!C48*Growth!$S$4 -> 36.695 | D48: ='Base Data Combined'!D48*Growth!$T$4 -> 481.2444 | E48: ='Base Data Combined'!E48*Growth!$U$4 -> 991.746 | F48: ='Base Data Combined'!F48*Growth!$V$4 -> 301.5231 | G48: ='Base Data Combined'!G48*Growth!$W$4 -> 130.9946
B50: Small Settlements | C50: Shared ownership or rented (excluding living rent free) | I50: A flat; maisonette; apartment
B51: Bedrooms/Number of Cars | C51: Number of Dwellings
C52: 0 Cars | D52: 1 Car | E52: 2 Cars | F52: 3 Cars | G52: 4+ Cars
A53: 2 | B53: 1 or 2 | C53: ='Base Data Combined'!C53*Growth!$S$4 -> 306.09 | D53: ='Base Data Combined'!D53*Growth!$T$4 -> 370.5156 | E53: ='Base Data Combined'!E53*Growth!$U$4 -> 66.402 | F53: ='Base Data Combined'!F53*Growth!$V$4 -> 2.2586 | G53: ='Base Data Combined'!G53*Growth!$W$4 -> 3.2478
A54: 3 | B54: 3 | C54: ='Base Data Combined'!C54*Growth!$S$4 -> 11.635 | D54: ='Base Data Combined'!D54*Growth!$T$4 -> 53.235 | E54: ='Base Data Combined'!E54*Growth!$U$4 -> 14.994 | F54: ='Base Data Combined'!F54*Growth!$V$4 -> 0 | G54: ='Base Data Combined'!G54*Growth!$W$4 -> 1.0826
A55: 4 | B55: 4 | C55: ='Base Data Combined'!C55*Growth!$S$4 -> 0.895 | D55: ='Base Data Combined'!D55*Growth!$T$4 -> 2.1294 | E55: ='Base Data Combined'!E55*Growth!$U$4 -> 2.142 | F55: ='Base Data Combined'!F55*Growth!$V$4 -> 0 | G55: ='Base Data Combined'!G55*Growth!$W$4 -> 0
A56: 5 | B56: 5+ | C56: ='Base Data Combined'!C56*Growth!$S$4 -> 3.58 | D56: ='Base Data Combined'!D56*Growth!$T$4 -> 1.0647 | E56: ='Base Data Combined'!E56*Growth!$U$4 -> 2.142 | F56: ='Base Data Combined'!F56*Growth!$V$4 -> 0 | G56: ='Base Data Combined'!G56*Growth!$W$4 -> 0
B58: Small Settlements | C58: Owned | I58: A flat; maisonette; apartment
B59: Bedrooms/Number of Cars | C59: Number of Dwellings
C60: 0 Cars | D60: 1 Car | E60: 2 Cars | F60: 3 Cars | G60: 4+ Cars
A61: 2 | B61: 1 or 2 | C61: ='Base Data Combined'!C61*Growth!$S$4 -> 48.33 | D61: ='Base Data Combined'!D61*Growth!$T$4 -> 128.8287 | E61: ='Base Data Combined'!E61*Growth!$U$4 -> 36.414 | F61: ='Base Data Combined'!F61*Growth!$V$4 -> 6.7758 | G61: ='Base Data Combined'!G61*Growth!$W$4 -> 1.0826
A62: 3 | B62: 3 | C62: ='Base Data Combined'!C62*Growth!$S$4 -> 5.37 | D62: ='Base Data Combined'!D62*Growth!$T$4 -> 36.1998 | E62: ='Base Data Combined'!E62*Growth!$U$4 -> 16.065 | F62: ='Base Data Combined'!F62*Growth!$V$4 -> 3.3879 | G62: ='Base Data Combined'!G62*Growth!$W$4 -> 1.0826
A63: 4 | B63: 4 | C63: ='Base Data Combined'!C63*Growth!$S$4 -> 0 | D63: ='Base Data Combined'!D63*Growth!$T$4 -> 3.1941 | E63: ='Base Data Combined'!E63*Growth!$U$4 -> 2.142 | F63: ='Base Data Combined'!F63*Growth!$V$4 -> 2.2586 | G63: ='Base Data Combined'!G63*Growth!$W$4 -> 0
A64: 5 | B64: 5+ | C64: ='Base Data Combined'!C64*Growth!$S$4 -> 0.895 | D64: ='Base Data Combined'!D64*Growth!$T$4 -> 1.0647 | E64: ='Base Data Combined'!E64*Growth!$U$4 -> 6.426 | F64: ='Base Data Combined'!F64*Growth!$V$4 -> 2.2586 | G64: ='Base Data Combined'!G64*Growth!$W$4 -> 1.0826
B66: Rural | C66: Shared ownership or rented (excluding living rent free) | I66: Detached; semi-detached; terraced whole house or bungalow
B67: Bedrooms/Number of Cars | C67: Number of Dwellings
C68: 0 Cars | D68: 1 Car | E68: 2 Cars | F68: 3 Cars | G68: 4+ Cars
A69: 2 | B69: 1 or 2 | C69: ='Base Data Combined'!C69*Growth!$S$4 -> 229.12 | D69: ='Base Data Combined'!D69*Growth!$T$4 -> 854.9541 | E69: ='Base Data Combined'!E69*Growth!$U$4 -> 342.72 | F69: ='Base Data Combined'!F69*Growth!$V$4 -> 45.172 | G69: ='Base Data Combined'!G69*Growth!$W$4 -> 7.5782
A70: 3 | B70: 3 | C70: ='Base Data Combined'!C70*Growth!$S$4 -> 210.325 | D70: ='Base Data Combined'!D70*Growth!$T$4 -> 1105.1586 | E70: ='Base Data Combined'!E70*Growth!$U$4 -> 884.646 | F70: ='Base Data Combined'!F70*Growth!$V$4 -> 206.6619 | G70: ='Base Data Combined'!G70*Growth!$W$4 -> 69.2864
A71: 4 | B71: 4 | C71: ='Base Data Combined'!C71*Growth!$S$4 -> 15.215 | D71: ='Base Data Combined'!D71*Growth!$T$4 -> 126.6993 | E71: ='Base Data Combined'!E71*Growth!$U$4 -> 176.715 | F71: ='Base Data Combined'!F71*Growth!$V$4 -> 56.465 | G71: ='Base Data Combined'!G71*Growth!$W$4 -> 9.7434
A72: 5 | B72: 5+ | C72: ='Base Data Combined'!C72*Growth!$S$4 -> 19.69 | D72: ='Base Data Combined'!D72*Growth!$T$4 -> 101.1465 | E72: ='Base Data Combined'!E72*Growth!$U$4 -> 235.62 | F72: ='Base Data Combined'!F72*Growth!$V$4 -> 106.1542 | G72: ='Base Data Combined'!G72*Growth!$W$4 -> 51.9648
B74: Rural | C74: Owned | I74: Detached; semi-detached; terraced whole house or bungalow
B75: Bedrooms/Number of Cars | C75: Number of Dwellings
C76: 0 Cars | D76: 1 Car | E76: 2 Cars | F76: 3 Cars | G76: 4+ Cars
A77: 2 | B77: 1 or 2 | C77: ='Base Data Combined'!C77*Growth!$S$4 -> 131.565 | D77: ='Base Data Combined'!D77*Growth!$T$4 -> 599.4261 | E77: ='Base Data Combined'!E77*Growth!$U$4 -> 251.685 | F77: ='Base Data Combined'!F77*Growth!$V$4 -> 62.1115 | G77: ='Base Data Combined'!G77*Growth!$W$4 -> 21.652
A78: 3 | B78: 3 | C78: ='Base Data Combined'!C78*Growth!$S$4 -> 312.355 | D78: ='Base Data Combined'!D78*Growth!$T$4 -> 2019.7359 | E78: ='Base Data Combined'!E78*Growth!$U$4 -> 1671.831 | F78: ='Base Data Combined'!F78*Growth!$V$4 -> 444.9442 | G78: ='Base Data Combined'!G78*Growth!$W$4 -> 132.0772
A79: 4 | B79: 4 | C79: ='Base Data Combined'!C79*Growth!$S$4 -> 68.02 | D79: ='Base Data Combined'!D79*Growth!$T$4 -> 735.7077 | E79: ='Base Data Combined'!E79*Growth!$U$4 -> 1074.213 | F79: ='Base Data Combined'!F79*Growth!$V$4 -> 317.3333 | G79: ='Base Data Combined'!G79*Growth!$W$4 -> 107.1774
A80: 5 | B80: 5+ | C80: ='Base Data Combined'!C80*Growth!$S$4 -> 53.7 | D80: ='Base Data Combined'!D80*Growth!$T$4 -> 969.9417 | E80: ='Base Data Combined'!E80*Growth!$U$4 -> 2699.991 | F80: ='Base Data Combined'!F80*Growth!$V$4 -> 1110.1019 | G80: ='Base Data Combined'!G80*Growth!$W$4 -> 584.604
B82: Rural | C82: Shared ownership or rented (excluding living rent free) | I82: A flat; maisonette; apartment
B83: Bedrooms/Number of Cars | C83: Number of Dwellings
C84: 0 Cars | D84: 1 Car | E84: 2 Cars | F84: 3 Cars | G84: 4+ Cars
A85: 2 | B85: 1 or 2 | C85: ='Base Data Combined'!C85*Growth!$S$4 -> 133.355 | D85: ='Base Data Combined'!D85*Growth!$T$4 -> 262.9809 | E85: ='Base Data Combined'!E85*Growth!$U$4 -> 79.254 | F85: ='Base Data Combined'!F85*Growth!$V$4 -> 10.1637 | G85: ='Base Data Combined'!G85*Growth!$W$4 -> 6.4956
A86: 3 | B86: 3 | C86: ='Base Data Combined'!C86*Growth!$S$4 -> 7.16 | D86: ='Base Data Combined'!D86*Growth!$T$4 -> 38.3292 | E86: ='Base Data Combined'!E86*Growth!$U$4 -> 19.278 | F86: ='Base Data Combined'!F86*Growth!$V$4 -> 2.2586 | G86: ='Base Data Combined'!G86*Growth!$W$4 -> 3.2478
A87: 4 | B87: 4 | C87: ='Base Data Combined'!C87*Growth!$S$4 -> 1.79 | D87: ='Base Data Combined'!D87*Growth!$T$4 -> 4.2588 | E87: ='Base Data Combined'!E87*Growth!$U$4 -> 3.213 | F87: ='Base Data Combined'!F87*Growth!$V$4 -> 0 | G87: ='Base Data Combined'!G87*Growth!$W$4 -> 2.1652
A88: 5 | B88: 5+ | C88: ='Base Data Combined'!C88*Growth!$S$4 -> 1.79 | D88: ='Base Data Combined'!D88*Growth!$T$4 -> 2.1294 | E88: ='Base Data Combined'!E88*Growth!$U$4 -> 3.213 | F88: ='Base Data Combined'!F88*Growth!$V$4 -> 0 | G88: ='Base Data Combined'!G88*Growth!$W$4 -> 1.0826
B90: Rural | C90: Owned | I90: A flat; maisonette; apartment
B91: Bedrooms/Number of Cars | C91: Number of Dwellings
C92: 0 Cars | D92: 1 Car | E92: 2 Cars | F92: 3 Cars | G92: 4+ Cars
A93: 2 | B93: 1 or 2 | C93: ='Base Data Combined'!C93*Growth!$S$4 -> 22.375 | D93: ='Base Data Combined'!D93*Growth!$T$4 -> 58.5585 | E93: ='Base Data Combined'!E93*Growth!$U$4 -> 17.136 | F93: ='Base Data Combined'!F93*Growth!$V$4 -> 4.5172 | G93: ='Base Data Combined'!G93*Growth!$W$4 -> 0
A94: 3 | B94: 3 | C94: ='Base Data Combined'!C94*Growth!$S$4 -> 6.265 | D94: ='Base Data Combined'!D94*Growth!$T$4 -> 30.8763 | E94: ='Base Data Combined'!E94*Growth!$U$4 -> 14.994 | F94: ='Base Data Combined'!F94*Growth!$V$4 -> 2.2586 | G94: ='Base Data Combined'!G94*Growth!$W$4 -> 1.0826
A95: 4 | B95: 4 | C95: ='Base Data Combined'!C95*Growth!$S$4 -> 0.895 | D95: ='Base Data Combined'!D95*Growth!$T$4 -> 2.1294 | E95: ='Base Data Combined'!E95*Growth!$U$4 -> 1.071 | F95: ='Base Data Combined'!F95*Growth!$V$4 -> 1.1293 | G95: ='Base Data Combined'!G95*Growth!$W$4 -> 0
A96: 5 | B96: 5+ | C96: ='Base Data Combined'!C96*Growth!$S$4 -> 0 | D96: ='Base Data Combined'!D96*Growth!$T$4 -> 6.3882 | E96: ='Base Data Combined'!E96*Growth!$U$4 -> 5.355 | F96: ='Base Data Combined'!F96*Growth!$V$4 -> 2.2586 | G96: ='Base Data Combined'!G96*Growth!$W$4 -> 1.0826

Sheet All_Unall2 (hidden)
B2: Town and FringeDetached; semi-detached; terraced whole house or bungalowShared ownership or rented (excluding living rent free)
B3: Bedrooms/Unallocated Demand | C3: Allocated Spaces
C4: 0 | D4: 1 | E4: 2
B5: 1 or 2 | C5: =SUM(1*Growth!D5+2*Growth!E5+3*Growth!F5+4*Growth!G5)/SUM(Growth!C5:G5) -> 0.8708096636 | D5: =SUM(1*Growth!E5+2*Growth!F5+3*Growth!G5)/SUM(Growth!C5:G5) -> 0.2024073095 | E5: =SUM(1*Growth!F5+2*Growth!G5)/SUM(Growth!C5:G5) -> 0.006934903326
B6: 3 | C6: =SUM(1*Growth!D6+2*Growth!E6+3*Growth!F6+4*Growth!G6)/SUM(Growth!C6:G6) -> 1.216036851 | D6: =SUM(1*Growth!E6+2*Growth!F6+3*Growth!G6)/SUM(Growth!C6:G6) -> 0.4114944636 | E6: =SUM(1*Growth!F6+2*Growth!G6)/SUM(Growth!C6:G6) -> 0.09741999136
B7: 4 | C7: =SUM(1*Growth!D7+2*Growth!E7+3*Growth!F7+4*Growth!G7)/SUM(Growth!C7:G7) -> 1.735394621 | D7: =SUM(1*Growth!E7+2*Growth!F7+3*Growth!G7)/SUM(Growth!C7:G7) -> 0.7978943301 | E7: =SUM(1*Growth!F7+2*Growth!G7)/SUM(Growth!C7:G7) -> 0.3560621226
B8: 5+ | C8: =SUM(1*Growth!D8+2*Growth!E8+3*Growth!F8+4*Growth!G8)/SUM(Growth!C8:G8) -> 2.15678557 | D8: =SUM(1*Growth!E8+2*Growth!F8+3*Growth!G8)/SUM(Growth!C8:G8) -> 1.197307021 | E8: =SUM(1*Growth!F8+2*Growth!G8)/SUM(Growth!C8:G8) -> 0.527056558
B10: Town and FringeDetached; semi-detached; terraced whole house or bungalowOwned
B11: Bedrooms/Unallocated Demand | C11: Allocated Spaces
C12: 0 | D12: 1 | E12: 2
B13: 1 or 2 | C13: =SUM(1*Growth!D13+2*Growth!E13+3*Growth!F13+4*Growth!G13)/SUM(Growth!C13:G13) -> 1.073822288 | D13: =SUM(1*Growth!E13+2*Growth!F13+3*Growth!G13)/SUM(Growth!C13:G13) -> 0.2648043637 | E13: =SUM(1*Growth!F13+2*Growth!G13)/SUM(Growth!C13:G13) -> 0.0320833753
B14: 3 | C14: =SUM(1*Growth!D14+2*Growth!E14+3*Growth!F14+4*Growth!G14)/SUM(Growth!C14:G14) -> 1.436522603 | D14: =SUM(1*Growth!E14+2*Growth!F14+3*Growth!G14)/SUM(Growth!C14:G14) -> 0.5296680723 | E14: =SUM(1*Growth!F14+2*Growth!G14)/SUM(Growth!C14:G14) -> 0.1058446168
B15: 4 | C15: =SUM(1*Growth!D15+2*Growth!E15+3*Growth!F15+4*Growth!G15)/SUM(Growth!C15:G15) -> 1.665008929 | D15: =SUM(1*Growth!E15+2*Growth!F15+3*Growth!G15)/SUM(Growth!C15:G15) -> 0.7061853094 | E15: =SUM(1*Growth!F15+2*Growth!G15)/SUM(Growth!C15:G15) -> 0.1476774888
B16: 5+ | C16: =SUM(1*Growth!D16+2*Growth!E16+3*Growth!F16+4*Growth!G16)/SUM(Growth!C16:G16) -> 2.003542755 | D16: =SUM(1*Growth!E16+2*Growth!F16+3*Growth!G16)/SUM(Growth!C16:G16) -> 1.025872772 | E16: =SUM(1*Growth!F16+2*Growth!G16)/SUM(Growth!C16:G16) -> 0.2918985049
B18: Town and FringeA flat; maisonette; apartmentShared ownership or rented (excluding living rent free)
B19: Bedrooms/Unallocated Demand | C19: Allocated Spaces
C20: 0 | D20: 1 | E20: 2
B21: 1 or 2 | C21: =SUM(1*Growth!D21+2*Growth!E21+3*Growth!F21+4*Growth!G21)/SUM(Growth!C21:G21) -> 0.6387116513 | D21: =SUM(1*Growth!E21+2*Growth!F21+3*Growth!G21)/SUM(Growth!C21:G21) -> 0.09659552368 | E21: =SUM(1*Growth!F21+2*Growth!G21)/SUM(Growth!C21:G21) -> 0.01496823187
B22: 3 | C22: =SUM(1*Growth!D22+2*Growth!E22+3*Growth!F22+4*Growth!G22)/SUM(Growth!C22:G22) -> 0.946104302 | D22: =SUM(1*Growth!E22+2*Growth!F22+3*Growth!G22)/SUM(Growth!C22:G22) -> 0.2630336691 | E22: =SUM(1*Growth!F22+2*Growth!G22)/SUM(Growth!C22:G22) -> 0.02948927656
B23: 4 | C23: =SUM(1*Growth!D23+2*Growth!E23+3*Growth!F23+4*Growth!G23)/SUM(Growth!C23:G23) -> 1.708109219 | D23: =SUM(1*Growth!E23+2*Growth!F23+3*Growth!G23)/SUM(Growth!C23:G23) -> 0.9244678665 | E23: =SUM(1*Growth!F23+2*Growth!G23)/SUM(Growth!C23:G23) -> 0.3982086954
B24: 5+ | C24: =SUM(1*Growth!D24+2*Growth!E24+3*Growth!F24+4*Growth!G24)/SUM(Growth!C24:G24) -> 1.738621341 | D24: =SUM(1*Growth!E24+2*Growth!F24+3*Growth!G24)/SUM(Growth!C24:G24) -> 0.8794774945 | E24: =SUM(1*Growth!F24+2*Growth!G24)/SUM(Growth!C24:G24) -> 0.3554611268
B26: Town and FringeA flat; maisonette; apartmentOwned
B27: Bedrooms/Unallocated Demand | C27: Allocated Spaces
C28: 0 | D28: 1 | E28: 2
B29: 1 or 2 | C29: =SUM(1*Growth!D29+2*Growth!E29+3*Growth!F29+4*Growth!G29)/SUM(Growth!C29:G29) -> 0.7359967266 | D29: =SUM(1*Growth!E29+2*Growth!F29+3*Growth!G29)/SUM(Growth!C29:G29) -> 0.1183968579 | E29: =SUM(1*Growth!F29+2*Growth!G29)/SUM(Growth!C29:G29) -> 0.01431120401
B30: 3 | C30: =SUM(1*Growth!D30+2*Growth!E30+3*Growth!F30+4*Growth!G30)/SUM(Growth!C30:G30) -> 0.9736379374 | D30: =SUM(1*Growth!E30+2*Growth!F30+3*Growth!G30)/SUM(Growth!C30:G30) -> 0.1972974569 | E30: =SUM(1*Growth!F30+2*Growth!G30)/SUM(Growth!C30:G30) -> 0.02565553026
B31: 4 | C31: =AVERAGE(C32,C30) -> 1.207537648 | D31: =AVERAGE(D32,D30) -> 0.4642362973 | E31: 0.1956215495 | F31: Manually amended from 0
B32: 5+ | C32: =SUM(1*Growth!D32+2*Growth!E32+3*Growth!F32+4*Growth!G32)/SUM(Growth!C32:G32) -> 1.441437358 | D32: =SUM(1*Growth!E32+2*Growth!F32+3*Growth!G32)/SUM(Growth!C32:G32) -> 0.7311751376 | E32: =SUM(1*Growth!F32+2*Growth!G32)/SUM(Growth!C32:G32) -> 0.3655875688
B34: Smaller SettlementsDetached; semi-detached; terraced whole house or bungalowShared ownership or rented (excluding living rent free)
B35: Bedrooms/Unallocated Demand | C35: Allocated Spaces
C36: 0 | D36: 1 | E36: 2
B37: 1 or 2 | C37: =SUM(1*Growth!D37+2*Growth!E37+3*Growth!F37+4*Growth!G37)/SUM(Growth!C37:G37) -> 1.022074889 | D37: =SUM(1*Growth!E37+2*Growth!F37+3*Growth!G37)/SUM(Growth!C37:G37) -> 0.2545042476 | E37: =SUM(1*Growth!F37+2*Growth!G37)/SUM(Growth!C37:G37) -> 0.0241637268
B38: 3 | C38: =SUM(1*Growth!D38+2*Growth!E38+3*Growth!F38+4*Growth!G38)/SUM(Growth!C38:G38) -> 1.288280523 | D38: =SUM(1*Growth!E38+2*Growth!F38+3*Growth!G38)/SUM(Growth!C38:G38) -> 0.4275007252 | E38: =SUM(1*Growth!F38+2*Growth!G38)/SUM(Growth!C38:G38) -> 0.07169222773
B39: 4 | C39: =SUM(1*Growth!D39+2*Growth!E39+3*Growth!F39+4*Growth!G39)/SUM(Growth!C39:G39) -> 1.560980031 | D39: =SUM(1*Growth!E39+2*Growth!F39+3*Growth!G39)/SUM(Growth!C39:G39) -> 0.627823181 | E39: =SUM(1*Growth!F39+2*Growth!G39)/SUM(Growth!C39:G39) -> 0.1067100474
B40: 5+ | C40: =SUM(1*Growth!D40+2*Growth!E40+3*Growth!F40+4*Growth!G40)/SUM(Growth!C40:G40) -> 1.613428221 | D40: =SUM(1*Growth!E40+2*Growth!F40+3*Growth!G40)/SUM(Growth!C40:G40) -> 0.6911550146 | E40: =SUM(1*Growth!F40+2*Growth!G40)/SUM(Growth!C40:G40) -> 0.1471456227
B42: Smaller SettlementsDetached; semi-detached; terraced whole house or bungalowOwned
B43: Bedrooms/Unallocated Demand | C43: Allocated Spaces
C44: 0 | D44: 1 | E44: 2
B45: 1 or 2 | C45: =SUM(1*Growth!D45+2*Growth!E45+3*Growth!F45+4*Growth!G45)/SUM(Growth!C45:G45) -> 1.188691256 | D45: =SUM(1*Growth!E45+2*Growth!F45+3*Growth!G45)/SUM(Growth!C45:G45) -> 0.3362226713 | E45: =SUM(1*Growth!F45+2*Growth!G45)/SUM(Growth!C45:G45) -> 0.04696459171
B46: 3 | C46: =SUM(1*Growth!D46+2*Growth!E46+3*Growth!F46+4*Growth!G46)/SUM(Growth!C46:G46) -> 1.461756404 | D46: =SUM(1*Growth!E46+2*Growth!F46+3*Growth!G46)/SUM(Growth!C46:G46) -> 0.5524633919 | E46: =SUM(1*Growth!F46+2*Growth!G46)/SUM(Growth!C46:G46) -> 0.1242215938
B47: 4 | C47: =SUM(1*Growth!D47+2*Growth!E47+3*Growth!F47+4*Growth!G47)/SUM(Growth!C47:G47) -> 1.778050434 | D47: =SUM(1*Growth!E47+2*Growth!F47+3*Growth!G47)/SUM(Growth!C47:G47) -> 0.8147969769 | E47: =SUM(1*Growth!F47+2*Growth!G47)/SUM(Growth!C47:G47) -> 0.214559914
B48: 5+ | C48: =SUM(1*Growth!D48+2*Growth!E48+3*Growth!F48+4*Growth!G48)/SUM(Growth!C48:G48) -> 2.004571046 | D48: =SUM(1*Growth!E48+2*Growth!F48+3*Growth!G48)/SUM(Growth!C48:G48) -> 1.023464539 | E48: =SUM(1*Growth!F48+2*Growth!G48)/SUM(Growth!C48:G48) -> 0.2901407685
B50: Smaller SettlementsA flat; maisonette; apartmentShared ownership or rented (excluding living rent free)
B51: Bedrooms/Unallocated Demand | C51: Allocated Spaces
C52: 0 | D52: 1 | E52: 2
B53: 1 or 2 | C53: =SUM(1*Growth!D53+2*Growth!E53+3*Growth!F53+4*Growth!G53)/SUM(Growth!C53:G53) -> 0.698833422 | D53: =SUM(1*Growth!E53+2*Growth!F53+3*Growth!G53)/SUM(Growth!C53:G53) -> 0.107763649 | E53: =SUM(1*Growth!F53+2*Growth!G53)/SUM(Growth!C53:G53) -> 0.01169543923
B54: 3 | C54: =SUM(1*Growth!D54+2*Growth!E54+3*Growth!F54+4*Growth!G54)/SUM(Growth!C54:G54) -> 1.08161924 | D54: =SUM(1*Growth!E54+2*Growth!F54+3*Growth!G54)/SUM(Growth!C54:G54) -> 0.2253559754 | E54: =SUM(1*Growth!F54+2*Growth!G54)/SUM(Growth!C54:G54) -> 0.02674849839
B55: 4 | C55: =SUM(1*Growth!D55+2*Growth!E55+3*Growth!F55+4*Growth!G55)/SUM(Growth!C55:G55) -> 1.241367296 | D55: =SUM(1*Growth!E55+2*Growth!F55+3*Growth!G55)/SUM(Growth!C55:G55) -> 0.414602044 | E55: =SUM(1*Growth!F55+2*Growth!G55)/SUM(Growth!C55:G55) -> 0
B56: 5+ | C56: =SUM(1*Growth!D56+2*Growth!E56+3*Growth!F56+4*Growth!G56)/SUM(Growth!C56:G56) -> 0.7881149896 | D56: =SUM(1*Growth!E56+2*Growth!F56+3*Growth!G56)/SUM(Growth!C56:G56) -> 0.3156173103 | E56: =SUM(1*Growth!F56+2*Growth!G56)/SUM(Growth!C56:G56) -> 0
B58: Smaller SettlementsA flat; maisonette; apartmentOwned
B59: Bedrooms/Unallocated Demand | C59: Allocated Spaces
C60: 0 | D60: 1 | E60: 2
B61: 1 or 2 | C61: =SUM(1*Growth!D61+2*Growth!E61+3*Growth!F61+4*Growth!G61)/SUM(Growth!C61:G61) -> 1.022053813 | D61: =SUM(1*Growth!E61+2*Growth!F61+3*Growth!G61)/SUM(Growth!C61:G61) -> 0.2403158364 | E61: =SUM(1*Growth!F61+2*Growth!G61)/SUM(Growth!C61:G61) -> 0.04037824858
B62: 3 | C62: =SUM(1*Growth!D62+2*Growth!E62+3*Growth!F62+4*Growth!G62)/SUM(Growth!C62:G62) -> 1.333604378 | D62: =SUM(1*Growth!E62+2*Growth!F62+3*Growth!G62)/SUM(Growth!C62:G62) -> 0.4200704288 | E62: =SUM(1*Growth!F62+2*Growth!G62)/SUM(Growth!C62:G62) -> 0.08941426899
B63: 4 | C63: =SUM(1*Growth!D63+2*Growth!E63+3*Growth!F63+4*Growth!G63)/SUM(Growth!C63:G63) -> 1.876821994 | D63: =SUM(1*Growth!E63+2*Growth!F63+3*Growth!G63)/SUM(Growth!C63:G63) -> 0.8768219943 | E63: =SUM(1*Growth!F63+2*Growth!G63)/SUM(Growth!C63:G63) -> 0.297391602
B64: 5+ | C64: =SUM(1*Growth!D64+2*Growth!E64+3*Growth!F64+4*Growth!G64)/SUM(Growth!C64:G64) -> 2.133803477 | D64: =SUM(1*Growth!E64+2*Growth!F64+3*Growth!G64)/SUM(Growth!C64:G64) -> 1.210123733 | E64: =SUM(1*Growth!F64+2*Growth!G64)/SUM(Growth!C64:G64) -> 0.3772352455
B66: RuralDetached; semi-detached; terraced whole house or bungalowShared ownership or rented (excluding living rent free)
B67: Bedrooms/Unallocated Demand | C67: Allocated Spaces
C68: 0 | D68: 1 | E68: 2
B69: 1 or 2 | C69: =SUM(1*Growth!D69+2*Growth!E69+3*Growth!F69+4*Growth!G69)/SUM(Growth!C69:G69) -> 1.15320839 | D69: =SUM(1*Growth!E69+2*Growth!F69+3*Growth!G69)/SUM(Growth!C69:G69) -> 0.3080668825 | E69: =SUM(1*Growth!F69+2*Growth!G69)/SUM(Growth!C69:G69) -> 0.04077498727
B70: 3 | C70: =SUM(1*Growth!D70+2*Growth!E70+3*Growth!F70+4*Growth!G70)/SUM(Growth!C70:G70) -> 1.523208095 | D70: =SUM(1*Growth!E70+2*Growth!F70+3*Growth!G70)/SUM(Growth!C70:G70) -> 0.6081508986 | E70: =SUM(1*Growth!F70+2*Growth!G70)/SUM(Growth!C70:G70) -> 0.1394280447
B71: 4 | C71: =SUM(1*Growth!D71+2*Growth!E71+3*Growth!F71+4*Growth!G71)/SUM(Growth!C71:G71) -> 1.789060427 | D71: =SUM(1*Growth!E71+2*Growth!F71+3*Growth!G71)/SUM(Growth!C71:G71) -> 0.8285965746 | E71: =SUM(1*Growth!F71+2*Growth!G71)/SUM(Growth!C71:G71) -> 0.1973606016
B72: 5+ | C72: =SUM(1*Growth!D72+2*Growth!E72+3*Growth!F72+4*Growth!G72)/SUM(Growth!C72:G72) -> 2.135174139 | D72: =SUM(1*Growth!E72+2*Growth!F72+3*Growth!G72)/SUM(Growth!C72:G72) -> 1.173438689 | E72: =SUM(1*Growth!F72+2*Growth!G72)/SUM(Growth!C72:G72) -> 0.4082662311
B74: RuralDetached; semi-detached; terraced whole house or bungalowOwned
B75: Bedrooms/Unallocated Demand | C75: Allocated Spaces
C76: 0 | D76: 1 | E76: 2
B77: 1 or 2 | C77: =SUM(1*Growth!D77+2*Growth!E77+3*Growth!F77+4*Growth!G77)/SUM(Growth!C77:G77) -> 1.290029553 | D77: =SUM(1*Growth!E77+2*Growth!F77+3*Growth!G77)/SUM(Growth!C77:G77) -> 0.4133980021 | E77: =SUM(1*Growth!F77+2*Growth!G77)/SUM(Growth!C77:G77) -> 0.09884807353
B78: 3 | C78: =SUM(1*Growth!D78+2*Growth!E78+3*Growth!F78+4*Growth!G78)/SUM(Growth!C78:G78) -> 1.577522101 | D78: =SUM(1*Growth!E78+2*Growth!F78+3*Growth!G78)/SUM(Growth!C78:G78) -> 0.6457078393 | E78: =SUM(1*Growth!F78+2*Growth!G78)/SUM(Growth!C78:G78) -> 0.1547931405
B79: 4 | C79: =SUM(1*Growth!D79+2*Growth!E79+3*Growth!F79+4*Growth!G79)/SUM(Growth!C79:G79) -> 1.852305417 | D79: =SUM(1*Growth!E79+2*Growth!F79+3*Growth!G79)/SUM(Growth!C79:G79) -> 0.8818478427 | E79: =SUM(1*Growth!F79+2*Growth!G79)/SUM(Growth!C79:G79) -> 0.2309226158
B80: 5+ | C80: =SUM(1*Growth!D80+2*Growth!E80+3*Growth!F80+4*Growth!G80)/SUM(Growth!C80:G80) -> 2.221833349 | D80: =SUM(1*Growth!E80+2*Growth!F80+3*Growth!G80)/SUM(Growth!C80:G80) -> 1.231744136 | E80: =SUM(1*Growth!F80+2*Growth!G80)/SUM(Growth!C80:G80) -> 0.4206658292
B82: RuralA flat; maisonette; apartmentShared ownership or rented (excluding living rent free)
B83: Bedrooms/Unallocated Demand | C83: Allocated Spaces
C84: 0 | D84: 1 | E84: 2
B85: 1 or 2 | C85: =SUM(1*Growth!D85+2*Growth!E85+3*Growth!F85+4*Growth!G85)/SUM(Growth!C85:G85) -> 0.9709764891 | D85: =SUM(1*Growth!E85+2*Growth!F85+3*Growth!G85)/SUM(Growth!C85:G85) -> 0.2418860203 | E85: =SUM(1*Growth!F85+2*Growth!G85)/SUM(Growth!C85:G85) -> 0.04703897944
B86: 3 | C86: =SUM(1*Growth!D86+2*Growth!E86+3*Growth!F86+4*Growth!G86)/SUM(Growth!C86:G86) -> 1.375369982 | D86: =SUM(1*Growth!E86+2*Growth!F86+3*Growth!G86)/SUM(Growth!C86:G86) -> 0.4772574623 | E86: =SUM(1*Growth!F86+2*Growth!G86)/SUM(Growth!C86:G86) -> 0.1245730972
B87: 4 | C87: =SUM(1*Growth!D87+2*Growth!E87+3*Growth!F87+4*Growth!G87)/SUM(Growth!C87:G87) -> 1.692972784 | D87: =SUM(1*Growth!E87+2*Growth!F87+3*Growth!G87)/SUM(Growth!C87:G87) -> 0.8496193227 | E87: =SUM(1*Growth!F87+2*Growth!G87)/SUM(Growth!C87:G87) -> 0.3789621073
B88: 5+ | C88: =SUM(1*Growth!D88+2*Growth!E88+3*Growth!F88+4*Growth!G88)/SUM(Growth!C88:G88) -> 1.56856969 | D88: =SUM(1*Growth!E88+2*Growth!F88+3*Growth!G88)/SUM(Growth!C88:G88) -> 0.7864637858 | E88: =SUM(1*Growth!F88+2*Growth!G88)/SUM(Growth!C88:G88) -> 0.2635666464
B90: RuralA flat; maisonette; apartmentOwned
B91: Bedrooms/Unallocated Demand | C91: Allocated Spaces
C92: 0 | D92: 1 | E92: 2
B93: 1 or 2 | C93: =SUM(1*Growth!D93+2*Growth!E93+3*Growth!F93+4*Growth!G93)/SUM(Growth!C93:G93) -> 1.036996999 | D93: =SUM(1*Growth!E93+2*Growth!F93+3*Growth!G93)/SUM(Growth!C93:G93) -> 0.2551051939 | E93: =SUM(1*Growth!F93+2*Growth!G93)/SUM(Growth!C93:G93) -> 0.04403299843
B94: 3 | C94: =SUM(1*Growth!D94+2*Growth!E94+3*Growth!F94+4*Growth!G94)/SUM(Growth!C94:G94) -> 1.297315079 | D94: =SUM(1*Growth!E94+2*Growth!F94+3*Growth!G94)/SUM(Growth!C94:G94) -> 0.4102457797 | E94: =SUM(1*Growth!F94+2*Growth!G94)/SUM(Growth!C94:G94) -> 0.07974187268
B95: 4 | C95: =SUM(1*Growth!D95+2*Growth!E95+3*Growth!F95+4*Growth!G95)/SUM(Growth!C95:G95) -> 1.465978908 | D95: =SUM(1*Growth!E95+2*Growth!F95+3*Growth!G95)/SUM(Growth!C95:G95) -> 0.6372806094 | E95: =SUM(1*Growth!F95+2*Growth!G95)/SUM(Growth!C95:G95) -> 0.2161463816
B96: 5+ | C96: =SUM(1*Growth!D96+2*Growth!E96+3*Growth!F96+4*Growth!G96)/SUM(Growth!C96:G96) -> 1.869772745 | D96: =SUM(1*Growth!E96+2*Growth!F96+3*Growth!G96)/SUM(Growth!C96:G96) -> 0.8697727454 | E96: =SUM(1*Growth!F96+2*Growth!G96)/SUM(Growth!C96:G96) -> 0.2932698682

Sheet RAW DATA_CT0554 (hidden)
B1: Office for National Statistics
B3: CT0554 - Accommodation type (excluding caravans / temporary structures) by tenure (excluding living rent free) by number of rooms by car or van availability
B5: Dataset population: All households (excluding caravans/temporary structures)
B6: Geographical level: LSOAs in Cotswold local authority (South West region)
B8: Source : 2011 Census (27 March)
B11: Output Area | D11: Classification | G11: Number of Bedrooms | H11: Number of Bedrooms Conversion | I11: Total: All households | J11: 1 car or van in household | K11: 2 cars or vans in household | L11: 3 cars or vans in household | M11: 4 cars or vans or more in household | N11: No cars or vans in household
A12: E07000079 | B12: E07000079 Cotswold | C12: TOTAL COTSWOLDS | E12: Total: Accommodation type (excluding caravans / temporary structures) | F12: Total: Tenure (excluding living rent free) | G12: Total: Number of rooms | H12: Total: Number of rooms | I12: 34824 | J12: 13855 | K12: 12090 | L12: 3241 | M12: 1331 | N12: 4307
A13: E07000079 | B13: E07000079 Cotswold | C13: TOTAL COTSWOLDS | E13: Total: Accommodation type (excluding caravans / temporary structures) | F13: Total: Tenure (excluding living rent free) | G13: 3 rooms or less | H13: 2 | I13: 2887 | J13: 1337 | K13: 270 | L13: 41 | M13: 13 | N13: 1226
A14: E07000079 | B14: E07000079 Cotswold | C14: TOTAL COTSWOLDS | E14: Total: Accommodation type (excluding caravans / temporary structures) | F14: Total: Tenure (excluding living rent free) | G14: 4 rooms | H14: 2 | I14: 5206 | J14: 2787 | K14: 1094 | L14: 134 | M14: 37 | N14: 1154
A15: E07000079 | B15: E07000079 Cotswold | C15: TOTAL COTSWOLDS | E15: Total: Accommodation type (excluding caravans / temporary structures) | F15: Total: Tenure (excluding living rent free) | G15: 5 rooms | H15: 3 | I15: 7395 | J15: 3648 | K15: 2200 | L15: 467 | M15: 133 | N15: 947
A16: E07000079 | B16: E07000079 Cotswold | C16: TOTAL COTSWOLDS | E16: Total: Accommodation type (excluding caravans / temporary structures) | F16: Total: Tenure (excluding living rent free) | G16: 6 rooms | H16: 3 | I16: 6540 | J16: 2799 | K16: 2372 | L16: 569 | M16: 180 | N16: 620
A17: E07000079 | B17: E07000079 Cotswold | C17: TOTAL COTSWOLDS | E17: Total: Accommodation type (excluding caravans / temporary structures) | F17: Total: Tenure (excluding living rent free) | G17: 7 rooms | H17: 4 | I17: 4407 | J17: 1539 | K17: 1969 | L17: 516 | M17: 192 | N17: 191
A18: E07000079 | B18: E07000079 Cotswold | C18: TOTAL COTSWOLDS | E18: Total: Accommodation type (excluding caravans / temporary structures) | F18: Total: Tenure (excluding living rent free) | G18: 8 rooms or more | H18: 5 | I18: 8389 | J18: 1745 | K18: 4185 | L18: 1514 | M18: 776 | N18: 169
A19: E07000079 | B19: E07000079 Cotswold | C19: TOTAL COTSWOLDS | E19: Total: Accommodation type (excluding caravans / temporary structures) | F19: Owned | G19: Total: Number of rooms | H19: Total: Number of rooms | I19: 23506 | J19: 8646 | K19: 9301 | L19: 2687 | M19: 1124 | N19: 1748
A20: E07000079 | B20: E07000079 Cotswold | C20: TOTAL COTSWOLDS | E20: Total: Accommodation type (excluding caravans / temporary structures) | F20: Owned | G20: 3 rooms or less | H20: 2 | I20: 581 | J20: 300 | K20: 89 | L20: 19 | M20: 6 | N20: 167
A21: E07000079 | B21: E07000079 Cotswold | C21: TOTAL COTSWOLDS | E21: Total: Accommodation type (excluding caravans / temporary structures) | F21: Owned | G21: 4 rooms | H21: 2 | I21: 2154 | J21: 1184 | K21: 457 | L21: 78 | M21: 21 | N21: 414
A22: E07000079 | B22: E07000079 Cotswold | C22: TOTAL COTSWOLDS | E22: Total: Accommodation type (excluding caravans / temporary structures) | F22: Owned | G22: 5 rooms | H22: 3 | I22: 4386 | J22: 2156 | K22: 1335 | L22: 302 | M22: 88 | N22: 505
A23: E07000079 | B23: E07000079 Cotswold | C23: TOTAL COTSWOLDS | E23: Total: Accommodation type (excluding caravans / temporary structures) | F23: Owned | G23: 6 rooms | H23: 3 | I23: 4875 | J23: 2109 | K23: 1815 | L23: 434 | M23: 133 | N23: 384
A24: E07000079 | B24: E07000079 Cotswold | C24: TOTAL COTSWOLDS | E24: Total: Accommodation type (excluding caravans / temporary structures) | F24: Owned | G24: 7 rooms | H24: 4 | I24: 3803 | J24: 1315 | K24: 1721 | L24: 447 | M24: 168 | N24: 152
A25: E07000079 | B25: E07000079 Cotswold | C25: TOTAL COTSWOLDS | E25: Total: Accommodation type (excluding caravans / temporary structures) | F25: Owned | G25: 8 rooms or more | H25: 5 | I25: 7707 | J25: 1582 | K25: 3884 | L25: 1407 | M25: 708 | N25: 126
A26: E07000079 | B26: E07000079 Cotswold | C26: TOTAL COTSWOLDS | E26: Total: Accommodation type (excluding caravans / temporary structures) | F26: Shared ownership or rented (excluding living rent free) | G26: Total: Number of rooms | H26: Total: Number of rooms | I26: 11318 | J26: 5209 | K26: 2789 | L26: 554 | M26: 207 | N26: 2559
A27: E07000079 | B27: E07000079 Cotswold | C27: TOTAL COTSWOLDS | E27: Total: Accommodation type (excluding caravans / temporary structures) | F27: Shared ownership or rented (excluding living rent free) | G27: 3 rooms or less | H27: 2 | I27: 2306 | J27: 1037 | K27: 181 | L27: 22 | M27: 7 | N27: 1059
A28: E07000079 | B28: E07000079 Cotswold | C28: TOTAL COTSWOLDS | E28: Total: Accommodation type (excluding caravans / temporary structures) | F28: Shared ownership or rented (excluding living rent free) | G28: 4 rooms | H28: 2 | I28: 3052 | J28: 1603 | K28: 637 | L28: 56 | M28: 16 | N28: 740
A29: E07000079 | B29: E07000079 Cotswold | C29: TOTAL COTSWOLDS | E29: Total: Accommodation type (excluding caravans / temporary structures) | F29: Shared ownership or rented (excluding living rent free) | G29: 5 rooms | H29: 3 | I29: 3009 | J29: 1492 | K29: 865 | L29: 165 | M29: 45 | N29: 442
A30: E07000079 | B30: E07000079 Cotswold | C30: TOTAL COTSWOLDS | E30: Total: Accommodation type (excluding caravans / temporary structures) | F30: Shared ownership or rented (excluding living rent free) | G30: 6 rooms | H30: 3 | I30: 1665 | J30: 690 | K30: 557 | L30: 135 | M30: 47 | N30: 236
A31: E07000079 | B31: E07000079 Cotswold | C31: TOTAL COTSWOLDS | E31: Total: Accommodation type (excluding caravans / temporary structures) | F31: Shared ownership or rented (excluding living rent free) | G31: 7 rooms | H31: 4 | I31: 604 | J31: 224 | K31: 248 | L31: 69 | M31: 24 | N31: 39
A32: E07000079 | B32: E07000079 Cotswold | C32: TOTAL COTSWOLDS | E32: Total: Accommodation type (excluding caravans / temporary structures) | F32: Shared ownership or rented (excluding living rent free) | G32: 8 rooms or more | H32: 5 | I32: 682 | J32: 163 | K32: 301 | L32: 107 | M32: 68 | N32: 43
A33: E07000079 | B33: E07000079 Cotswold | C33: TOTAL COTSWOLDS | E33: Detached; semi-detached; terraced whole house or bungalow | F33: Total: Tenure (excluding living rent free) | G33: Total: Number of rooms | H33: Total: Number of rooms | I33: 31212 | J33: 12155 | K33: 11684 | L33: 3190 | M33: 1303 | N33: 2880
A34: E07000079 | B34: E07000079 Cotswold | C34: TOTAL COTSWOLDS | E34: Detached; semi-detached; terraced whole house or bungalow | F34: Total: Tenure (excluding living rent free) | G34: 3 rooms or less | H34: 2 | I34: 983 | J34: 511 | K34: 140 | L34: 24 | M34: 5 | N34: 303
A35: E07000079 | B35: E07000079 Cotswold | C35: TOTAL COTSWOLDS | E35: Detached; semi-detached; terraced whole house or bungalow | F35: Total: Tenure (excluding living rent free) | G35: 4 rooms | H35: 2 | I35: 3956 | J35: 2144 | K35: 927 | L35: 119 | M35: 30 | N35: 736
A36: E07000079 | B36: E07000079 Cotswold | C36: TOTAL COTSWOLDS | E36: Detached; semi-detached; terraced whole house or bungalow | F36: Total: Tenure (excluding living rent free) | G36: 5 rooms | H36: 3 | I36: 7123 | J36: 3492 | K36: 2146 | L36: 462 | M36: 129 | N36: 894
A37: E07000079 | B37: E07000079 Cotswold | C37: TOTAL COTSWOLDS | E37: Detached; semi-detached; terraced whole house or bungalow | F37: Total: Tenure (excluding living rent free) | G37: 6 rooms | H37: 3 | I37: 6439 | J37: 2750 | K37: 2344 | L37: 566 | M37: 177 | N37: 602
A38: E07000079 | B38: E07000079 Cotswold | C38: TOTAL COTSWOLDS | E38: Detached; semi-detached; terraced whole house or bungalow | F38: Total: Tenure (excluding living rent free) | G38: 7 rooms | H38: 4 | I38: 4371 | J38: 1526 | K38: 1959 | L38: 512 | M38: 189 | N38: 185
A39: E07000079 | B39: E07000079 Cotswold | C39: TOTAL COTSWOLDS | E39: Detached; semi-detached; terraced whole house or bungalow | F39: Total: Tenure (excluding living rent free) | G39: 8 rooms or more | H39: 5 | I39: 8340 | J39: 1732 | K39: 4168 | L39: 1507 | M39: 773 | N39: 160
A40: E07000079 | B40: E07000079 Cotswold | C40: TOTAL COTSWOLDS | E40: Detached; semi-detached; terraced whole house or bungalow | F40: Owned | G40: Total: Number of rooms | H40: Total: Number of rooms | I40: 22611 | J40: 8185 | K40: 9168 | L40: 2662 | M40: 1117 | N40: 1479
A41: E07000079 | B41: E07000079 Cotswold | C41: TOTAL COTSWOLDS | E41: Detached; semi-detached; terraced whole house or bungalow | F41: Owned | G41: 3 rooms or less | H41: 2 | I41: 295 | J41: 160 | K41: 57 | L41: 14 | M41: 5 | N41: 59
A42: E07000079 | B42: E07000079 Cotswold | C42: TOTAL COTSWOLDS | E42: Detached; semi-detached; terraced whole house or bungalow | F42: Owned | G42: 4 rooms | H42: 2 | I42: 1740 | J42: 964 | K42: 405 | L42: 72 | M42: 19 | N42: 280
A43: E07000079 | B43: E07000079 Cotswold | C43: TOTAL COTSWOLDS | E43: Detached; semi-detached; terraced whole house or bungalow | F43: Owned | G43: 5 rooms | H43: 3 | I43: 4272 | J43: 2090 | K43: 1313 | L43: 298 | M43: 86 | N43: 485
A44: E07000079 | B44: E07000079 Cotswold | C44: TOTAL COTSWOLDS | E44: Detached; semi-detached; terraced whole house or bungalow | F44: Owned | G44: 6 rooms | H44: 3 | I44: 4834 | J44: 2087 | K44: 1802 | L44: 432 | M44: 133 | N44: 380
A45: E07000079 | B45: E07000079 Cotswold | C45: TOTAL COTSWOLDS | E45: Detached; semi-detached; terraced whole house or bungalow | F45: Owned | G45: 7 rooms | H45: 4 | I45: 3791 | J45: 1310 | K45: 1718 | L45: 444 | M45: 168 | N45: 151
A46: E07000079 | B46: E07000079 Cotswold | C46: TOTAL COTSWOLDS | E46: Detached; semi-detached; terraced whole house or bungalow | F46: Owned | G46: 8 rooms or more | H46: 5 | I46: 7679 | J46: 1574 | K46: 3873 | L46: 1402 | M46: 706 | N46: 124
A47: E07000079 | B47: E07000079 Cotswold | C47: TOTAL COTSWOLDS | E47: Detached; semi-detached; terraced whole house or bungalow | F47: Shared ownership or rented (excluding living rent free) | G47: Total: Number of rooms | H47: Total: Number of rooms | I47: 8601 | J47: 3970 | K47: 2516 | L47: 528 | M47: 186 | N47: 1401
A48: E07000079 | B48: E07000079 Cotswold | C48: TOTAL COTSWOLDS | E48: Detached; semi-detached; terraced whole house or bungalow | F48: Shared ownership or rented (excluding living rent free) | G48: 3 rooms or less | H48: 2 | I48: 688 | J48: 351 | K48: 83 | L48: 10 | M48: 0 | N48: 244
A49: E07000079 | B49: E07000079 Cotswold | C49: TOTAL COTSWOLDS | E49: Detached; semi-detached; terraced whole house or bungalow | F49: Shared ownership or rented (excluding living rent free) | G49: 4 rooms | H49: 2 | I49: 2216 | J49: 1180 | K49: 522 | L49: 47 | M49: 11 | N49: 456
A50: E07000079 | B50: E07000079 Cotswold | C50: TOTAL COTSWOLDS | E50: Detached; semi-detached; terraced whole house or bungalow | F50: Shared ownership or rented (excluding living rent free) | G50: 5 rooms | H50: 3 | I50: 2851 | J50: 1402 | K50: 833 | L50: 164 | M50: 43 | N50: 409
A51: E07000079 | B51: E07000079 Cotswold | C51: TOTAL COTSWOLDS | E51: Detached; semi-detached; terraced whole house or bungalow | F51: Shared ownership or rented (excluding living rent free) | G51: 6 rooms | H51: 3 | I51: 1605 | J51: 663 | K51: 542 | L51: 134 | M51: 44 | N51: 222
A52: E07000079 | B52: E07000079 Cotswold | C52: TOTAL COTSWOLDS | E52: Detached; semi-detached; terraced whole house or bungalow | F52: Shared ownership or rented (excluding living rent free) | G52: 7 rooms | H52: 4 | I52: 580 | J52: 216 | K52: 241 | L52: 68 | M52: 21 | N52: 34
A53: E07000079 | B53: E07000079 Cotswold | C53: TOTAL COTSWOLDS | E53: Detached; semi-detached; terraced whole house or bungalow | F53: Shared ownership or rented (excluding living rent free) | G53: 8 rooms or more | H53: 5 | I53: 661 | J53: 158 | K53: 295 | L53: 105 | M53: 67 | N53: 36
A54: E07000079 | B54: E07000079 Cotswold | C54: TOTAL COTSWOLDS | E54: A flat; maisonette; apartment | F54: Total: Tenure (excluding living rent free) | G54: Total: Number of rooms | H54: Total: Number of rooms | I54: 3612 | J54: 1700 | K54: 406 | L54: 51 | M54: 28 | N54: 1427
A55: E07000079 | B55: E07000079 Cotswold | C55: TOTAL COTSWOLDS | E55: A flat; maisonette; apartment | F55: Total: Tenure (excluding living rent free) | G55: 3 rooms or less | H55: 2 | I55: 1904 | J55: 826 | K55: 130 | L55: 17 | M55: 8 | N55: 923
A56: E07000079 | B56: E07000079 Cotswold | C56: TOTAL COTSWOLDS | E56: A flat; maisonette; apartment | F56: Total: Tenure (excluding living rent free) | G56: 4 rooms | H56: 2 | I56: 1250 | J56: 643 | K56: 167 | L56: 15 | M56: 7 | N56: 418
A57: E07000079 | B57: E07000079 Cotswold | C57: TOTAL COTSWOLDS | E57: A flat; maisonette; apartment | F57: Total: Tenure (excluding living rent free) | G57: 5 rooms | H57: 3 | I57: 272 | J57: 156 | K57: 54 | L57: 5 | M57: 4 | N57: 53
A58: E07000079 | B58: E07000079 Cotswold | C58: TOTAL COTSWOLDS | E58: A flat; maisonette; apartment | F58: Total: Tenure (excluding living rent free) | G58: 6 rooms | H58: 3 | I58: 101 | J58: 49 | K58: 28 | L58: 3 | M58: 3 | N58: 18
A59: E07000079 | B59: E07000079 Cotswold | C59: TOTAL COTSWOLDS | E59: A flat; maisonette; apartment | F59: Total: Tenure (excluding living rent free) | G59: 7 rooms | H59: 4 | I59: 36 | J59: 13 | K59: 10 | L59: 4 | M59: 3 | N59: 6
A60: E07000079 | B60: E07000079 Cotswold | C60: TOTAL COTSWOLDS | E60: A flat; maisonette; apartment | F60: Total: Tenure (excluding living rent free) | G60: 8 rooms or more | H60: 5 | I60: 49 | J60: 13 | K60: 17 | L60: 7 | M60: 3 | N60: 9
A61: E07000079 | B61: E07000079 Cotswold | C61: TOTAL COTSWOLDS | E61: A flat; maisonette; apartment | F61: Owned | G61: Total: Number of rooms | H61: Total: Number of rooms | I61: 895 | J61: 461 | K61: 133 | L61: 25 | M61: 7 | N61: 269
A62: E07000079 | B62: E07000079 Cotswold | C62: TOTAL COTSWOLDS | E62: A flat; maisonette; apartment | F62: Owned | G62: 3 rooms or less | H62: 2 | I62: 286 | J62: 140 | K62: 32 | L62: 5 | M62: 1 | N62: 108
A63: E07000079 | B63: E07000079 Cotswold | C63: TOTAL COTSWOLDS | E63: A flat; maisonette; apartment | F63: Owned | G63: 4 rooms | H63: 2 | I63: 414 | J63: 220 | K63: 52 | L63: 6 | M63: 2 | N63: 134
A64: E07000079 | B64: E07000079 Cotswold | C64: TOTAL COTSWOLDS | E64: A flat; maisonette; apartment | F64: Owned | G64: 5 rooms | H64: 3 | I64: 114 | J64: 66 | K64: 22 | L64: 4 | M64: 2 | N64: 20
A65: E07000079 | B65: E07000079 Cotswold | C65: TOTAL COTSWOLDS | E65: A flat; maisonette; apartment | F65: Owned | G65: 6 rooms | H65: 3 | I65: 41 | J65: 22 | K65: 13 | L65: 2 | M65: 0 | N65: 4
A66: E07000079 | B66: E07000079 Cotswold | C66: TOTAL COTSWOLDS | E66: A flat; maisonette; apartment | F66: Owned | G66: 7 rooms | H66: 4 | I66: 12 | J66: 5 | K66: 3 | L66: 3 | M66: 0 | N66: 1
A67: E07000079 | B67: E07000079 Cotswold | C67: TOTAL COTSWOLDS | E67: A flat; maisonette; apartment | F67: Owned | G67: 8 rooms or more | H67: 5 | I67: 28 | J67: 8 | K67: 11 | L67: 5 | M67: 2 | N67: 2
A68: E07000079 | B68: E07000079 Cotswold | C68: TOTAL COTSWOLDS | E68: A flat; maisonette; apartment | F68: Shared ownership or rented (excluding living rent free) | G68: Total: Number of rooms | H68: Total: Number of rooms | I68: 2717 | J68: 1239 | K68: 273 | L68: 26 | M68: 21 | N68: 1158
A69: E07000079 | B69: E07000079 Cotswold | C69: TOTAL COTSWOLDS | E69: A flat; maisonette; apartment | F69: Shared ownership or rented (excluding living rent free) | G69: 3 rooms or less | H69: 2 | I69: 1618 | J69: 686 | K69: 98 | L69: 12 | M69: 7 | N69: 815
A70: E07000079 | B70: E07000079 Cotswold | C70: TOTAL COTSWOLDS | E70: A flat; maisonette; apartment | F70: Shared ownership or rented (excluding living rent free) | G70: 4 rooms | H70: 2 | I70: 836 | J70: 423 | K70: 115 | L70: 9 | M70: 5 | N70: 284
A71: E07000079 | B71: E07000079 Cotswold | C71: TOTAL COTSWOLDS | E71: A flat; maisonette; apartment | F71: Shared ownership or rented (excluding living rent free) | G71: 5 rooms | H71: 3 | I71: 158 | J71: 90 | K71: 32 | L71: 1 | M71: 2 | N71: 33
A72: E07000079 | B72: E07000079 Cotswold | C72: TOTAL COTSWOLDS | E72: A flat; maisonette; apartment | F72: Shared ownership or rented (excluding living rent free) | G72: 6 rooms | H72: 3 | I72: 60 | J72: 27 | K72: 15 | L72: 1 | M72: 3 | N72: 14
A73: E07000079 | B73: E07000079 Cotswold | C73: TOTAL COTSWOLDS | E73: A flat; maisonette; apartment | F73: Shared ownership or rented (excluding living rent free) | G73: 7 rooms | H73: 4 | I73: 24 | J73: 8 | K73: 7 | L73: 1 | M73: 3 | N73: 5
A74: E07000079 | B74: E07000079 Cotswold | C74: TOTAL COTSWOLDS | E74: A flat; maisonette; apartment | F74: Shared ownership or rented (excluding living rent free) | G74: 8 rooms or more | I74: 21 | J74: 5 | K74: 6 | L74: 2 | M74: 1 | N74: 7
A75: E01022179 | B75: E01022179 Cotswold 001A | C75: E01022179 | D75: =VLOOKUP(A75,'Output Areas'!$A:$E,5,FALSE) -> Rural | E75: Total: Accommodation type (excluding caravans / temporary structures) | F75: Total: Tenure (excluding living rent free) | G75: Total: Number of rooms | H75: =VLOOKUP(G75,Cntrol!$F$3:$G$9,2,FALSE) -> 0 | I75: 882 | J75: 373 | K75: 331 | L75: 83 | M75: 29 | N75: 66
A76: E01022179 | B76: E01022179 Cotswold 001A | C76: E01022179 | D76: =VLOOKUP(A76,'Output Areas'!$A:$E,5,FALSE) -> Rural | E76: Total: Accommodation type (excluding caravans / temporary structures) | F76: Total: Tenure (excluding living rent free) | G76: 3 rooms or less | H76: =VLOOKUP(G76,Cntrol!$F$3:$G$9,2,FALSE) -> 2 | I76: 54 | J76: 24 | K76: 6 | L76: 1 | M76: 1 | N76: 22
A77: E01022179 | B77: E01022179 Cotswold 001A | C77: E01022179 | D77: =VLOOKUP(A77,'Output Areas'!$A:$E,5,FALSE) -> Rural | E77: Total: Accommodation type (excluding caravans / temporary structures) | F77: Total: Tenure (excluding living rent free) | G77: 4 rooms | H77: =VLOOKUP(G77,Cntrol!$F$3:$G$9,2,FALSE) -> 2 | I77: 147 | J77: 84 | K77: 39 | L77: 5 | M77: 1 | N77: 18
A78: E01022179 | B78: E01022179 Cotswold 001A | C78: E01022179 | D78: =VLOOKUP(A78,'Output Areas'!$A:$E,5,FALSE) -> Rural | E78: Total: Accommodation type (excluding caravans / temporary structures) | F78: Total: Tenure (excluding living rent free) | G78: 5 rooms | H78: =VLOOKUP(G78,Cntrol!$F$3:$G$9,2,FALSE) -> 3 | I78: 167 | J78: 79 | K78: 57 | L78: 15 | M78: 2 | N78: 14
A79: E01022179 | B79: E01022179 Cotswold 001A | C79: E01022179 | D79: =VLOOKUP(A79,'Output Areas'!$A:$E,5,FALSE) -> Rural | E79: Total: Accommodation type (excluding caravans / temporary structures) | F79: Total: Tenure (excluding living rent free) | G79: 6 rooms | H79: =VLOOKUP(G79,Cntrol!$F$3:$G$9,2,FALSE) -> 3 | I79: 164 | J79: 89 | K79: 52 | L79: 10 | M79: 4 | N79: 9
A80: E01022179 | B80: E01022179 Cotswold 001A | C80: E01022179 | D80: =VLOOKUP(A80,'Output Areas'!$A:$E,5,FALSE) -> Rural | E80: Total: Accommodation type (excluding caravans / temporary structures) | F80: Total: Tenure (excluding living rent free) | G80: 7 rooms | H80: =VLOOKUP(G80,Cntrol!$F$3:$G$9,2,FALSE) -> 4 | I80: 121 | J80: 41 | K80: 62 | L80: 12 | M80: 3 | N80: 3
A81: E01022179 | B81: E01022179 Cotswold 001A | C81: E01022179 | D81: =VLOOKUP(A81,'Output Areas'!$A:$E,5,FALSE) -> Rural | E81: Total: Accommodation type (excluding caravans / temporary structures) | F81: Total: Tenure (excluding living rent free) | G81: 8 rooms or more | H81: =VLOOKUP(G81,Cntrol!$F$3:$G$9,2,FALSE) -> 5 | I81: 229 | J81: 56 | K81: 115 | L81: 40 | M81: 18 | N81: 0
A82: E01022179 | B82: E01022179 Cotswold 001A | C82: E01022179 | D82: =VLOOKUP(A82,'Output Areas'!$A:$E,5,FALSE) -> Rural | E82: Total: Accommodation type (excluding caravans / temporary structures) | F82: Owned | G82: Total: Number of rooms | H82: =VLOOKUP(G82,Cntrol!$F$3:$G$9,2,FALSE) -> 0 | I82: 641 | J82: 265 | K82: 260 | L82: 69 | M82: 24 | N82: 23
A83: E01022179 | B83: E01022179 Cotswold 001A | C83: E01022179 | D83: =VLOOKUP(A83,'Output Areas'!$A:$E,5,FALSE) -> Rural | E83: Total: Accommodation type (excluding caravans / temporary structures) | F83: Owned | G83: 3 rooms or less | H83: =VLOOKUP(G83,Cntrol!$F$3:$G$9,2,FALSE) -> 2 | I83: 13 | J83: 5 | K83: 3 | L83: 1 | M83: 0 | N83: 4
A84: E01022179 | B84: E01022179 Cotswold 001A | C84: E01022179 | D84: =VLOOKUP(A84,'Output Areas'!$A:$E,5,FALSE) -> Rural | E84: Total: Accommodation type (excluding caravans / temporary structures) | F84: Owned | G84: 4 rooms | H84: =VLOOKUP(G84,Cntrol!$F$3:$G$9,2,FALSE) -> 2 | I84: 82 | J84: 47 | K84: 23 | L84: 4 | M84: 1 | N84: 7
A85: E01022179 | B85: E01022179 Cotswold 001A | C85: E01022179 | D85: =VLOOKUP(A85,'Output Areas'!$A:$E,5,FALSE) -> Rural | E85: Total: Accommodation type (excluding caravans / temporary structures) | F85: Owned | G85: 5 rooms | H85: =VLOOKUP(G85,Cntrol!$F$3:$G$9,2,FALSE) -> 3 | I85: 96 | J85: 46 | K85: 33 | L85: 9 | M85: 2 | N85: 6
A86: E01022179 | B86: E01022179 Cotswold 001A | C86: E01022179 | D86: =VLOOKUP(A86,'Output Areas'!$A:$E,5,FALSE) -> Rural | E86: Total: Accommodation type (excluding caravans / temporary structures) | F86: Owned | G86: 6 rooms | H86: =VLOOKUP(G86,Cntrol!$F$3:$G$9,2,FALSE) -> 3 | I86: 131 | J86: 78 | K86: 40 | L86: 8 | M86: 1 | N86: 4
A87: E01022179 | B87: E01022179 Cotswold 001A | C87: E01022179 | D87: =VLOOKUP(A87,'Output Areas'!$A:$E,5,FALSE) -> Rural | E87: Total: Accommodation type (excluding caravans / temporary structures) | F87: Owned | G87: 7 rooms | H87: =VLOOKUP(G87,Cntrol!$F$3:$G$9,2,FALSE) -> 4 | I87: 107 | J87: 38 | K87: 55 | L87: 9 | M87: 3 | N87: 2
A88: E01022179 | B88: E01022179 Cotswold 001A | C88: E01022179 | D88: =VLOOKUP(A88,'Output Areas'!$A:$E,5,FALSE) -> Rural | E88: Total: Accommodation type (excluding caravans / temporary structures) | F88: Owned | G88: 8 rooms or more | H88: =VLOOKUP(G88,Cntrol!$F$3:$G$9,2,FALSE) -> 5 | I88: 212 | J88: 51 | K88: 106 | L88: 38 | M88: 17 | N88: 0
A89: E01022179 | B89: E01022179 Cotswold 001A | C89: E01022179 | D89: =VLOOKUP(A89,'Output Areas'!$A:$E,5,FALSE) -> Rural | E89: Total: Accommodation type (excluding caravans / temporary structures) | F89: Shared ownership or rented (excluding living rent free) | G89: Total: Number of rooms | H89: =VLOOKUP(G89,Cntrol!$F$3:$G$9,2,FALSE) -> 0 | I89: 241 | J89: 108 | K89: 71 | L89: 14 | M89: 5 | N89: 43
A90: E01022179 | B90: E01022179 Cotswold 001A | C90: E01022179 | D90: =VLOOKUP(A90,'Output Areas'!$A:$E,5,FALSE) -> Rural | E90: Total: Accommodation type (excluding caravans / temporary structures) | F90: Shared ownership or rented (excluding living rent free) | G90: 3 rooms or less | H90: =VLOOKUP(G90,Cntrol!$F$3:$G$9,2,FALSE) -> 2 | I90: 41 | J90: 19 | K90: 3 | L90: 0 | M90: 1 | N90: 18
A91: E01022179 | B91: E01022179 Cotswold 001A | C91: E01022179 | D91: =VLOOKUP(A91,'Output Areas'!$A:$E,5,FALSE) -> Rural | E91: Total: Accommodation type (excluding caravans / temporary structures) | F91: Shared ownership or rented (excluding living rent free) | G91: 4 rooms | H91: =VLOOKUP(G91,Cntrol!$F$3:$G$9,2,FALSE) -> 2 | I91: 65 | J91: 37 | K91: 16 | L91: 1 | M91: 0 | N91: 11
A92: E01022179 | B92: E01022179 Cotswold 001A | C92: E01022179 | D92: =VLOOKUP(A92,'Output Areas'!$A:$E,5,FALSE) -> Rural | E92: Total: Accommodation type (excluding caravans / temporary structures) | F92: Shared ownership or rented (excluding living rent free) | G92: 5 rooms | H92: =VLOOKUP(G92,Cntrol!$F$3:$G$9,2,FALSE) -> 3 | I92: 71 | J92: 33 | K92: 24 | L92: 6 | M92: 0 | N92: 8
A93: E01022179 | B93: E01022179 Cotswold 001A | C93: E01022179 | D93: =VLOOKUP(A93,'Output Areas'!$A:$E,5,FALSE) -> Rural | E93: Total: Accommodation type (excluding caravans / temporary structures) | F93: Shared ownership or rented (excluding living rent free) | G93: 6 rooms | H93: =VLOOKUP(G93,Cntrol!$F$3:$G$9,2,FALSE) -> 3 | I93: 33 | J93: 11 | K93: 12 | L93: 2 | M93: 3 | N93: 5
A94: E01022179 | B94: E01022179 Cotswold 001A | C94: E01022179 | D94: =VLOOKUP(A94,'Output Areas'!$A:$E,5,FALSE) -> Rural | E94: Total: Accommodation type (excluding caravans / temporary structures) | F94: Shared ownership or rented (excluding living rent free) | G94: 7 rooms | H94: =VLOOKUP(G94,Cntrol!$F$3:$G$9,2,FALSE) -> 4 | I94: 14 | J94: 3 | K94: 7 | L94: 3 | M94: 0 | N94: 1
A95: E01022179 | B95: E01022179 Cotswold 001A | C95: E01022179 | D95: =VLOOKUP(A95,'Output Areas'!$A:$E,5,FALSE) -> Rural | E95: Total: Accommodation type (excluding caravans / temporary structures) | F95: Shared ownership or rented (excluding living rent free) | G95: 8 rooms or more | H95: =VLOOKUP(G95,Cntrol!$F$3:$G$9,2,FALSE) -> 5 | I95: 17 | J95: 5 | K95: 9 | L95: 2 | M95: 1 | N95: 0
A96: E01022179 | B96: E01022179 Cotswold 001A | C96: E01022179 | D96: =VLOOKUP(A96,'Output Areas'!$A:$E,5,FALSE) -> Rural | E96: Detached; semi-detached; terraced whole house or bungalow | F96: Total: Tenure (excluding living rent free) | G96: Total: Number of rooms | H96: =VLOOKUP(G96,Cntrol!$F$3:$G$9,2,FALSE) -> 0 | I96: 825 | J96: 343 | K96: 323 | L96: 82 | M96: 28 | N96: 49
A97: E01022179 | B97: E01022179 Cotswold 001A | C97: E01022179 | D97: =VLOOKUP(A97,'Output Areas'!$A:$E,5,FALSE) -> Rural | E97: Detached; semi-detached; terraced whole house or bungalow | F97: Total: Tenure (excluding living rent free) | G97: 3 rooms or less | H97: =VLOOKUP(G97,Cntrol!$F$3:$G$9,2,FALSE) -> 2 | I97: 24 | J97: 14 | K97: 2 | L97: 0 | M97: 0 | N97: 8
A98: E01022179 | B98: E01022179 Cotswold 001A | C98: E01022179 | D98: =VLOOKUP(A98,'Output Areas'!$A:$E,5,FALSE) -> Rural | E98: Detached; semi-detached; terraced whole house or bungalow | F98: Total: Tenure (excluding living rent free) | G98: 4 rooms | H98: =VLOOKUP(G98,Cntrol!$F$3:$G$9,2,FALSE) -> 2 | I98: 132 | J98: 73 | K98: 37 | L98: 5 | M98: 1 | N98: 16
A99: E01022179 | B99: E01022179 Cotswold 001A | C99: E01022179 | D99: =VLOOKUP(A99,'Output Areas'!$A:$E,5,FALSE) -> Rural | E99: Detached; semi-detached; terraced whole house or bungalow | F99: Total: Tenure (excluding living rent free) | G99: 5 rooms | H99: =VLOOKUP(G99,Cntrol!$F$3:$G$9,2,FALSE) -> 3 | I99: 163 | J99: 76 | K99: 56 | L99: 15 | M99: 2 | N99: 14
A100: E01022179 | B100: E01022179 Cotswold 001A | C100: E01022179 | D100: =VLOOKUP(A100,'Output Areas'!$A:$E,5,FALSE) -> Rural | E100: Detached; semi-detached; terraced whole house or bungalow | F100: Total: Tenure (excluding living rent free) | G100: 6 rooms | H100: =VLOOKUP(G100,Cntrol!$F$3:$G$9,2,FALSE) -> 3 | I100: 158 | J100: 84 | K100: 52 | L100: 10 | M100: 4 | N100: 8
A101: E01022179 | B101: E01022179 Cotswold 001A | C101: E01022179 | D101: =VLOOKUP(A101,'Output Areas'!$A:$E,5,FALSE) -> Rural | E101: Detached; semi-detached; terraced whole house or bungalow | F101: Total: Tenure (excluding living rent free) | G101: 7 rooms | H101: =VLOOKUP(G101,Cntrol!$F$3:$G$9,2,FALSE) -> 4 | I101: 120 | J101: 41 | K101: 61 | L101: 12 | M101: 3 | N101: 3
A102: E01022179 | B102: E01022179 Cotswold 001A | C102: E01022179 | D102: =VLOOKUP(A102,'Output Areas'!$A:$E,5,FALSE) -> Rural | E102: Detached; semi-detached; terraced whole house or bungalow | F102: Total: Tenure (excluding living rent free) | G102: 8 rooms or more | H102: =VLOOKUP(G102,Cntrol!$F$3:$G$9,2,FALSE) -> 5 | I102: 228 | J102: 55 | K102: 115 | L102: 40 | M102: 18 | N102: 0
A103: E01022179 | B103: E01022179 Cotswold 001A | C103: E01022179 | D103: =VLOOKUP(A103,'Output Areas'!$A:$E,5,FALSE) -> Rural | E103: Detached; semi-detached; terraced whole house or bungalow | F103: Owned | G103: Total: Number of rooms | H103: =VLOOKUP(G103,Cntrol!$F$3:$G$9,2,FALSE) -> 0 | I103: 629 | J103: 256 | K103: 258 | L103: 68 | M103: 24 | N103: 23
A104: E01022179 | B104: E01022179 Cotswold 001A | C104: E01022179 | D104: =VLOOKUP(A104,'Output Areas'!$A:$E,5,FALSE) -> Rural | E104: Detached; semi-detached; terraced whole house or bungalow | F104: Owned | G104: 3 rooms or less | H104: =VLOOKUP(G104,Cntrol!$F$3:$G$9,2,FALSE) -> 2 | I104: 11 | J104: 5 | K104: 2 | L104: 0 | M104: 0 | N104: 4
A105: E01022179 | B105: E01022179 Cotswold 001A | C105: E01022179 | D105: =VLOOKUP(A105,'Output Areas'!$A:$E,5,FALSE) -> Rural | E105: Detached; semi-detached; terraced whole house or bungalow | F105: Owned | G105: 4 rooms | H105: =VLOOKUP(G105,Cntrol!$F$3:$G$9,2,FALSE) -> 2 | I105: 77 | J105: 42 | K105: 23 | L105: 4 | M105: 1 | N105: 7
A106: E01022179 | B106: E01022179 Cotswold 001A | C106: E01022179 | D106: =VLOOKUP(A106,'Output Areas'!$A:$E,5,FALSE) -> Rural | E106: Detached; semi-detached; terraced whole house or bungalow | F106: Owned | G106: 5 rooms | H106: =VLOOKUP(G106,Cntrol!$F$3:$G$9,2,FALSE) -> 3 | I106: 93 | J106: 44 | K106: 32 | L106: 9 | M106: 2 | N106: 6
A107: E01022179 | B107: E01022179 Cotswold 001A | C107: E01022179 | D107: =VLOOKUP(A107,'Output Areas'!$A:$E,5,FALSE) -> Rural | E107: Detached; semi-detached; terraced whole house or bungalow | F107: Owned | G107: 6 rooms | H107: =VLOOKUP(G107,Cntrol!$F$3:$G$9,2,FALSE) -> 3 | I107: 130 | J107: 77 | K107: 40 | L107: 8 | M107: 1 | N107: 4
A108: E01022179 | B108: E01022179 Cotswold 001A | C108: E01022179 | D108: =VLOOKUP(A108,'Output Areas'!$A:$E,5,FALSE) -> Rural | E108: Detached; semi-detached; terraced whole house or bungalow | F108: Owned | G108: 7 rooms | H108: =VLOOKUP(G108,Cntrol!$F$3:$G$9,2,FALSE) -> 4 | I108: 107 | J108: 38 | K108: 55 | L108: 9 | M108: 3 | N108: 2
A109: E01022179 | B109: E01022179 Cotswold 001A | C109: E01022179 | D109: =VLOOKUP(A109,'Output Areas'!$A:$E,5,FALSE) -> Rural | E109: Detached; semi-detached; terraced whole house or bungalow | F109: Owned | G109: 8 rooms or more | H109: =VLOOKUP(G109,Cntrol!$F$3:$G$9,2,FALSE) -> 5 | I109: 211 | J109: 50 | K109: 106 | L109: 38 | M109: 17 | N109: 0
A110: E01022179 | B110: E01022179 Cotswold 001A | C110: E01022179 | D110: =VLOOKUP(A110,'Output Areas'!$A:$E,5,FALSE) -> Rural | E110: Detached; semi-detached; terraced whole house or bungalow | F110: Shared ownership or rented (excluding living rent free) | G110: Total: Number of rooms | H110: =VLOOKUP(G110,Cntrol!$F$3:$G$9,2,FALSE) -> 0 | I110: 196 | J110: 87 | K110: 65 | L110: 14 | M110: 4 | N110: 26
A111: E01022179 | B111: E01022179 Cotswold 001A | C111: E01022179 | D111: =VLOOKUP(A111,'Output Areas'!$A:$E,5,FALSE) -> Rural | E111: Detached; semi-detached; terraced whole house or bungalow | F111: Shared ownership or rented (excluding living rent free) | G111: 3 rooms or less | H111: =VLOOKUP(G111,Cntrol!$F$3:$G$9,2,FALSE) -> 2 | I111: 13 | J111: 9 | K111: 0 | L111: 0 | M111: 0 | N111: 4
A112: E01022179 | B112: E01022179 Cotswold 001A | C112: E01022179 | D112: =VLOOKUP(A112,'Output Areas'!$A:$E,5,FALSE) -> Rural | E112: Detached; semi-detached; terraced whole house or bungalow | F112: Shared ownership or rented (excluding living rent free) | G112: 4 rooms | H112: =VLOOKUP(G112,Cntrol!$F$3:$G$9,2,FALSE) -> 2 | I112: 55 | J112: 31 | K112: 14 | L112: 1 | M112: 0 | N112: 9
A113: E01022179 | B113: E01022179 Cotswold 001A | C113: E01022179 | D113: =VLOOKUP(A113,'Output Areas'!$A:$E,5,FALSE) -> Rural | E113: Detached; semi-detached; terraced whole house or bungalow | F113: Shared ownership or rented (excluding living rent free) | G113: 5 rooms | H113: =VLOOKUP(G113,Cntrol!$F$3:$G$9,2,FALSE) -> 3 | I113: 70 | J113: 32 | K113: 24 | L113: 6 | M113: 0 | N113: 8
A114: E01022179 | B114: E01022179 Cotswold 001A | C114: E01022179 | D114: =VLOOKUP(A114,'Output Areas'!$A:$E,5,FALSE) -> Rural | E114: Detached; semi-detached; terraced whole house or bungalow | F114: Shared ownership or rented (excluding living rent free) | G114: 6 rooms | H114: =VLOOKUP(G114,Cntrol!$F$3:$G$9,2,FALSE) -> 3 | I114: 28 | J114: 7 | K114: 12 | L114: 2 | M114: 3 | N114: 4
A115: E01022179 | B115: E01022179 Cotswold 001A | C115: E01022179 | D115: =VLOOKUP(A115,'Output Areas'!$A:$E,5,FALSE) -> Rural | E115: Detached; semi-detached; terraced whole house or bungalow | F115: Shared ownership or rented (excluding living rent free) | G115: 7 rooms | H115: =VLOOKUP(G115,Cntrol!$F$3:$G$9,2,FALSE) -> 4 | I115: 13 | J115: 3 | K115: 6 | L115: 3 | M115: 0 | N115: 1
A116: E01022179 | B116: E01022179 Cotswold 001A | C116: E01022179 | D116: =VLOOKUP(A116,'Output Areas'!$A:$E,5,FALSE) -> Rural | E116: Detached; semi-detached; terraced whole house or bungalow | F116: Shared ownership or rented (excluding living rent free) | G116: 8 rooms or more | H116: =VLOOKUP(G116,Cntrol!$F$3:$G$9,2,FALSE) -> 5 | I116: 17 | J116: 5 | K116: 9 | L116: 2 | M116: 1 | N116: 0
A117: E01022179 | B117: E01022179 Cotswold 001A | C117: E01022179 | D117: =VLOOKUP(A117,'Output Areas'!$A:$E,5,FALSE) -> Rural | E117: A flat; maisonette; apartment | F117: Total: Tenure (excluding living rent free) | G117: Total: Number of rooms | H117: =VLOOKUP(G117,Cntrol!$F$3:$G$9,2,FALSE) -> 0 | I117: 57 | J117: 30 | K117: 8 | L117: 1 | M117: 1 | N117: 17
A118: E01022179 | B118: E01022179 Cotswold 001A | C118: E01022179 | D118: =VLOOKUP(A118,'Output Areas'!$A:$E,5,FALSE) -> Rural | E118: A flat; maisonette; apartment | F118: Total: Tenure (excluding living rent free) | G118: 3 rooms or less | H118: =VLOOKUP(G118,Cntrol!$F$3:$G$9,2,FALSE) -> 2 | I118: 30 | J118: 10 | K118: 4 | L118: 1 | M118: 1 | N118: 14
A119: E01022179 | B119: E01022179 Cotswold 001A | C119: E01022179 | D119: =VLOOKUP(A119,'Output Areas'!$A:$E,5,FALSE) -> Rural | E119: A flat; maisonette; apartment | F119: Total: Tenure (excluding living rent free) | G119: 4 rooms | H119: =VLOOKUP(G119,Cntrol!$F$3:$G$9,2,FALSE) -> 2 | I119: 15 | J119: 11 | K119: 2 | L119: 0 | M119: 0 | N119: 2
A120: E01022179 | B120: E01022179 Cotswold 001A | C120: E01022179 | D120: =VLOOKUP(A120,'Output Areas'!$A:$E,5,FALSE) -> Rural | E120: A flat; maisonette; apartment | F120: Total: Tenure (excluding living rent free) | G120: 5 rooms | H120: =VLOOKUP(G120,Cntrol!$F$3:$G$9,2,FALSE) -> 3 | I120: 4 | J120: 3 | K120: 1 | L120: 0 | M120: 0 | N120: 0
A121: E01022179 | B121: E01022179 Cotswold 001A | C121: E01022179 | D121: =VLOOKUP(A121,'Output Areas'!$A:$E,5,FALSE) -> Rural | E121: A flat; maisonette; apartment | F121: Total: Tenure (excluding living rent free) | G121: 6 rooms | H121: =VLOOKUP(G121,Cntrol!$F$3:$G$9,2,FALSE) -> 3 | I121: 6 | J121: 5 | K121: 0 | L121: 0 | M121: 0 | N121: 1
A122: E01022179 | B122: E01022179 Cotswold 001A | C122: E01022179 | D122: =VLOOKUP(A122,'Output Areas'!$A:$E,5,FALSE) -> Rural | E122: A flat; maisonette; apartment | F122: Total: Tenure (excluding living rent free) | G122: 7 rooms | H122: =VLOOKUP(G122,Cntrol!$F$3:$G$9,2,FALSE) -> 4 | I122: 1 | J122: 0 | K122: 1 | L122: 0 | M122: 0 | N122: 0
A123: E01022179 | B123: E01022179 Cotswold 001A | C123: E01022179 | D123: =VLOOKUP(A123,'Output Areas'!$A:$E,5,FALSE) -> Rural | E123: A flat; maisonette; apartment | F123: Total: Tenure (excluding living rent free) | G123: 8 rooms or more | H123: =VLOOKUP(G123,Cntrol!$F$3:$G$9,2,FALSE) -> 5 | I123: 1 | J123: 1 | K123: 0 | L123: 0 | M123: 0 | N123: 0
A124: E01022179 | B124: E01022179 Cotswold 001A | C124: E01022179 | D124: =VLOOKUP(A124,'Output Areas'!$A:$E,5,FALSE) -> Rural | E124: A flat; maisonette; apartment | F124: Owned | G124: Total: Number of rooms | H124: =VLOOKUP(G124,Cntrol!$F$3:$G$9,2,FALSE) -> 0 | I124: 12 | J124: 9 | K124: 2 | L124: 1 | M124: 0 | N124: 0
A125: E01022179 | B125: E01022179 Cotswold 001A | C125: E01022179 | D125: =VLOOKUP(A125,'Output Areas'!$A:$E,5,FALSE) -> Rural | E125: A flat; maisonette; apartment | F125: Owned | G125: 3 rooms or less | H125: =VLOOKUP(G125,Cntrol!$F$3:$G$9,2,FALSE) -> 2 | I125: 2 | J125: 0 | K125: 1 | L125: 1 | M125: 0 | N125: 0
A126: E01022179 | B126: E01022179 Cotswold 001A | C126: E01022179 | D126: =VLOOKUP(A126,'Output Areas'!$A:$E,5,FALSE) -> Rural | E126: A flat; maisonette; apartment | F126: Owned | G126: 4 rooms | H126: =VLOOKUP(G126,Cntrol!$F$3:$G$9,2,FALSE) -> 2 | I126: 5 | J126: 5 | K126: 0 | L126: 0 | M126: 0 | N126: 0
A127: E01022179 | B127: E01022179 Cotswold 001A | C127: E01022179 | D127: =VLOOKUP(A127,'Output Areas'!$A:$E,5,FALSE) -> Rural | E127: A flat; maisonette; apartment | F127: Owned | G127: 5 rooms | H127: =VLOOKUP(G127,Cntrol!$F$3:$G$9,2,FALSE) -> 3 | I127: 3 | J127: 2 | K127: 1 | L127: 0 | M127: 0 | N127: 0
A128: E01022179 | B128: E01022179 Cotswold 001A | C128: E01022179 | D128: =VLOOKUP(A128,'Output Areas'!$A:$E,5,FALSE) -> Rural | E128: A flat; maisonette; apartment | F128: Owned | G128: 6 rooms | H128: =VLOOKUP(G128,Cntrol!$F$3:$G$9,2,FALSE) -> 3 | I128: 1 | J128: 1 | K128: 0 | L128: 0 | M128: 0 | N128: 0
A129: E01022179 | B129: E01022179 Cotswold 001A | C129: E01022179 | D129: =VLOOKUP(A129,'Output Areas'!$A:$E,5,FALSE) -> Rural | E129: A flat; maisonette; apartment | F129: Owned | G129: 8 rooms or more | H129: =VLOOKUP(G129,Cntrol!$F$3:$G$9,2,FALSE) -> 5 | I129: 1 | J129: 1 | K129: 0 | L129: 0 | M129: 0 | N129: 0
A130: E01022179 | B130: E01022179 Cotswold 001A | C130: E01022179 | D130: =VLOOKUP(A130,'Output Areas'!$A:$E,5,FALSE) -> Rural | E130: A flat; maisonette; apartment | F130: Shared ownership or rented (excluding living rent free) | G130: Total: Number of rooms | H130: =VLOOKUP(G130,Cntrol!$F$3:$G$9,2,FALSE) -> 0 | I130: 45 | J130: 21 | K130: 6 | L130: 0 | M130: 1 | N130: 17
A131: E01022179 | B131: E01022179 Cotswold 001A | C131: E01022179 | D131: =VLOOKUP(A131,'Output Areas'!$A:$E,5,FALSE) -> Rural | E131: A flat; maisonette; apartment | F131: Shared ownership or rented (excluding living rent free) | G131: 3 rooms or less | H131: =VLOOKUP(G131,Cntrol!$F$3:$G$9,2,FALSE) -> 2 | I131: 28 | J131: 10 | K131: 3 | L131: 0 | M131: 1 | N131: 14
A132: E01022179 | B132: E01022179 Cotswold 001A | C132: E01022179 | D132: =VLOOKUP(A132,'Output Areas'!$A:$E,5,FALSE) -> Rural | E132: A flat; maisonette; apartment | F132: Shared ownership or rented (excluding living rent free) | G132: 4 rooms | H132: =VLOOKUP(G132,Cntrol!$F$3:$G$9,2,FALSE) -> 2 | I132: 10 | J132: 6 | K132: 2 | L132: 0 | M132: 0 | N132: 2
A133: E01022179 | B133: E01022179 Cotswold 001A | C133: E01022179 | D133: =VLOOKUP(A133,'Output Areas'!$A:$E,5,FALSE) -> Rural | E133: A flat; maisonette; apartment | F133: Shared ownership or rented (excluding living rent free) | G133: 5 rooms | H133: =VLOOKUP(G133,Cntrol!$F$3:$G$9,2,FALSE) -> 3 | I133: 1 | J133: 1 | K133: 0 | L133: 0 | M133: 0 | N133: 0
A134: E01022179 | B134: E01022179 Cotswold 001A | C134: E01022179 | D134: =VLOOKUP(A134,'Output Areas'!$A:$E,5,FALSE) -> Rural | E134: A flat; maisonette; apartment | F134: Shared ownership or rented (excluding living rent free) | G134: 6 rooms | H134: =VLOOKUP(G134,Cntrol!$F$3:$G$9,2,FALSE) -> 3 | I134: 5 | J134: 4 | K134: 0 | L134: 0 | M134: 0 | N134: 1
A135: E01022179 | B135: E01022179 Cotswold 001A | C135: E01022179 | D135: =VLOOKUP(A135,'Output Areas'!$A:$E,5,FALSE) -> Rural | E135: A flat; maisonette; apartment | F135: Shared ownership or rented (excluding living rent free) | G135: 7 rooms | H135: =VLOOKUP(G135,Cntrol!$F$3:$G$9,2,FALSE) -> 4 | I135: 1 | J135: 0 | K135: 1 | L135: 0 | M135: 0 | N135: 0
A136: E01022182 | B136: E01022182 Cotswold 001B | C136: E01022182 | D136: =VLOOKUP(A136,'Output Areas'!$A:$E,5,FALSE) -> Rural | E136: Total: Accommodation type (excluding caravans / temporary structures) | F136: Total: Tenure (excluding living rent free) | G136: Total: Number of rooms | H136: =VLOOKUP(G136,Cntrol!$F$3:$G$9,2,FALSE) -> 0 | I136: 658 | J136: 264 | K136: 252 | L136: 58 | M136: 28 | N136: 56
A137: E01022182 | B137: E01022182 Cotswold 001B | C137: E01022182 | D137: =VLOOKUP(A137,'Output Areas'!$A:$E,5,FALSE) -> Rural | E137: Total: Accommodation type (excluding caravans / temporary structures) | F137: Total: Tenure (excluding living rent free) | G137: 3 rooms or less | H137: =VLOOKUP(G137,Cntrol!$F$3:$G$9,2,FALSE) -> 2 | I137: 35 | J137: 17 | K137: 7 | L137: 3 | M137: 0 | N137: 8
A138: E01022182 | B138: E01022182 Cotswold 001B | C138: E01022182 | D138: =VLOOKUP(A138,'Output Areas'!$A:$E,5,FALSE) -> Rural | E138: Total: Accommodation type (excluding caravans / temporary structures) | F138: Total: Tenure (excluding living rent free) | G138: 4 rooms | H138: =VLOOKUP(G138,Cntrol!$F$3:$G$9,2,FALSE) -> 2 | I138: 82 | J138: 50 | K138: 18 | L138: 0 | M138: 0 | N138: 14
A139: E01022182 | B139: E01022182 Cotswold 001B | C139: E01022182 | D139: =VLOOKUP(A139,'Output Areas'!$A:$E,5,FALSE) -> Rural | E139: Total: Accommodation type (excluding caravans / temporary structures) | F139: Total: Tenure (excluding living rent free) | G139: 5 rooms | H139: =VLOOKUP(G139,Cntrol!$F$3:$G$9,2,FALSE) -> 3 | I139: 124 | J139: 60 | K139: 39 | L139: 9 | M139: 2 | N139: 14
A140: E01022182 | B140: E01022182 Cotswold 001B | C140: E01022182 | D140: =VLOOKUP(A140,'Output Areas'!$A:$E,5,FALSE) -> Rural | E140: Total: Accommodation type (excluding caravans / temporary structures) | F140: Total: Tenure (excluding living rent free) | G140: 6 rooms | H140: =VLOOKUP(G140,Cntrol!$F$3:$G$9,2,FALSE) -> 3 | I140: 137 | J140: 51 | K140: 65 | L140: 7 | M140: 2 | N140: 12
A141: E01022182 | B141: E01022182 Cotswold 001B | C141: E01022182 | D141: =VLOOKUP(A141,'Output Areas'!$A:$E,5,FALSE) -> Rural | E141: Total: Accommodation type (excluding caravans / temporary structures) | F141: Total: Tenure (excluding living rent free) | G141: 7 rooms | H141: =VLOOKUP(G141,Cntrol!$F$3:$G$9,2,FALSE) -> 4 | I141: 121 | J141: 52 | K141: 42 | L141: 14 | M141: 8 | N141: 5
A142: E01022182 | B142: E01022182 Cotswold 001B | C142: E01022182 | D142: =VLOOKUP(A142,'Output Areas'!$A:$E,5,FALSE) -> Rural | E142: Total: Accommodation type (excluding caravans / temporary structures) | F142: Total: Tenure (excluding living rent free) | G142: 8 rooms or more | H142: =VLOOKUP(G142,Cntrol!$F$3:$G$9,2,FALSE) -> 5 | I142: 159 | J142: 34 | K142: 81 | L142: 25 | M142: 16 | N142: 3
A143: E01022182 | B143: E01022182 Cotswold 001B | C143: E01022182 | D143: =VLOOKUP(A143,'Output Areas'!$A:$E,5,FALSE) -> Rural | E143: Total: Accommodation type (excluding caravans / temporary structures) | F143: Owned | G143: Total: Number of rooms | H143: =VLOOKUP(G143,Cntrol!$F$3:$G$9,2,FALSE) -> 0 | I143: 494 | J143: 190 | K143: 202 | L143: 47 | M143: 26 | N143: 29
A144: E01022182 | B144: E01022182 Cotswold 001B | C144: E01022182 | D144: =VLOOKUP(A144,'Output Areas'!$A:$E,5,FALSE) -> Rural | E144: Total: Accommodation type (excluding caravans / temporary structures) | F144: Owned | G144: 3 rooms or less | H144: =VLOOKUP(G144,Cntrol!$F$3:$G$9,2,FALSE) -> 2 | I144: 7 | J144: 5 | K144: 2 | L144: 0 | M144: 0 | N144: 0
A145: E01022182 | B145: E01022182 Cotswold 001B | C145: E01022182 | D145: =VLOOKUP(A145,'Output Areas'!$A:$E,5,FALSE) -> Rural | E145: Total: Accommodation type (excluding caravans / temporary structures) | F145: Owned | G145: 4 rooms | H145: =VLOOKUP(G145,Cntrol!$F$3:$G$9,2,FALSE) -> 2 | I145: 45 | J145: 27 | K145: 11 | L145: 0 | M145: 0 | N145: 7
A146: E01022182 | B146: E01022182 Cotswold 001B | C146: E01022182 | D146: =VLOOKUP(A146,'Output Areas'!$A:$E,5,FALSE) -> Rural | E146: Total: Accommodation type (excluding caravans / temporary structures) | F146: Owned | G146: 5 rooms | H146: =VLOOKUP(G146,Cntrol!$F$3:$G$9,2,FALSE) -> 3 | I146: 77 | J146: 35 | K146: 28 | L146: 6 | M146: 1 | N146: 7
A147: E01022182 | B147: E01022182 Cotswold 001B | C147: E01022182 | D147: =VLOOKUP(A147,'Output Areas'!$A:$E,5,FALSE) -> Rural | E147: Total: Accommodation type (excluding caravans / temporary structures) | F147: Owned | G147: 6 rooms | H147: =VLOOKUP(G147,Cntrol!$F$3:$G$9,2,FALSE) -> 3 | I147: 114 | J147: 44 | K147: 52 | L147: 7 | M147: 2 | N147: 9
A148: E01022182 | B148: E01022182 Cotswold 001B | C148: E01022182 | D148: =VLOOKUP(A148,'Output Areas'!$A:$E,5,FALSE) -> Rural | E148: Total: Accommodation type (excluding caravans / temporary structures) | F148: Owned | G148: 7 rooms | H148: =VLOOKUP(G148,Cntrol!$F$3:$G$9,2,FALSE) -> 4 | I148: 104 | J148: 46 | K148: 36 | L148: 10 | M148: 8 | N148: 4
A149: E01022182 | B149: E01022182 Cotswold 001B | C149: E01022182 | D149: =VLOOKUP(A149,'Output Areas'!$A:$E,5,FALSE) -> Rural | E149: Total: Accommodation type (excluding caravans / temporary structures) | F149: Owned | G149: 8 rooms or more | H149: =VLOOKUP(G149,Cntrol!$F$3:$G$9,2,FALSE) -> 5 | I149: 147 | J149: 33 | K149: 73 | L149: 24 | M149: 15 | N149: 2
A150: E01022182 | B150: E01022182 Cotswold 001B | C150: E01022182 | D150: =VLOOKUP(A150,'Output Areas'!$A:$E,5,FALSE) -> Rural | E150: Total: Accommodation type (excluding caravans / temporary structures) | F150: Shared ownership or rented (excluding living rent free) | G150: Total: Number of rooms | H150: =VLOOKUP(G150,Cntrol!$F$3:$G$9,2,FALSE) -> 0 | I150: 164 | J150: 74 | K150: 50 | L150: 11 | M150: 2 | N150: 27
A151: E01022182 | B151: E01022182 Cotswold 001B | C151: E01022182 | D151: =VLOOKUP(A151,'Output Areas'!$A:$E,5,FALSE) -> Rural | E151: Total: Accommodation type (excluding caravans / temporary structures) | F151: Shared ownership or rented (excluding living rent free) | G151: 3 rooms or less | H151: =VLOOKUP(G151,Cntrol!$F$3:$G$9,2,FALSE) -> 2 | I151: 28 | J151: 12 | K151: 5 | L151: 3 | M151: 0 | N151: 8
A152: E01022182 | B152: E01022182 Cotswold 001B | C152: E01022182 | D152: =VLOOKUP(A152,'Output Areas'!$A:$E,5,FALSE) -> Rural | E152: Total: Accommodation type (excluding caravans / temporary structures) | F152: Shared ownership or rented (excluding living rent free) | G152: 4 rooms | H152: =VLOOKUP(G152,Cntrol!$F$3:$G$9,2,FALSE) -> 2 | I152: 37 | J152: 23 | K152: 7 | L152: 0 | M152: 0 | N152: 7
A153: E01022182 | B153: E01022182 Cotswold 001B | C153: E01022182 | D153: =VLOOKUP(A153,'Output Areas'!$A:$E,5,FALSE) -> Rural | E153: Total: Accommodation type (excluding caravans / temporary structures) | F153: Shared ownership or rented (excluding living rent free) | G153: 5 rooms | H153: =VLOOKUP(G153,Cntrol!$F$3:$G$9,2,FALSE) -> 3 | I153: 47 | J153: 25 | K153: 11 | L153: 3 | M153: 1 | N153: 7
A154: E01022182 | B154: E01022182 Cotswold 001B | C154: E01022182 | D154: =VLOOKUP(A154,'Output Areas'!$A:$E,5,FALSE) -> Rural | E154: Total: Accommodation type (excluding caravans / temporary structures) | F154: Shared ownership or rented (excluding living rent free) | G154: 6 rooms | H154: =VLOOKUP(G154,Cntrol!$F$3:$G$9,2,FALSE) -> 3 | I154: 23 | J154: 7 | K154: 13 | L154: 0 | M154: 0 | N154: 3
A155: E01022182 | B155: E01022182 Cotswold 001B | C155: E01022182 | D155: =VLOOKUP(A155,'Output Areas'!$A:$E,5,FALSE) -> Rural | E155: Total: Accommodation type (excluding caravans / temporary structures) | F155: Shared ownership or rented (excluding living rent free) | G155: 7 rooms | H155: =VLOOKUP(G155,Cntrol!$F$3:$G$9,2,FALSE) -> 4 | I155: 17 | J155: 6 | K155: 6 | L155: 4 | M155: 0 | N155: 1
A156: E01022182 | B156: E01022182 Cotswold 001B | C156: E01022182 | D156: =VLOOKUP(A156,'Output Areas'!$A:$E,5,FALSE) -> Rural | E156: Total: Accommodation type (excluding caravans / temporary structures) | F156: Shared ownership or rented (excluding living rent free) | G156: 8 rooms or more | H156: =VLOOKUP(G156,Cntrol!$F$3:$G$9,2,FALSE) -> 5 | I156: 12 | J156: 1 | K156: 8 | L156: 1 | M156: 1 | N156: 1
A157: E01022182 | B157: E01022182 Cotswold 001B | C157: E01022182 | D157: =VLOOKUP(A157,'Output Areas'!$A:$E,5,FALSE) -> Rural | E157: Detached; semi-detached; terraced whole house or bungalow | F157: Total: Tenure (excluding living rent free) | G157: Total: Number of rooms | H157: =VLOOKUP(G157,Cntrol!$F$3:$G$9,2,FALSE) -> 0 | I157: 643 | J157: 259 | K157: 247 | L157: 57 | M157: 28 | N157: 52
A158: E01022182 | B158: E01022182 Cotswold 001B | C158: E01022182 | D158: =VLOOKUP(A158,'Output Areas'!$A:$E,5,FALSE) -> Rural | E158: Detached; semi-detached; terraced whole house or bungalow | F158: Total: Tenure (excluding living rent free) | G158: 3 rooms or less | H158: =VLOOKUP(G158,Cntrol!$F$3:$G$9,2,FALSE) -> 2 | I158: 25 | J158: 14 | K158: 4 | L158: 2 | M158: 0 | N158: 5
A159: E01022182 | B159: E01022182 Cotswold 001B | C159: E01022182 | D159: =VLOOKUP(A159,'Output Areas'!$A:$E,5,FALSE) -> Rural | E159: Detached; semi-detached; terraced whole house or bungalow | F159: Total: Tenure (excluding living rent free) | G159: 4 rooms | H159: =VLOOKUP(G159,Cntrol!$F$3:$G$9,2,FALSE) -> 2 | I159: 79 | J159: 49 | K159: 17 | L159: 0 | M159: 0 | N159: 13
A160: E01022182 | B160: E01022182 Cotswold 001B | C160: E01022182 | D160: =VLOOKUP(A160,'Output Areas'!$A:$E,5,FALSE) -> Rural | E160: Detached; semi-detached; terraced whole house or bungalow | F160: Total: Tenure (excluding living rent free) | G160: 5 rooms | H160: =VLOOKUP(G160,Cntrol!$F$3:$G$9,2,FALSE) -> 3 | I160: 122 | J160: 59 | K160: 38 | L160: 9 | M160: 2 | N160: 14
A161: E01022182 | B161: E01022182 Cotswold 001B | C161: E01022182 | D161: =VLOOKUP(A161,'Output Areas'!$A:$E,5,FALSE) -> Rural | E161: Detached; semi-detached; terraced whole house or bungalow | F161: Total: Tenure (excluding living rent free) | G161: 6 rooms | H161: =VLOOKUP(G161,Cntrol!$F$3:$G$9,2,FALSE) -> 3 | I161: 137 | J161: 51 | K161: 65 | L161: 7 | M161: 2 | N161: 12
A162: E01022182 | B162: E01022182 Cotswold 001B | C162: E01022182 | D162: =VLOOKUP(A162,'Output Areas'!$A:$E,5,FALSE) -> Rural | E162: Detached; semi-detached; terraced whole house or bungalow | F162: Total: Tenure (excluding living rent free) | G162: 7 rooms | H162: =VLOOKUP(G162,Cntrol!$F$3:$G$9,2,FALSE) -> 4 | I162: 121 | J162: 52 | K162: 42 | L162: 14 | M162: 8 | N162: 5
A163: E01022182 | B163: E01022182 Cotswold 001B | C163: E01022182 | D163: =VLOOKUP(A163,'Output Areas'!$A:$E,5,FALSE) -> Rural | E163: Detached; semi-detached; terraced whole house or bungalow | F163: Total: Tenure (excluding living rent free) | G163: 8 rooms or more | H163: =VLOOKUP(G163,Cntrol!$F$3:$G$9,2,FALSE) -> 5 | I163: 159 | J163: 34 | K163: 81 | L163: 25 | M163: 16 | N163: 3
A164: E01022182 | B164: E01022182 Cotswold 001B | C164: E01022182 | D164: =VLOOKUP(A164,'Output Areas'!$A:$E,5,FALSE) -> Rural | E164: Detached; semi-detached; terraced whole house or bungalow | F164: Owned | G164: Total: Number of rooms | H164: =VLOOKUP(G164,Cntrol!$F$3:$G$9,2,FALSE) -> 0 | I164: 492 | J164: 189 | K164: 201 | L164: 47 | M164: 26 | N164: 29
A165: E01022182 | B165: E01022182 Cotswold 001B | C165: E01022182 | D165: =VLOOKUP(A165,'Output Areas'!$A:$E,5,FALSE) -> Rural | E165: Detached; semi-detached; terraced whole house or bungalow | F165: Owned | G165: 3 rooms or less | H165: =VLOOKUP(G165,Cntrol!$F$3:$G$9,2,FALSE) -> 2 | I165: 5 | J165: 4 | K165: 1 | L165: 0 | M165: 0 | N165: 0
A166: E01022182 | B166: E01022182 Cotswold 001B | C166: E01022182 | D166: =VLOOKUP(A166,'Output Areas'!$A:$E,5,FALSE) -> Rural | E166: Detached; semi-detached; terraced whole house or bungalow | F166: Owned | G166: 4 rooms | H166: =VLOOKUP(G166,Cntrol!$F$3:$G$9,2,FALSE) -> 2 | I166: 45 | J166: 27 | K166: 11 | L166: 0 | M166: 0 | N166: 7
A167: E01022182 | B167: E01022182 Cotswold 001B | C167: E01022182 | D167: =VLOOKUP(A167,'Output Areas'!$A:$E,5,FALSE) -> Rural | E167: Detached; semi-detached; terraced whole house or bungalow | F167: Owned | G167: 5 rooms | H167: =VLOOKUP(G167,Cntrol!$F$3:$G$9,2,FALSE) -> 3 | I167: 77 | J167: 35 | K167: 28 | L167: 6 | M167: 1 | N167: 7
A168: E01022182 | B168: E01022182 Cotswold 001B | C168: E01022182 | D168: =VLOOKUP(A168,'Output Areas'!$A:$E,5,FALSE) -> Rural | E168: Detached; semi-detached; terraced whole house or bungalow | F168: Owned | G168: 6 rooms | H168: =VLOOKUP(G168,Cntrol!$F$3:$G$9,2,FALSE) -> 3 | I168: 114 | J168: 44 | K168: 52 | L168: 7 | M168: 2 | N168: 9
A169: E01022182 | B169: E01022182 Cotswold 001B | C169: E01022182 | D169: =VLOOKUP(A169,'Output Areas'!$A:$E,5,FALSE) -> Rural | E169: Detached; semi-detached; terraced whole house or bungalow | F169: Owned | G169: 7 rooms | H169: =VLOOKUP(G169,Cntrol!$F$3:$G$9,2,FALSE) -> 4 | I169: 104 | J169: 46 | K169: 36 | L169: 10 | M169: 8 | N169: 4
A170: E01022182 | B170: E01022182 Cotswold 001B | C170: E01022182 | D170: =VLOOKUP(A170,'Output Areas'!$A:$E,5,FALSE) -> Rural | E170: Detached; semi-detached; terraced whole house or bungalow | F170: Owned | G170: 8 rooms or more | H170: =VLOOKUP(G170,Cntrol!$F$3:$G$9,2,FALSE) -> 5 | I170: 147 | J170: 33 | K170: 73 | L170: 24 | M170: 15 | N170: 2
A171: E01022182 | B171: E01022182 Cotswold 001B | C171: E01022182 | D171: =VLOOKUP(A171,'Output Areas'!$A:$E,5,FALSE) -> Rural | E171: Detached; semi-detached; terraced whole house or bungalow | F171: Shared ownership or rented (excluding living rent free) | G171: Total: Number of rooms | H171: =VLOOKUP(G171,Cntrol!$F$3:$G$9,2,FALSE) -> 0 | I171: 151 | J171: 70 | K171: 46 | L171: 10 | M171: 2 | N171: 23
A172: E01022182 | B172: E01022182 Cotswold 001B | C172: E01022182 | D172: =VLOOKUP(A172,'Output Areas'!$A:$E,5,FALSE) -> Rural | E172: Detached; semi-detached; terraced whole house or bungalow | F172: Shared ownership or rented (excluding living rent free) | G172: 3 rooms or less | H172: =VLOOKUP(G172,Cntrol!$F$3:$G$9,2,FALSE) -> 2 | I172: 20 | J172: 10 | K172: 3 | L172: 2 | M172: 0 | N172: 5
A173: E01022182 | B173: E01022182 Cotswold 001B | C173: E01022182 | D173: =VLOOKUP(A173,'Output Areas'!$A:$E,5,FALSE) -> Rural | E173: Detached; semi-detached; terraced whole house or bungalow | F173: Shared ownership or rented (excluding living rent free) | G173: 4 rooms | H173: =VLOOKUP(G173,Cntrol!$F$3:$G$9,2,FALSE) -> 2 | I173: 34 | J173: 22 | K173: 6 | L173: 0 | M173: 0 | N173: 6
A174: E01022182 | B174: E01022182 Cotswold 001B | C174: E01022182 | D174: =VLOOKUP(A174,'Output Areas'!$A:$E,5,FALSE) -> Rural | E174: Detached; semi-detached; terraced whole house or bungalow | F174: Shared ownership or rented (excluding living rent free) | G174: 5 rooms | H174: =VLOOKUP(G174,Cntrol!$F$3:$G$9,2,FALSE) -> 3 | I174: 45 | J174: 24 | K174: 10 | L174: 3 | M174: 1 | N174: 7
A175: E01022182 | B175: E01022182 Cotswold 001B | C175: E01022182 | D175: =VLOOKUP(A175,'Output Areas'!$A:$E,5,FALSE) -> Rural | E175: Detached; semi-detached; terraced whole house or bungalow | F175: Shared ownership or rented (excluding living rent free) | G175: 6 rooms | H175: =VLOOKUP(G175,Cntrol!$F$3:$G$9,2,FALSE) -> 3 | I175: 23 | J175: 7 | K175: 13 | L175: 0 | M175: 0 | N175: 3
A176: E01022182 | B176: E01022182 Cotswold 001B | C176: E01022182 | D176: =VLOOKUP(A176,'Output Areas'!$A:$E,5,FALSE) -> Rural | E176: Detached; semi-detached; terraced whole house or bungalow | F176: Shared ownership or rented (excluding living rent free) | G176: 7 rooms | H176: =VLOOKUP(G176,Cntrol!$F$3:$G$9,2,FALSE) -> 4 | I176: 17 | J176: 6 | K176: 6 | L176: 4 | M176: 0 | N176: 1
A177: E01022182 | B177: E01022182 Cotswold 001B | C177: E01022182 | D177: =VLOOKUP(A177,'Output Areas'!$A:$E,5,FALSE) -> Rural | E177: Detached; semi-detached; terraced whole house or bungalow | F177: Shared ownership or rented (excluding living rent free) | G177: 8 rooms or more | H177: =VLOOKUP(G177,Cntrol!$F$3:$G$9,2,FALSE) -> 5 | I177: 12 | J177: 1 | K177: 8 | L177: 1 | M177: 1 | N177: 1
A178: E01022182 | B178: E01022182 Cotswold 001B | C178: E01022182 | D178: =VLOOKUP(A178,'Output Areas'!$A:$E,5,FALSE) -> Rural | E178: A flat; maisonette; apartment | F178: Total: Tenure (excluding living rent free) | G178: Total: Number of rooms | H178: =VLOOKUP(G178,Cntrol!$F$3:$G$9,2,FALSE) -> 0 | I178: 15 | J178: 5 | K178: 5 | L178: 1 | M178: 0 | N178: 4
A179: E01022182 | B179: E01022182 Cotswold 001B | C179: E01022182 | D179: =VLOOKUP(A179,'Output Areas'!$A:$E,5,FALSE) -> Rural | E179: A flat; maisonette; apartment | F179: Total: Tenure (excluding living rent free) | G179: 3 rooms or less | H179: =VLOOKUP(G179,Cntrol!$F$3:$G$9,2,FALSE) -> 2 | I179: 10 | J179: 3 | K179: 3 | L179: 1 | M179: 0 | N179: 3
A180: E01022182 | B180: E01022182 Cotswold 001B | C180: E01022182 | D180: =VLOOKUP(A180,'Output Areas'!$A:$E,5,FALSE) -> Rural | E180: A flat; maisonette; apartment | F180: Total: Tenure (excluding living rent free) | G180: 4 rooms | H180: =VLOOKUP(G180,Cntrol!$F$3:$G$9,2,FALSE) -> 2 | I180: 3 | J180: 1 | K180: 1 | L180: 0 | M180: 0 | N180: 1
A181: E01022182 | B181: E01022182 Cotswold 001B | C181: E01022182 | D181: =VLOOKUP(A181,'Output Areas'!$A:$E,5,FALSE) -> Rural | E181: A flat; maisonette; apartment | F181: Total: Tenure (excluding living rent free) | G181: 5 rooms | H181: =VLOOKUP(G181,Cntrol!$F$3:$G$9,2,FALSE) -> 3 | I181: 2 | J181: 1 | K181: 1 | L181: 0 | M181: 0 | N181: 0
A182: E01022182 | B182: E01022182 Cotswold 001B | C182: E01022182 | D182: =VLOOKUP(A182,'Output Areas'!$A:$E,5,FALSE) -> Rural | E182: A flat; maisonette; apartment | F182: Owned | G182: Total: Number of rooms | H182: =VLOOKUP(G182,Cntrol!$F$3:$G$9,2,FALSE) -> 0 | I182: 2 | J182: 1 | K182: 1 | L182: 0 | M182: 0 | N182: 0
A183: E01022182 | B183: E01022182 Cotswold 001B | C183: E01022182 | D183: =VLOOKUP(A183,'Output Areas'!$A:$E,5,FALSE) -> Rural | E183: A flat; maisonette; apartment | F183: Owned | G183: 3 rooms or less | H183: =VLOOKUP(G183,Cntrol!$F$3:$G$9,2,FALSE) -> 2 | I183: 2 | J183: 1 | K183: 1 | L183: 0 | M183: 0 | N183: 0
A184: E01022182 | B184: E01022182 Cotswold 001B | C184: E01022182 | D184: =VLOOKUP(A184,'Output Areas'!$A:$E,5,FALSE) -> Rural | E184: A flat; maisonette; apartment | F184: Shared ownership or rented (excluding living rent free) | G184: Total: Number of rooms | H184: =VLOOKUP(G184,Cntrol!$F$3:$G$9,2,FALSE) -> 0 | I184: 13 | J184: 4 | K184: 4 | L184: 1 | M184: 0 | N184: 4
A185: E01022182 | B185: E01022182 Cotswold 001B | C185: E01022182 | D185: =VLOOKUP(A185,'Output Areas'!$A:$E,5,FALSE) -> Rural | E185: A flat; maisonette; apartment | F185: Shared ownership or rented (excluding living rent free) | G185: 3 rooms or less | H185: =VLOOKUP(G185,Cntrol!$F$3:$G$9,2,FALSE) -> 2 | I185: 8 | J185: 2 | K185: 2 | L185: 1 | M185: 0 | N185: 3
A186: E01022182 | B186: E01022182 Cotswold 001B | C186: E01022182 | D186: =VLOOKUP(A186,'Output Areas'!$A:$E,5,FALSE) -> Rural | E186: A flat; maisonette; apartment | F186: Shared ownership or rented (excluding living rent free) | G186: 4 rooms | H186: =VLOOKUP(G186,Cntrol!$F$3:$G$9,2,FALSE) -> 2 | I186: 3 | J186: 1 | K186: 1 | L186: 0 | M186: 0 | N186: 1
A187: E01022182 | B187: E01022182 Cotswold 001B | C187: E01022182 | D187: =VLOOKUP(A187,'Output Areas'!$A:$E,5,FALSE) -> Rural | E187: A flat; maisonette; apartment | F187: Shared ownership or rented (excluding living rent free) | G187: 5 rooms | H187: =VLOOKUP(G187,Cntrol!$F$3:$G$9,2,FALSE) -> 3 | I187: 2 | J187: 1 | K187: 1 | L187: 0 | M187: 0 | N187: 0
A188: E01022183 | B188: E01022183 Cotswold 001C | C188: E01022183 | D188: =VLOOKUP(A188,'Output Areas'!$A:$E,5,FALSE) -> Small Settlements | E188: Total: Accommodation type (excluding caravans / temporary structures) | F188: Total: Tenure (excluding living rent free) | G188: Total: Number of rooms | H188: =VLOOKUP(G188,Cntrol!$F$3:$G$9,2,FALSE) -> 0 | I188: 676 | J188: 314 | K188: 214 | L188: 55 | M188: 21 | N188: 72
A189: E01022183 | B189: E01022183 Cotswold 001C | C189: E01022183 | D189: =VLOOKUP(A189,'Output Areas'!$A:$E,5,FALSE) -> Small Settlements | E189: Total: Accommodation type (excluding caravans / temporary structures) | F189: Total: Tenure (excluding living rent free) | G189: 3 rooms or less | H189: =VLOOKUP(G189,Cntrol!$F$3:$G$9,2,FALSE) -> 2 | I189: 62 | J189: 31 | K189: 3 | L189: 1 | M189: 1 | N189: 26
A190: E01022183 | B190: E01022183 Cotswold 001C | C190: E01022183 | D190: =VLOOKUP(A190,'Output Areas'!$A:$E,5,FALSE) -> Small Settlements | E190: Total: Accommodation type (excluding caravans / temporary structures) | F190: Total: Tenure (excluding living rent free) | G190: 4 rooms | H190: =VLOOKUP(G190,Cntrol!$F$3:$G$9,2,FALSE) -> 2 | I190: 119 | J190: 66 | K190: 25 | L190: 2 | M190: 3 | N190: 23
A191: E01022183 | B191: E01022183 Cotswold 001C | C191: E01022183 | D191: =VLOOKUP(A191,'Output Areas'!$A:$E,5,FALSE) -> Small Settlements | E191: Total: Accommodation type (excluding caravans / temporary structures) | F191: Total: Tenure (excluding living rent free) | G191: 5 rooms | H191: =VLOOKUP(G191,Cntrol!$F$3:$G$9,2,FALSE) -> 3 | I191: 141 | J191: 83 | K191: 37 | L191: 7 | M191: 1 | N191: 13
A192: E01022183 | B192: E01022183 Cotswold 001C | C192: E01022183 | D192: =VLOOKUP(A192,'Output Areas'!$A:$E,5,FALSE) -> Small Settlements | E192: Total: Accommodation type (excluding caravans / temporary structures) | F192: Total: Tenure (excluding living rent free) | G192: 6 rooms | H192: =VLOOKUP(G192,Cntrol!$F$3:$G$9,2,FALSE) -> 3 | I192: 111 | J192: 56 | K192: 37 | L192: 14 | M192: 2 | N192: 2
A193: E01022183 | B193: E01022183 Cotswold 001C | C193: E01022183 | D193: =VLOOKUP(A193,'Output Areas'!$A:$E,5,FALSE) -> Small Settlements | E193: Total: Accommodation type (excluding caravans / temporary structures) | F193: Total: Tenure (excluding living rent free) | G193: 7 rooms | H193: =VLOOKUP(G193,Cntrol!$F$3:$G$9,2,FALSE) -> 4 | I193: 74 | J193: 36 | K193: 27 | L193: 4 | M193: 4 | N193: 3
A194: E01022183 | B194: E01022183 Cotswold 001C | C194: E01022183 | D194: =VLOOKUP(A194,'Output Areas'!$A:$E,5,FALSE) -> Small Settlements | E194: Total: Accommodation type (excluding caravans / temporary structures) | F194: Total: Tenure (excluding living rent free) | G194: 8 rooms or more | H194: =VLOOKUP(G194,Cntrol!$F$3:$G$9,2,FALSE) -> 5 | I194: 169 | J194: 42 | K194: 85 | L194: 27 | M194: 10 | N194: 5
A195: E01022183 | B195: E01022183 Cotswold 001C | C195: E01022183 | D195: =VLOOKUP(A195,'Output Areas'!$A:$E,5,FALSE) -> Small Settlements | E195: Total: Accommodation type (excluding caravans / temporary structures) | F195: Owned | G195: Total: Number of rooms | H195: =VLOOKUP(G195,Cntrol!$F$3:$G$9,2,FALSE) -> 0 | I195: 451 | J195: 200 | K195: 156 | L195: 50 | M195: 16 | N195: 29
A196: E01022183 | B196: E01022183 Cotswold 001C | C196: E01022183 | D196: =VLOOKUP(A196,'Output Areas'!$A:$E,5,FALSE) -> Small Settlements | E196: Total: Accommodation type (excluding caravans / temporary structures) | F196: Owned | G196: 3 rooms or less | H196: =VLOOKUP(G196,Cntrol!$F$3:$G$9,2,FALSE) -> 2 | I196: 10 | J196: 7 | K196: 0 | L196: 0 | M196: 0 | N196: 3
A197: E01022183 | B197: E01022183 Cotswold 001C | C197: E01022183 | D197: =VLOOKUP(A197,'Output Areas'!$A:$E,5,FALSE) -> Small Settlements | E197: Total: Accommodation type (excluding caravans / temporary structures) | F197: Owned | G197: 4 rooms | H197: =VLOOKUP(G197,Cntrol!$F$3:$G$9,2,FALSE) -> 2 | I197: 42 | J197: 24 | K197: 6 | L197: 2 | M197: 0 | N197: 10
A198: E01022183 | B198: E01022183 Cotswold 001C | C198: E01022183 | D198: =VLOOKUP(A198,'Output Areas'!$A:$E,5,FALSE) -> Small Settlements | E198: Total: Accommodation type (excluding caravans / temporary structures) | F198: Owned | G198: 5 rooms | H198: =VLOOKUP(G198,Cntrol!$F$3:$G$9,2,FALSE) -> 3 | I198: 78 | J198: 49 | K198: 16 | L198: 5 | M198: 1 | N198: 7
A199: E01022183 | B199: E01022183 Cotswold 001C | C199: E01022183 | D199: =VLOOKUP(A199,'Output Areas'!$A:$E,5,FALSE) -> Small Settlements | E199: Total: Accommodation type (excluding caravans / temporary structures) | F199: Owned | G199: 6 rooms | H199: =VLOOKUP(G199,Cntrol!$F$3:$G$9,2,FALSE) -> 3 | I199: 87 | J199: 43 | K199: 28 | L199: 12 | M199: 2 | N199: 2
A200: E01022183 | B200: E01022183 Cotswold 001C | C200: E01022183 | D200: =VLOOKUP(A200,'Output Areas'!$A:$E,5,FALSE) -> Small Settlements | E200: Total: Accommodation type (excluding caravans / temporary structures) | F200: Owned | G200: 7 rooms | H200: =VLOOKUP(G200,Cntrol!$F$3:$G$9,2,FALSE) -> 4 | I200: 67 | J200: 35 | K200: 22 | L200: 4 | M200: 3 | N200: 3
A201: E01022183 | B201: E01022183 Cotswold 001C | C201: E01022183 | D201: =VLOOKUP(A201,'Output Areas'!$A:$E,5,FALSE) -> Small Settlements | E201: Total: Accommodation type (excluding caravans / temporary structures) | F201: Owned | G201: 8 rooms or more | H201: =VLOOKUP(G201,Cntrol!$F$3:$G$9,2,FALSE) -> 5 | I201: 167 | J201: 42 | K201: 84 | L201: 27 | M201: 10 | N201: 4
A202: E01022183 | B202: E01022183 Cotswold 001C | C202: E01022183 | D202: =VLOOKUP(A202,'Output Areas'!$A:$E,5,FALSE) -> Small Settlements | E202: Total: Accommodation type (excluding caravans / temporary structures) | F202: Shared ownership or rented (excluding living rent free) | G202: Total: Number of rooms | H202: =VLOOKUP(G202,Cntrol!$F$3:$G$9,2,FALSE) -> 0 | I202: 225 | J202: 114 | K202: 58 | L202: 5 | M202: 5 | N202: 43
A203: E01022183 | B203: E01022183 Cotswold 001C | C203: E01022183 | D203: =VLOOKUP(A203,'Output Areas'!$A:$E,5,FALSE) -> Small Settlements | E203: Total: Accommodation type (excluding caravans / temporary structures) | F203: Shared ownership or rented (excluding living rent free) | G203: 3 rooms or less | H203: =VLOOKUP(G203,Cntrol!$F$3:$G$9,2,FALSE) -> 2 | I203: 52 | J203: 24 | K203: 3 | L203: 1 | M203: 1 | N203: 23
A204: E01022183 | B204: E01022183 Cotswold 001C | C204: E01022183 | D204: =VLOOKUP(A204,'Output Areas'!$A:$E,5,FALSE) -> Small Settlements | E204: Total: Accommodation type (excluding caravans / temporary structures) | F204: Shared ownership or rented (excluding living rent free) | G204: 4 rooms | H204: =VLOOKUP(G204,Cntrol!$F$3:$G$9,2,FALSE) -> 2 | I204: 77 | J204: 42 | K204: 19 | L204: 0 | M204: 3 | N204: 13
A205: E01022183 | B205: E01022183 Cotswold 001C | C205: E01022183 | D205: =VLOOKUP(A205,'Output Areas'!$A:$E,5,FALSE) -> Small Settlements | E205: Total: Accommodation type (excluding caravans / temporary structures) | F205: Shared ownership or rented (excluding living rent free) | G205: 5 rooms | H205: =VLOOKUP(G205,Cntrol!$F$3:$G$9,2,FALSE) -> 3 | I205: 63 | J205: 34 | K205: 21 | L205: 2 | M205: 0 | N205: 6
... 2760 more rows

Sheet Cntrol (hidden)
F2: Number of Rooms | G2: Number of bedrooms conversion
B3: Total: Accommodation type (excluding caravans / temporary structures) | D3: 1 | E3: Town and Fringe | F3: Total: Number of rooms | G3: 0
B4: Detached; semi-detached; terraced whole house or bungalow | D4: 2 | E4: Small Settlements | F4: 3 rooms or less | G4: 2
B5: A flat; maisonette; apartment | D5: 3 | E5: Rural | F5: 4 rooms | G5: 2
F6: 5 rooms | G6: 3
B7: Total: Tenure (excluding living rent free) | F7: 6 rooms | G7: 3
B8: Owned | F8: 7 rooms | G8: 4
B9: Shared ownership or rented (excluding living rent free) | F9: 8 rooms or more | G9: 5
B11: Total: All households
B12: 1 car or van in household
B13: 2 cars or vans in household
B14: 3 cars or vans in household
B15: 4 cars or vans or more in household
B16: No cars or vans in household

Sheet Output Areas (hidden)
A1: Output Area | B1: Classification | C1: Output Area | D1: Location | E1: Classification 2
A2: E01022197 | B2: 3 | C2: E01022197 | D2: Cirencester | E2: =VLOOKUP(B2,Cntrol!$D$3:$E$5,2,FALSE) -> Rural
A3: E01022196 | B3: 1 | C3: E01022196 | D3: Cirencester | E3: =VLOOKUP(B3,Cntrol!$D$3:$E$5,2,FALSE) -> Town and Fringe
A4: E01022195 | B4: 3 | C4: E01022195 | D4: Cirencester | E4: =VLOOKUP(B4,Cntrol!$D$3:$E$5,2,FALSE) -> Rural
A5: E01022194 | B5: 1 | C5: E01022194 | D5: Cirencester | E5: =VLOOKUP(B5,Cntrol!$D$3:$E$5,2,FALSE) -> Town and Fringe
A6: E01022193 | B6: 1 | C6: E01022193 | D6: Cirencester | E6: =VLOOKUP(B6,Cntrol!$D$3:$E$5,2,FALSE) -> Town and Fringe
A7: E01022192 | B7: 1 | C7: E01022192 | D7: Cirencester | E7: =VLOOKUP(B7,Cntrol!$D$3:$E$5,2,FALSE) -> Town and Fringe
A8: E01022191 | B8: 1 | C8: E01022191 | D8: Cirencester | E8: =VLOOKUP(B8,Cntrol!$D$3:$E$5,2,FALSE) -> Town and Fringe
A9: E01022190 | B9: 1 | C9: E01022190 | D9: Cirencester | E9: =VLOOKUP(B9,Cntrol!$D$3:$E$5,2,FALSE) -> Town and Fringe
A10: E01022199 | B10: 1 | C10: E01022199 | D10: Cirencester | E10: =VLOOKUP(B10,Cntrol!$D$3:$E$5,2,FALSE) -> Town and Fringe
A11: E01022198 | B11: 1 | C11: E01022198 | D11: Cirencester | E11: =VLOOKUP(B11,Cntrol!$D$3:$E$5,2,FALSE) -> Town and Fringe
A12: E01022216 | B12: 3 | C12: E01022216 | E12: =VLOOKUP(B12,Cntrol!$D$3:$E$5,2,FALSE) -> Rural
A13: E01022217 | B13: 2 | C13: E01022217 | D13: Tetbury | E13: =VLOOKUP(B13,Cntrol!$D$3:$E$5,2,FALSE) -> Small Settlements
A14: E01022214 | B14: 3 | C14: E01022214 | E14: =VLOOKUP(B14,Cntrol!$D$3:$E$5,2,FALSE) -> Rural
A15: E01022215 | B15: 3 | C15: E01022215 | E15: =VLOOKUP(B15,Cntrol!$D$3:$E$5,2,FALSE) -> Rural
A16: E01022212 | B16: 2 | C16: E01022212 | D16: Moreton in Marsh | E16: =VLOOKUP(B16,Cntrol!$D$3:$E$5,2,FALSE) -> Small Settlements
A17: E01022213 | B17: 2 | C17: E01022213 | D17: Northleach | E17: =VLOOKUP(B17,Cntrol!$D$3:$E$5,2,FALSE) -> Small Settlements
A18: E01022210 | B18: 2 | C18: E01022210 | D18: Lechlade on Thames | E18: =VLOOKUP(B18,Cntrol!$D$3:$E$5,2,FALSE) -> Small Settlements
A19: E01022211 | B19: 2 | C19: E01022211 | D19: Moreton in Marsh | E19: =VLOOKUP(B19,Cntrol!$D$3:$E$5,2,FALSE) -> Small Settlements
A20: E01022218 | B20: 2 | C20: E01022218 | D20: Tetbury | E20: =VLOOKUP(B20,Cntrol!$D$3:$E$5,2,FALSE) -> Small Settlements
A21: E01022219 | B21: 2 | C21: E01022219 | D21: Tetbury | E21: =VLOOKUP(B21,Cntrol!$D$3:$E$5,2,FALSE) -> Small Settlements
A22: E01022224 | B22: 3 | C22: E01022224 | E22: =VLOOKUP(B22,Cntrol!$D$3:$E$5,2,FALSE) -> Rural
A23: E01022225 | B23: 3 | C23: E01022225 | E23: =VLOOKUP(B23,Cntrol!$D$3:$E$5,2,FALSE) -> Rural
A24: E01022222 | B24: 3 | C24: E01022222 | E24: =VLOOKUP(B24,Cntrol!$D$3:$E$5,2,FALSE) -> Rural
A25: E01022223 | B25: 2 | C25: E01022223 | D25: South Cerney | E25: =VLOOKUP(B25,Cntrol!$D$3:$E$5,2,FALSE) -> Small Settlements
A26: E01022220 | B26: 2 | C26: E01022220 | D26: Tetbury | E26: =VLOOKUP(B26,Cntrol!$D$3:$E$5,2,FALSE) -> Small Settlements
A27: E01022221 | B27: 3 | C27: E01022221 | E27: =VLOOKUP(B27,Cntrol!$D$3:$E$5,2,FALSE) -> Rural
A28: E01022187 | B28: 3 | C28: E01022187 | E28: =VLOOKUP(B28,Cntrol!$D$3:$E$5,2,FALSE) -> Rural
A29: E01022186 | B29: 3 | C29: E01022186 | E29: =VLOOKUP(B29,Cntrol!$D$3:$E$5,2,FALSE) -> Rural
A30: E01022185 | B30: 3 | C30: E01022185 | E30: =VLOOKUP(B30,Cntrol!$D$3:$E$5,2,FALSE) -> Rural
A31: E01022184 | B31: 3 | C31: E01022184 | E31: =VLOOKUP(B31,Cntrol!$D$3:$E$5,2,FALSE) -> Rural
A32: E01022183 | B32: 2 | C32: E01022183 | D32: Chipping Camden | E32: =VLOOKUP(B32,Cntrol!$D$3:$E$5,2,FALSE) -> Small Settlements
A33: E01022182 | B33: 3 | C33: E01022182 | E33: =VLOOKUP(B33,Cntrol!$D$3:$E$5,2,FALSE) -> Rural
A34: E01022181 | B34: 3 | C34: E01022181 | E34: =VLOOKUP(B34,Cntrol!$D$3:$E$5,2,FALSE) -> Rural
A35: E01022180 | B35: 2 | C35: E01022180 | D35: Bourton on the Water | E35: =VLOOKUP(B35,Cntrol!$D$3:$E$5,2,FALSE) -> Small Settlements
A36: E01022189 | B36: 1 | C36: E01022189 | D36: Cirencester | E36: =VLOOKUP(B36,Cntrol!$D$3:$E$5,2,FALSE) -> Town and Fringe
A37: E01022188 | B37: 1 | C37: E01022188 | D37: Cirencester | E37: =VLOOKUP(B37,Cntrol!$D$3:$E$5,2,FALSE) -> Town and Fringe
A38: E01022206 | B38: 3 | C38: E01022206 | E38: =VLOOKUP(B38,Cntrol!$D$3:$E$5,2,FALSE) -> Rural
A39: E01022207 | B39: 3 | C39: E01022207 | E39: =VLOOKUP(B39,Cntrol!$D$3:$E$5,2,FALSE) -> Rural
A40: E01022204 | B40: 2 | C40: E01022204 | D40: Fairford | E40: =VLOOKUP(B40,Cntrol!$D$3:$E$5,2,FALSE) -> Small Settlements
A41: E01022205 | B41: 3 | C41: E01022205 | E41: =VLOOKUP(B41,Cntrol!$D$3:$E$5,2,FALSE) -> Rural
A42: E01022202 | B42: 3 | C42: E01022202 | E42: =VLOOKUP(B42,Cntrol!$D$3:$E$5,2,FALSE) -> Rural
A43: E01022203 | B43: 3 | C43: E01022203 | E43: =VLOOKUP(B43,Cntrol!$D$3:$E$5,2,FALSE) -> Rural
A44: E01022200 | B44: 1 | C44: E01022200 | D44: Cirencester | E44: =VLOOKUP(B44,Cntrol!$D$3:$E$5,2,FALSE) -> Town and Fringe
A45: E01022201 | B45: 3 | C45: E01022201 | E45: =VLOOKUP(B45,Cntrol!$D$3:$E$5,2,FALSE) -> Rural
A46: E01022208 | B46: 2 | C46: E01022208 | D46: Lechlade on Thames | E46: =VLOOKUP(B46,Cntrol!$D$3:$E$5,2,FALSE) -> Small Settlements
A47: E01022209 | B47: 3 | C47: E01022209 | E47: =VLOOKUP(B47,Cntrol!$D$3:$E$5,2,FALSE) -> Rural
A48: E01022176 | B48: 3 | C48: E01022176 | E48: =VLOOKUP(B48,Cntrol!$D$3:$E$5,2,FALSE) -> Rural
A49: E01022177 | B49: 2 | C49: E01022177 | D49: Stow on the Wold | E49: =VLOOKUP(B49,Cntrol!$D$3:$E$5,2,FALSE) -> Small Settlements
A50: E01022175 | B50: 3 | C50: E01022175 | E50: =VLOOKUP(B50,Cntrol!$D$3:$E$5,2,FALSE) -> Rural
A51: E01022178 | B51: 3 | C51: E01022178 | E51: =VLOOKUP(B51,Cntrol!$D$3:$E$5,2,FALSE) -> Rural
A52: E01022179 | B52: 3 | C52: E01022179 | E52: =VLOOKUP(B52,Cntrol!$D$3:$E$5,2,FALSE) -> Rural

Sheet Defs (hidden)
A1: Town and Fringe
A2: Smaller Settlements
A3: Rural
A6: Detached; semi-detached; terraced whole house or bungalow
A7: A flat; maisonette; apartment
A9: Shared ownership or rented (excluding living rent free)
A10: Owned
A12: 1 or 2
A13: 3
A14: 4
A15: 5+
A19: 0
A20: 1
A21: 2

Sheet Defs 2 (hidden)
A1: Detached; semi-detached; terraced whole house or bungalow | D1: House
A2: A flat; maisonette; apartment | D2: Flat
A4: Shared ownership or rented (excluding living rent free) | D4: Shared Ownership/Rented
A5: Owned | D5: Owner Occupied
